Workbook

Sheet Titulní list
A11: =CONCATENATE("Základní ukazatele hospodaření za období 1-",MONTH(dat_do),"/",YEAR(dat_do)) -> Základní ukazatele hospodaření za období 1-2/2010
A42: Datum od: | B42: 2010-01-01
A43: Datum do: | B43: 2010-02-28

Sheet FNO
A1: Pracoviště: FN Olomouc
A3: =CONCATENATE("Základní ukazatele hospodaření na rok ",YEAR(dat_do)," (v tis.)") -> Základní ukazatele hospodaření na rok 2010 (v tis.)
G6: Vyhodnocení aktuálního období :
H7: =CONCATENATE("1 - ",MONTH(dat_do)," / ",YEAR(dat_do)) -> 1 - 2 / 2010
C8: A | D8: B | F8: C | G8: D | H8: E
C9: Rozpočet | D9: Skutečnost | F9: Skutečnost | G9: Rozpočet | H9: Skutečnost | I9: Rozdíl
C10: (limit) | D10: za | F10: za | G10: za | H10: za | I10: E - D
A11: Souhrnné ukazatele: | C11: =YEAR(dat_do) -> 2010 | D11: =CONCATENATE("1-",MONTH(dat_do),"/",YEAR(dat_do)-1) -> 1-2/2009 | F11: =CONCATENATE(MONTH(dat_do),"/",YEAR(dat_do)) -> 2/2010 | G11: =CONCATENATE("1-",MONTH(dat_do),"/",YEAR(dat_do)) -> 1-2/2010 | H11: =CONCATENATE("1-",MONTH(dat_do),"/",YEAR(dat_do)) -> 1-2/2010
A12: 1 | B12: Náklady celkem (N) | C12: 4468965 | D12: 667054.4318 | F12: 395856.3379 | G12: 744827.5 | H12: 788333.6461 | I12: =H12-G12 -> 43506.14611
A13: 2 | B13: Výnosy celkem (V) | C13: 4489940 | D13: 691855.9737 | F13: 381905.8034 | G13: 748323.3333 | H13: 753026.0757 | I13: =H13-G13 -> 4702.742387
A14: 3 | B14: Hospodářský výsledek (HV) | C14: =C13-C12 -> 20975 | D14: =D13-D12 -> 24801.54191 | F14: =F13-F12 -> -13950.53454 | G14: =G13-G12 -> 3495.833333 | H14: =H13-H12 -> -35307.57039
A16: Dílčí sledované ukazatele:
A17: nákladové ukazatele
A18: 1 | B18: Přímé náklady (PN) | C18: 4195228 | D18: 624984.3834 | F18: 371761.2798 | G18: 699204.6667 | H18: 740216.2662 | I18: =H18-G18 -> 41011.59957
A19: 2 | B19: Léky | C19: 832484 | D19: 129161.8721 | F19: 71186.8907 | G19: 138747.3333 | H19: 149681.8968 | I19: 10934.56351
B20: z toho: vliv lékové vyhlášky | C20: 69330 | D20: 13479.19377 | F20: 5424.59416 | G20: 11555 | H20: 10477.871 | I20: -1077.129
B21: spotřeba center | C21: 439350 | D21: 69702.53059 | F21: 41008.53107 | G21: 73225 | H21: 88059.16667 | I21: 14834.16667
A22: 3 | B22: SZM | C22: 658938 | D22: 92337.08058 | F22: 77825.44716 | G22: 109823 | H22: 141397.7906 | I22: 31574.79062
B23: z toho: implantáty-kardiostim. | C23: 24220 | D23: 3970.34678 | F23: 117.90039 | G23: 4036.666667 | H23: 1003.80552 | I23: -3032.861147
B24: implantáty-defibrilátory | C24: 110202 | D24: 5321.85944 | F24: 27789.99947 | G24: 18367 | H24: 45489.99847 | I24: 27122.99847
B25: implantáty-TEP | C25: 24500 | D25: 4066.84732 | F25: 2568.3627 | G25: 4083.333333 | H25: 4467.79603 | I25: 384.4626967
A26: 4 | B26: Všeobecný materiál | C26: 34889 | D26: 5850.20432 | F26: 3079.44727 | G26: 5814.833333 | H26: 6228.32595 | I26: 413.4926167
A27: 5 | B27: Osobní náklady (OsN) | C27: 1563098 | D27: 226411.4581 | F27: 130641.267 | G27: 260516.3333 | H27: 263122.1782 | I27: 2605.844907
B28: z toho: hrubé mzdy | C28: 1145130 | D28: 165532.241 | F28: 95914.779 | G28: 190855 | H28: 193239.034 | I28: 2384.034
A29: výnosové ukazatele
A30: 6 | B30: Přímé výnosy (PV) | C30: 4216203 | D30: 649785.9253 | F30: 357810.7453 | G30: 702700.5 | H30: 704908.6958 | I30: 2208.19585
A31: 7 | B31: Výnosy ZP vč. agreg.V | C31: 3391679 | D31: 528860.5582 | F31: 272764.3591 | G31: 565279.8333 | H31: 562300.6661 | I31: -2979.167193
A32: 8 | B32: ZUM, ZUL - limity | C32: 1280896.932 | D32: 149748.6308 | F32: 116825.1694 | G32: =C32/12*MONTH(dat_do) -> 213482.822 | H32: 203433.648 | I32: -10049.17395
A33: ostatní ukazatele
A34: 9 | B34: Body vč.agregovaných výkonů | C34: 2322352.825 | D34: 343220.88 | F34: 198975.408 | G34: =C34/12*MONTH(dat_do) -> 387058.8042 | H34: 360730.581 | I34: -26328.22317
A36: Poměrné ukazatale:
A37: 1 | B37: nákladová hodnota bodu-Ncelkem | C37: =C12/C34 -> 1.924326464 | D37: =D12/D34 -> 1.943513553 | F37: =F12/F34 -> 1.989473684 | G37: =G12/G34 -> 1.924326464 | H37: =H12/H34 -> 2.18538069
A38: 2 | B38: výnosová hodnota bodu -V celkem | C38: =C18/C34 -> 1.806455916 | D38: =D13/D34 -> 2.015774721 | F38: =F13/F34 -> 1.919361831 | G38: =G13/G34 -> 1.933358253 | H38: =H13/H34 -> 2.087502739
A39: 3 | B39: podíl OsN na celkových nákl. % | C39: =C27/C12% -> 34.97673399 | D39: =D27/D12% -> 33.94197644 | F39: =F27/F12% -> 33.00219158 | G39: =G27/G12% -> 34.97673399 | H39: =H27/H12% -> 33.37700725
A42: Zpracoval: oddělení ekonomických činností

Sheet 01
A1: Pracoviště: 01 I. Interní klinika
A3: =CONCATENATE("Základní ukazatele hospodaření na rok ",YEAR(dat_do)," (v tis.)") -> Základní ukazatele hospodaření na rok 2010 (v tis.)
G6: Vyhodnocení aktuálního období :
H7: =CONCATENATE("1 - ",MONTH(dat_do)," / ",YEAR(dat_do)) -> 1 - 2 / 2010
C8: A | D8: B | F8: C | G8: D | H8: E
C9: Rozpočet | D9: Skutečnost | F9: Skutečnost | G9: Rozpočet | H9: Skutečnost | I9: Rozdíl
C10: (limit) | D10: za | F10: za | G10: za | H10: za | I10: E - D
A11: Souhrnné ukazatele: | C11: =YEAR(dat_do) -> 2010 | D11: =CONCATENATE("1-",MONTH(dat_do),"/",YEAR(dat_do)-1) -> 1-2/2009 | F11: =CONCATENATE(MONTH(dat_do),"/",YEAR(dat_do)) -> 2/2010 | G11: =CONCATENATE("1-",MONTH(dat_do),"/",YEAR(dat_do)) -> 1-2/2010 | H11: =CONCATENATE("1-",MONTH(dat_do),"/",YEAR(dat_do)) -> 1-2/2010
A12: 1 | B12: Náklady celkem (N) | C12: 317162 | D12: 44636.11315 | F12: 48851.4752 | G12: 52860.33333 | H12: 85852.29608 | I12: =H12-G12 -> 32991.96275
A13: 2 | B13: Výnosy celkem (V) | C13: 313464 | D13: 27348.75923 | F13: 40046.53742 | G13: 52244 | H13: 81743.9947 | I13: =H13-G13 -> 29499.9947
A14: 3 | B14: Hospodářský výsledek (HV) | C14: =C13-C12 -> -3698 | D14: =D13-D12 -> -17287.35392 | F14: =F13-F12 -> -8804.93778 | G14: =G13-G12 -> -616.3333333 | H14: =H13-H12 -> -4108.30138
A16: Dílčí sledované ukazatele:
A17: nákladové ukazatele
A18: 1 | B18: Přímé náklady (PN) | C18: 307464 | D18: 42963.51297 | F18: 47968.14933 | G18: 51244 | H18: 84108.18306 | I18: =H18-G18 -> 32864.18306
A19: 2 | B19: Léky | C19: 10593 | D19: 1887.59154 | F19: 946.64821 | G19: 1765.5 | H19: 1737.62737 | I19: -27.87263
B20: z toho: vliv lékové vyhlášky | C20: 0 | D20: 0 | F20: 0 | G20: 0 | H20: 0 | I20: 0
B21: spotřeba center | C21: 0 | D21: 0 | F21: 0 | G21: 0 | H21: 0 | I21: 0
A22: 3 | B22: SZM | C22: 223908 | D22: 28214.38936 | F22: 40234.25351 | G22: 37318 | H22: 68955.53404 | I22: 31637.53404
B23: z toho: implantáty-kardiostim. | C23: 24137 | D23: 3923.34707 | F23: 117.90039 | G23: 4022.833333 | H23: 1003.80552 | I23: -3019.027813
B24: implantáty-defibrilátory | C24: 110202 | D24: 5321.85944 | F24: 27789.99947 | G24: 18367 | H24: 45489.99847 | I24: 27122.99847
B25: implantáty-TEP | C25: 0 | D25: 0 | F25: 0 | G25: 0 | H25: 0 | I25: 0
A26: 4 | B26: Všeobecný materiál | C26: 1216 | D26: 178.42653 | F26: 166.95308 | G26: 202.6666667 | H26: 309.75796 | I26: 107.0912933
A27: 5 | B27: Osobní náklady (OsN) | C27: 53142 | D27: 7898.61696 | F27: 4709.5048 | G27: 8857 | H27: 9512.62183 | I27: 655.62183
B28: z toho: hrubé mzdy | C28: 39073 | D28: 5806.497 | F28: 3462.069 | G28: 6512.166667 | H28: 6991.714 | I28: 479.5473333
A29: výnosové ukazatele
A30: 6 | B30: Přímé výnosy (PN) | C30: 314675 | D30: 27494.06 | F30: 40149.37636 | G30: 52445.83333 | H30: 81963.7984 | I30: 29517.96507
A31: 7 | B31: Výnosy ZP vč. agreg.V | C31: 312457 | D31: 27165.19845 | F31: 39101.31062 | G31: 52076.16667 | H31: 80586.86045 | I31: 28510.69378
A32: 8 | B32: ZUM, ZUL - limity | C32: 222242.639 | D32: 3774.5505 | F32: 32875.82511 | G32: =C32/12*MONTH(dat_do) -> 37040.43983 | H32: 40220.5989 | I32: 3180.159067
A33: ostatní ukazatele
A34: 9 | B34: Body vč.agregovaných výkonů | C34: 101575.374 | D34: 11232.928 | F34: 8397.157 | G34: =C34/12*MONTH(dat_do) -> 16929.229 | H34: 15275.864 | I34: =H34-G34 -> -1653.365
A36: Poměrné ukazatale:
A37: 1 | B37: nákladová hodnota bodu-Ncelkem | C37: =C12/C34 -> 3.122430049 | D37: =D12/D34 -> 3.973684613 | F37: =F12/F34 -> 5.817620797 | G37: =G12/G34 -> 3.122430049 | H37: =H12/H34 -> 5.620127024
A38: 2 | B38: výnosová hodnota bodu - V celkem | C38: =C18/C34 -> 3.026954151 | D38: =D13/D34 -> 2.434695498 | F38: =F13/F34 -> 4.76905903 | G38: =G13/G34 -> 3.086023587 | H38: =H13/H34 -> 5.351186336
A39: 3 | B39: podíl OsN na celkových nákl. % | C39: =C27/C12% -> 16.75547512 | D39: =D27/D12% -> 17.69557518 | F39: =F27/F12% -> 9.640455648 | G39: =G27/G12% -> 16.75547512 | H39: =H27/H12% -> 11.08021831
A42: Zpracoval: oddělení ekonomických činností

Sheet 0172
A1: Pracoviště: 0172 Katetrizační sál
A3: =CONCATENATE("Základní ukazatele hospodaření na rok ",YEAR(dat_do)," (v tis.)") -> Základní ukazatele hospodaření na rok 2010 (v tis.)
G6: Vyhodnocení aktuálního období :
H7: =CONCATENATE("1 - ",MONTH(dat_do)," / ",YEAR(dat_do)) -> 1 - 2 / 2010
C8: A | D8: B | F8: C | G8: D | H8: E
C9: Rozpočet | D9: Skutečnost | F9: Skutečnost | G9: Rozpočet | H9: Skutečnost | I9: Rozdíl
C10: (limit) | D10: za | F10: za | G10: za | H10: za | I10: E - D
A11: Souhrnné ukazatele: | C11: =YEAR(dat_do) -> 2010 | D11: =CONCATENATE("1-",MONTH(dat_do),"/",YEAR(dat_do)-1) -> 1-2/2009 | F11: =CONCATENATE(MONTH(dat_do),"/",YEAR(dat_do)) -> 2/2010 | G11: =CONCATENATE("1-",MONTH(dat_do),"/",YEAR(dat_do)) -> 1-2/2010 | H11: =CONCATENATE("1-",MONTH(dat_do),"/",YEAR(dat_do)) -> 1-2/2010
A12: 1 | B12: Náklady celkem (N) | C12: 93297 | D12: 21344.5932 | F12: 10143.16783 | G12: 15549.5 | H12: 20303.17737 | I12: =H12-G12 -> 4753.67737
A13: 2 | B13: Výnosy celkem (V) | C13: 108324 | D13: 2249.6043 | F13: 9368.065 | G13: 18054 | H13: 24096.1458 | I13: =H13-G13 -> 6042.1458
A14: 3 | B14: Hospodářský výsledek (HV) | C14: =C13-C12 -> 15027 | D14: =D13-D12 -> -19094.9889 | F14: =F13-F12 -> -775.10283 | G14: =G13-G12 -> 2504.5 | H14: =H13-H12 -> 3792.96843
A16: Dílčí sledované ukazatele:
A17: nákladové ukazatele
A18: 1 | B18: Přímé náklady (PN) | C18: 91742 | D18: 21063.3152 | F18: 10010.32479 | G18: 15290.33333 | H18: 20034.48537 | I18: =H18-G18 -> 4744.152037
A19: 2 | B19: Léky | C19: 5542 | D19: 1205.73435 | F19: 368.38546 | G19: 923.6666667 | H19: 742.50458 | I19: -181.1620867
B20: z toho: vliv lékové vyhlášky | C20: 0 | D20: 0 | F20: 0 | G20: 0 | H20: 0 | I20: 0
B21: spotřeba center | C21: 0 | D21: 0 | F21: 0 | G21: 0 | H21: 0 | I21: 0
A22: 3 | B22: SZM | C22: 74025 | D22: 15526.59537 | F22: 8578.10698 | G22: 12337.5 | H22: 17231.8599 | I22: 4894.3599
B23: z toho: implantáty-kardiostim. | C23: 0 | D23: 0 | F23: 0 | G23: 0 | H23: 0 | I23: 0
B24: implantáty-defibrilátory | C24: 0 | D24: 0 | F24: 0 | G24: 0 | H24: 0 | I24: 0
B25: implantáty-TEP | C25: 0 | D25: 0 | F25: 0 | G25: 0 | H25: 0 | I25: 0
A26: 4 | B26: Všeobecný materiál | C26: 132 | D26: 15.57403 | F26: 26.79355 | G26: 22 | H26: 70.65534 | I26: 48.65534
A27: 5 | B27: Osobní náklady (OsN) | C27: 9363 | D27: 1440.62762 | F27: 751.83022 | G27: 1560.5 | H27: 1522.12759 | I27: -38.37241
B28: z toho: hrubé mzdy | C28: 6884 | D28: 1059.285 | F28: 552.816 | G28: 1147.333333 | H28: 1119.21 | I28: -28.12333333
A29: výnosové ukazatele
A30: 6 | B30: Přímé výnosy (PN) | C30: 108324 | D30: 2249.6043 | F30: 9368.065 | G30: 18054 | H30: 24096.1458 | I30: 6042.1458
A31: 7 | B31: Výnosy ZP vč. agreg.V | C31: 108061 | D31: 2225.66116 | F31: 9235.9297 | G31: 18010.16667 | H31: 23963.9565 | I31: 5953.789833
A32: 8 | B32: ZUM, ZUL - limity | D32: 221.5531 | F32: 7232.82972 | G32: =C32/12*MONTH(dat_do) -> 0 | H32: 13589.2507 | I32: 13589.2507
A33: ostatní ukazatele
A34: 9 | B34: Body vč.agregovaných výkonů | D34: 2124.663 | F34: 2869.955 | G34: =C34/12*MONTH(dat_do) -> 0 | H34: 5555.019 | I34: =H34-G34 -> 5555.019
A36: Poměrné ukazatale:
A37: 1 | B37: nákladová hodnota bodu-Ncelkem | C37: =C12/C34 ->  | D37: =D12/D34 -> 10.04610764 | F37: =F12/F34 -> 3.534260234 | G37: =G12/G34 ->  | H37: =H12/H34 -> 3.654924919
A38: 2 | B38: výnosová hodnota bodu - V celkem | C38: =C18/C34 ->  | D38: =D13/D34 -> 1.058805232 | F38: =F13/F34 -> 3.264185327 | G38: =G13/G34 ->  | H38: =H13/H34 -> 4.337725181
A39: 3 | B39: podíl OsN na celkových nákl. % | C39: =C27/C12% -> 10.03569247 | D39: =D27/D12% -> 6.749379604 | F39: =F27/F12% -> 7.412183576 | G39: =G27/G12% -> 10.03569247 | H39: =H27/H12% -> 7.496992034
A42: Zpracoval: oddělení ekonomických činností

Sheet 01 bez 0172
A1: Pracoviště: 01 I. Interní klinika bez katetrizačního sálu
A3: =CONCATENATE("Základní ukazatele hospodaření na rok ",YEAR(dat_do)," (v tis.)") -> Základní ukazatele hospodaření na rok 2010 (v tis.)
G6: Vyhodnocení aktuálního období :
H7: =CONCATENATE("1 - ",MONTH(dat_do)," / ",YEAR(dat_do)) -> 1 - 2 / 2010
C8: A | D8: B | F8: C | G8: D | H8: E
C9: Rozpočet | D9: Skutečnost | F9: Skutečnost | G9: Rozpočet | H9: Skutečnost | I9: Rozdíl
C10: (limit) | D10: za | F10: za | G10: za | H10: za | I10: E - D
A11: Souhrnné ukazatele: | C11: =YEAR(dat_do) -> 2010 | D11: =CONCATENATE("1-",MONTH(dat_do),"/",YEAR(dat_do)-1) -> 1-2/2009 | F11: =CONCATENATE(MONTH(dat_do),"/",YEAR(dat_do)) -> 2/2010 | G11: =CONCATENATE("1-",MONTH(dat_do),"/",YEAR(dat_do)) -> 1-2/2010 | H11: =CONCATENATE("1-",MONTH(dat_do),"/",YEAR(dat_do)) -> 1-2/2010
A12: 1 | B12: Náklady celkem (N) | C12: =Klin01_souhrn_ukaz-Klin0172_souhrn_ukaz -> 223865 | D12: ='01'!D12-'0172'!D12 -> 23291.51995 | F12: ='01'!F12-'0172'!F12 -> 38708.30737 | G12: ='01'!G12-'0172'!G12 -> 37310.83333 | H12: ='01'!H12-'0172'!H12 -> 65549.11871 | I12: =H12-G12 -> 28238.28538
A13: 2 | B13: Výnosy celkem (V) | C13: ='01'!C13-'0172'!C13 -> 205140 | D13: ='01'!D13-'0172'!D13 -> 25099.15493 | F13: ='01'!F13-'0172'!F13 -> 30678.47242 | G13: ='01'!G13-'0172'!G13 -> 34190 | H13: ='01'!H13-'0172'!H13 -> 57647.8489 | I13: =H13-G13 -> 23457.8489
A14: 3 | B14: Hospodářský výsledek (HV) | C14: =C13-C12 -> -18725 | D14: =D13-D12 -> 1807.63498 | F14: =F13-F12 -> -8029.83495 | G14: =G13-G12 -> -3120.833333 | H14: =H13-H12 -> -7901.26981
A16: Dílčí sledované ukazatele:
A17: nákladové ukazatele
A18: 1 | B18: Přímé náklady (PN) | C18: ='01'!C18-'0172'!C18 -> 215722 | D18: ='01'!D18-'0172'!D18 -> 21900.19777 | F18: ='01'!F18-'0172'!F18 -> 37957.82454 | G18: ='01'!G18-'0172'!G18 -> 35953.66667 | H18: ='01'!H18-'0172'!H18 -> 64073.69769 | I18: =H18-G18 -> 28120.03102
A19: 2 | B19: Léky | C19: ='01'!C19-'0172'!C19 -> 5051 | D19: ='01'!D19-'0172'!D19 -> 681.85719 | F19: ='01'!F19-'0172'!F19 -> 578.26275 | G19: ='01'!G19-'0172'!G19 -> 841.8333333 | H19: ='01'!H19-'0172'!H19 -> 995.12279 | I19: 153.2894567
B20: z toho: vliv lékové vyhlášky | C20: ='01'!C20-'0172'!C20 -> 0 | D20: ='01'!D20-'0172'!D20 -> 0 | F20: ='01'!F20-'0172'!F20 -> 0 | G20: ='01'!G20-'0172'!G20 -> 0 | H20: ='01'!H20-'0172'!H20 -> 0 | I20: 0
B21: spotřeba center | C21: ='01'!C21-'0172'!C21 -> 0 | D21: ='01'!D21-'0172'!D21 -> 0 | F21: ='01'!F21-'0172'!F21 -> 0 | G21: ='01'!G21-'0172'!G21 -> 0 | H21: ='01'!H21-'0172'!H21 -> 0 | I21: 0
A22: 3 | B22: SZM | C22: ='01'!C22-'0172'!C22 -> 149883 | D22: ='01'!D22-'0172'!D22 -> 12687.79399 | F22: ='01'!F22-'0172'!F22 -> 31656.14653 | G22: ='01'!G22-'0172'!G22 -> 24980.5 | H22: ='01'!H22-'0172'!H22 -> 51723.67414 | I22: 26743.17414
B23: z toho: implantáty-kardiostim. | C23: ='01'!C23-'0172'!C23 -> 24137 | D23: ='01'!D23-'0172'!D23 -> 3923.34707 | F23: ='01'!F23-'0172'!F23 -> 117.90039 | G23: ='01'!G23-'0172'!G23 -> 4022.833333 | H23: ='01'!H23-'0172'!H23 -> 1003.80552 | I23: -3019.027813
B24: implantáty-defibrilátory | C24: ='01'!C24-'0172'!C24 -> 110202 | D24: ='01'!D24-'0172'!D24 -> 5321.85944 | F24: ='01'!F24-'0172'!F24 -> 27789.99947 | G24: ='01'!G24-'0172'!G24 -> 18367 | H24: ='01'!H24-'0172'!H24 -> 45489.99847 | I24: 27122.99847
B25: implantáty-TEP | C25: ='01'!C25-'0172'!C25 -> 0 | D25: ='01'!D25-'0172'!D25 -> 0 | F25: ='01'!F25-'0172'!F25 -> 0 | G25: ='01'!G25-'0172'!G25 -> 0 | H25: ='01'!H25-'0172'!H25 -> 0 | I25: 0
A26: 4 | B26: Všeobecný materiál | C26: ='01'!C26-'0172'!C26 -> 1084 | D26: ='01'!D26-'0172'!D26 -> 162.8525 | F26: ='01'!F26-'0172'!F26 -> 140.15953 | G26: ='01'!G26-'0172'!G26 -> 180.6666667 | H26: ='01'!H26-'0172'!H26 -> 239.10262 | I26: 58.43595333
A27: 5 | B27: Osobní náklady (OsN) | C27: ='01'!C27-'0172'!C27 -> 43779 | D27: ='01'!D27-'0172'!D27 -> 6457.98934 | F27: ='01'!F27-'0172'!F27 -> 3957.67458 | G27: ='01'!G27-'0172'!G27 -> 7296.5 | H27: ='01'!H27-'0172'!H27 -> 7990.49424 | I27: 693.99424
B28: z toho: hrubé mzdy | C28: ='01'!C28-'0172'!C28 -> 32189 | D28: ='01'!D28-'0172'!D28 -> 4747.212 | F28: ='01'!F28-'0172'!F28 -> 2909.253 | G28: ='01'!G28-'0172'!G28 -> 5364.833333 | H28: ='01'!H28-'0172'!H28 -> 5872.504 | I28: 507.6706667
A29: výnosové ukazatele
A30: 6 | B30: Přímé výnosy (PN) | C30: ='01'!C30-'0172'!C30 -> 206351 | D30: ='01'!D30-'0172'!D30 -> 25244.4557 | F30: ='01'!F30-'0172'!F30 -> 30781.31136 | G30: ='01'!G30-'0172'!G30 -> 34391.83333 | H30: ='01'!H30-'0172'!H30 -> 57867.6526 | I30: 23475.81927
A31: 7 | B31: Výnosy ZP vč. agreg.V | C31: ='01'!C31-'0172'!C31 -> 204396 | D31: ='01'!D31-'0172'!D31 -> 24939.53729 | F31: ='01'!F31-'0172'!F31 -> 29865.38092 | G31: ='01'!G31-'0172'!G31 -> 34066 | H31: ='01'!H31-'0172'!H31 -> 56622.90395 | I31: 22556.90395
A32: 8 | B32: ZUM, ZUL - limity | C32: ='01'!C32-'0172'!C32 -> 222242.639 | D32: ='01'!D32-'0172'!D32 -> 3552.9974 | F32: ='01'!F32-'0172'!F32 -> 25642.99539 | G32: =C32/12*MONTH(dat_do) -> 37040.43983 | H32: ='01'!H32-'0172'!H32 -> 26631.3482 | I32: -10409.09163
A33: ostatní ukazatele
A34: 9 | B34: Body vč.agregovaných výkonů | C34: ='01'!C34-'0172'!C34 -> 101575.374 | D34: ='01'!D34-'0172'!D34 -> 9108.265 | F34: ='01'!F34-'0172'!F34 -> 5527.202 | G34: =C34/12*MONTH(dat_do) -> 16929.229 | H34: ='01'!H34-'0172'!H34 -> 9720.845 | I34: =H34-G34 -> -7208.384
A36: Poměrné ukazatale:
A37: 1 | B37: nákladová hodnota bodu-Ncelkem | C37: =C12/C34 -> 2.203929862 | D37: =D12/D34 -> 2.557185144 | F37: =F12/F34 -> 7.003237329 | G37: =G12/G34 -> 2.203929862 | H37: =H12/H34 -> 6.743150283
A38: 2 | B38: výnosová hodnota bodu - V celkem | C38: =C18/C34 -> 2.123762793 | D38: =D13/D34 -> 2.755646101 | F38: =F13/F34 -> 5.550452547 | G38: =G13/G34 -> 2.019583999 | H38: =H13/H34 -> 5.930333104
A39: 3 | B39: podíl OsN na celkových nákl. % | C39: =C27/C12% -> 19.5559824 | D39: =D27/D12% -> 27.72678363 | F39: =F27/F12% -> 10.22435453 | G39: =G27/G12% -> 19.5559824 | H39: =H27/H12% -> 12.19008645
A42: Zpracoval: oddělení ekonomických činností

Sheet 02
A1: Pracoviště: 02 II. Interní klinika
A3: =CONCATENATE("Základní ukazatele hospodaření na rok ",YEAR(dat_do)," (v tis.)") -> Základní ukazatele hospodaření na rok 2010 (v tis.)
G6: Vyhodnocení aktuálního období :
H7: =CONCATENATE("1 - ",MONTH(dat_do)," / ",YEAR(dat_do)) -> 1 - 2 / 2010
C8: A | D8: B | F8: C | G8: D | H8: E
C9: Rozpočet | D9: Skutečnost | F9: Skutečnost | G9: Rozpočet | H9: Skutečnost | I9: Rozdíl
C10: (limit) | D10: za | F10: za | G10: za | H10: za | I10: E - D
A11: Souhrnné ukazatele: | C11: =YEAR(dat_do) -> 2010 | D11: =CONCATENATE("1-",MONTH(dat_do),"/",YEAR(dat_do)-1) -> 1-2/2009 | F11: =CONCATENATE(MONTH(dat_do),"/",YEAR(dat_do)) -> 2/2010 | G11: =CONCATENATE("1-",MONTH(dat_do),"/",YEAR(dat_do)) -> 1-2/2010 | H11: =CONCATENATE("1-",MONTH(dat_do),"/",YEAR(dat_do)) -> 1-2/2010
A12: 1 | B12: Náklady celkem (N) | C12: 86161 | D12: 12675.66883 | F12: 8091.40025 | G12: 14360.16667 | H12: 15707.80787 | I12: =H12-G12 -> 1347.641203
A13: 2 | B13: Výnosy celkem (V) | C13: 67849 | D13: 12034.68387 | F13: 5882.30635 | G13: 11308.16667 | H13: 12235.5814 | I13: =H13-G13 -> 927.4147333
A14: 3 | B14: Hospodářský výsledek (HV) | C14: =C13-C12 -> -18312 | D14: =D13-D12 -> -640.98496 | F14: =F13-F12 -> -2209.0939 | G14: =G13-G12 -> -3052 | H14: =H13-H12 -> -3472.22647
A16: Dílčí sledované ukazatele:
A17: nákladové ukazatele
A18: 1 | B18: Přímé náklady (PN) | C18: 78142 | D18: 11517.31793 | F18: 7393.69315 | G18: 13023.66667 | H18: 14304.18822 | I18: =H18-G18 -> 1280.521553
A19: 2 | B19: Léky | C19: 25584 | D19: 3728.936 | F19: 2398.31233 | G19: 4264 | H19: 4565.88621 | I19: 301.88621
B20: z toho: vliv lékové vyhlášky | C20: 1617 | D20: 249.80772 | F20: 121.26779 | G20: 269.5 | H20: 228.98393 | I20: =H20-G20 -> -40.51607
B21: spotřeba center | C21: 16022 | D21: 2270.00253 | F21: 1598.49677 | G21: 2670.333333 | H21: 2820.77898 | I21: =H21-G21 -> 150.4456467
A22: 3 | B22: SZM | C22: 3863 | D22: 734.27116 | F22: 313.3106 | G22: 643.8333333 | H22: 647.9913 | I22: 4.157966667
B23: z toho: implantáty-kardiostim. | C23: 0 | D23: 0 | F23: 0 | G23: 0 | H23: 0 | I23: 0
B24: implantáty-defibrilátory | C24: 0 | D24: 0 | F24: 0 | G24: 0 | H24: 0 | I24: 0
B25: implantáty-TEP | C25: 0 | D25: 0 | F25: 0 | G25: 0 | H25: 0 | I25: 0
A26: 4 | B26: Všeobecný materiál | C26: 967 | D26: 196.35992 | F26: 67.77194 | G26: 161.1666667 | H26: 153.4315 | I26: -7.735166667
A27: 5 | B27: Osobní náklady (OsN) | C27: 35448 | D27: 5124.93277 | F27: 3037.73957 | G27: 5908 | H27: 6128.96657 | I27: 220.96657
B28: z toho: hrubé mzdy | C28: 26063 | D28: 3768.398 | F28: 2227.853 | G28: 4343.833333 | H28: 4501.302 | I28: 157.4686667
A29: výnosové ukazatele
A30: 6 | B30: Přímé výnosy (PV) | C30: 70480 | D30: 12347.68159 | F30: 6131.58433 | G30: 11746.66667 | H30: 12819.81364 | I30: 1073.146973
A31: 7 | B31: Výnosy ZP vč. agreg.V | C31: 66751 | D31: 11805.61467 | F31: 5279.71909 | G31: 11125.16667 | H31: 11599.59947 | I31: 474.4328033
A32: 8 | B32: ZUM, ZUL - limity | C32: 25205.379 | D32: 3505.17301 | F32: 1963.74709 | G32: =C32/12*MONTH(dat_do) -> 4200.8965 | H32: 4168.1696 | I32: -32.7269
A33: ostataní ukazatele
A34: 9 | B34: Body vč.agregovaných výkonů | C34: 46869.482 | D34: 7283.711 | F34: 3808.99 | G34: =C34/12*MONTH(dat_do) -> 7811.580333 | H34: 7146.589 | I34: -664.9913333
A36: Poměrné ukazatale:
A37: 1 | B37: nákladová hodnota bodu-Ncelkem | C37: =C12/C34 -> 1.838317735 | D37: =D12/D34 -> 1.74027619 | F37: =F12/F34 -> 2.124290232 | G37: =G12/G34 -> 1.838317735 | H37: =H12/H34 -> 2.197944764
A38: 2 | B38: výnosová hodnota bodu V celkem | C38: =C18/C34 -> 1.667225595 | D38: =D13/D34 -> 1.652273665 | F38: =F13/F34 -> 1.544321815 | G38: =G13/G34 -> 1.447615743 | H38: =H13/H34 -> 1.712086899
A39: 3 | B39: podíl OsN na celkových nákl. % | C39: =C27/C12% -> 41.14158378 | D39: =D27/D12% -> 40.43126117 | F39: =F27/F12% -> 37.54281677 | G39: =G27/G12% -> 41.14158378 | H39: =H27/H12% -> 39.01859904
A42: Zpracoval: oddělení ekonomických činností

Sheet 03
A1: Pracoviště: 03 III. Interní klinika
A3: =CONCATENATE("Základní ukazatele hospodaření na rok ",YEAR(dat_do)," (v tis.)") -> Základní ukazatele hospodaření na rok 2010 (v tis.)
G6: Vyhodnocení aktuálního období :
H7: =CONCATENATE("1 - ",MONTH(dat_do)," / ",YEAR(dat_do)) -> 1 - 2 / 2010
C8: A | D8: B | F8: C | G8: D | H8: E
C9: Rozpočet | D9: Skutečnost | F9: Skutečnost | G9: Rozpočet | H9: Skutečnost | I9: Rozdíl
C10: (limit) | D10: za | F10: za | G10: za | H10: za | I10: E - D
A11: Souhrnné ukazatele: | C11: =YEAR(dat_do) -> 2010 | D11: =CONCATENATE("1-",MONTH(dat_do),"/",YEAR(dat_do)-1) -> 1-2/2009 | F11: =CONCATENATE(MONTH(dat_do),"/",YEAR(dat_do)) -> 2/2010 | G11: =CONCATENATE("1-",MONTH(dat_do),"/",YEAR(dat_do)) -> 1-2/2010 | H11: =CONCATENATE("1-",MONTH(dat_do),"/",YEAR(dat_do)) -> 1-2/2010
A12: 1 | B12: Náklady celkem (N) | C12: 201327 | D12: 26637.32623 | F12: 16663.48691 | G12: 33554.5 | H12: 35813.61693 | I12: =H12-G12 -> 2259.11693
A13: 2 | B13: Výnosy celkem (V) | C13: 201204 | D13: 30532.45845 | F13: 15861.65079 | G13: 33534 | H13: 34462.42408 | I13: =H13-G13 -> 928.42408
A14: 3 | B14: Hospodářský výsledek (HV) | C14: =C13-C12 -> -123 | D14: =D13-D12 -> 3895.13222 | F14: =F13-F12 -> -801.83612 | G14: =G13-G12 -> -20.5 | H14: =H13-H12 -> -1351.19285
A16: Dílčí sledované ukazatele:
A17: nákladové ukazatele
A18: 1 | B18: Přímé náklady (PN) | C18: 189962 | D18: 24814.37851 | F18: 15681.60224 | G18: 31660.33333 | H18: 33881.50376 | I18: =H18-G18 -> 2221.170427
A19: 2 | B19: Léky | C19: 104738 | D19: 11823.12971 | F19: 8293.33305 | G19: 17456.33333 | H19: 19066.65807 | I19: 1610.324737
B20: z toho: vliv lékové vyhlášky | C20: 12045 | D20: 1852.86855 | F20: 628.29477 | G20: 2007.5 | H20: 728.16099 | I20: =H20-G20 -> -1279.33901
B21: spotřeba center | C21: 75676 | D21: 7058.70625 | F21: 6234.19295 | G21: 12612.66667 | H21: 15750.89346 | I21: =H21-G21 -> 3138.226793
A22: 3 | B22: SZM | C22: 15766 | D22: 2860.19407 | F22: 1680.15809 | G22: 2627.666667 | H22: 3129.04537 | I22: 501.3787033
B23: z toho: implantáty-kardiostim. | C23: 0 | D23: 0 | F23: 0 | G23: 0 | H23: 0 | I23: 0
B24: implantáty-defibrilátory | C24: 0 | D24: 0 | F24: 0 | G24: 0 | H24: 0 | I24: 0
B25: implantáty-TEP | C25: 0 | D25: 0 | F25: 0 | G25: 0 | H25: 0 | I25: 0
A26: 4 | B26: Všeobecný materiál | C26: 1298 | D26: 244.79803 | F26: 110.83068 | G26: 216.3333333 | H26: 195.7575 | I26: -20.57583333
A27: 5 | B27: Osobní náklady (OsN) | C27: 55281 | D27: 7823.08514 | F27: 4480.98594 | G27: 9213.5 | H27: 9079.77504 | I27: -133.72496
B28: z toho: hrubé mzdy | C28: 40647 | D28: 5737.422 | F28: 3293.09 | G28: 6774.5 | H28: 6671.373 | I28: -103.127
A29: výnosové ukazatele
A30: 6 | B30: Přímé výnosy (PV) | C30: 203795 | D30: 30857.00812 | F30: 16073.86457 | G30: 33965.83333 | H30: 34904.17229 | I30: 938.3389567
A31: 7 | B31: Výnosy ZP vč. agreg.V | C31: 200427 | D31: 30422.13586 | F31: 15550.92537 | G31: 33404.5 | H31: 34087.96548 | I31: 683.46548
A32: 8 | B32: ZUM, ZUL - limity | C32: 106482.885 | D32: 13059.90509 | F32: 9585.70754 | G32: =C32/12*MONTH(dat_do) -> 17747.1475 | H32: 19076.98308 | I32: 1329.83558
A33: ostatní ukazatele
A34: 9 | B34: Body vč.agregovaných výkonů | C34: 104367.68 | D34: 16556.512 | F34: 8084.217 | G34: =C34/12*MONTH(dat_do) -> 17394.61333 | H34: 15831.939 | I34: -1562.674333
A36: Poměrné ukazatale:
A37: 1 | B37: nákladová hodnota bodu-Ncelkem | C37: =C12/C34 -> 1.929016722 | D37: =D12/D34 -> 1.608873066 | F37: =F12/F34 -> 2.061236965 | G37: =G12/G34 -> 1.929016722 | H37: =H12/H34 -> 2.262111857
A38: 2 | B38: výnosová hodnota bodu - V celkem | C38: =C18/C34 -> 1.820122858 | D38: =D13/D34 -> 1.844135918 | F38: =F13/F34 -> 1.962051586 | G38: =G13/G34 -> 1.927838197 | H38: =H13/H34 -> 2.176765845
A39: 3 | B39: podíl OsN na celkových nákl. % | C39: =C27/C12% -> 27.45831409 | D39: =D27/D12% -> 29.36888287 | F39: =F27/F12% -> 26.89104606 | G39: =G27/G12% -> 27.45831409 | H39: =H27/H12% -> 25.35285687
A42: Zpracoval: oddělení ekonomických činností

Sheet 04
A1: Pracoviště: 04 I. Chirurgická klinika
A3: =CONCATENATE("Základní ukazatele hospodaření na rok ",YEAR(dat_do)," (v tis.)") -> Základní ukazatele hospodaření na rok 2010 (v tis.)
G6: Vyhodnocení aktuálního období :
H7: =CONCATENATE("1 - ",MONTH(dat_do)," / ",YEAR(dat_do)) -> 1 - 2 / 2010
C8: A | D8: B | F8: C | G8: D | H8: E
C9: Rozpočet | D9: Skutečnost | F9: Skutečnost | G9: Rozpočet | H9: Skutečnost | I9: Rozdíl
C10: (limit) | D10: za | F10: za | G10: za | H10: za | I10: E - D
A11: Souhrnné ukazatele: | C11: =YEAR(dat_do) -> 2010 | D11: =CONCATENATE("1-",MONTH(dat_do),"/",YEAR(dat_do)-1) -> 1-2/2009 | F11: =CONCATENATE(MONTH(dat_do),"/",YEAR(dat_do)) -> 2/2010 | G11: =CONCATENATE("1-",MONTH(dat_do),"/",YEAR(dat_do)) -> 1-2/2010 | H11: =CONCATENATE("1-",MONTH(dat_do),"/",YEAR(dat_do)) -> 1-2/2010
A12: 1 | B12: Náklady celkem (N) | C12: 112344 | D12: 17443.95376 | F12: 8999.38429 | G12: 18724 | H12: 19026.42748 | I12: =H12-G12 -> 302.42748
A13: 2 | B13: Výnosy celkem (V) | C13: 85663 | D13: 16850.14385 | F13: 5957.93227 | G13: 14277.16667 | H13: 13372.81831 | I13: =H13-G13 -> -904.3483567
A14: 3 | B14: Hospodářský výsledek (HV) | C14: =C13-C12 -> -26681 | D14: =D13-D12 -> -593.80991 | F14: =F13-F12 -> -3041.45202 | G14: =G13-G12 -> -4446.833333 | H14: =H13-H12 -> -5653.60917
A16: Dílčí sledované ukazatele:
A17: nákladové ukazatele:
A18: 1 | B18: Přímé náklady (PN) | C18: 102392 | D18: 15767.70946 | F18: 8117.18211 | G18: 17065.33333 | H18: 17275.17497 | I18: =H18-G18 -> 209.8416367
A19: 2 | B19: Léky | C19: 10033 | D19: 1331.52906 | F19: 673.27375 | G19: 1672.166667 | H19: 1292.45247 | I19: -379.7141967
B20: z toho: vliv lékové vyhlášky | C20: 0 | D20: 0 | F20: 0 | G20: 0 | H20: 0 | I20: =H20-G20 -> 0
B21: spotřeba center | C21: 0 | D21: 0 | F21: 0 | G21: 0 | H21: 0 | I21: =H21-G21 -> 0
A22: 3 | B22: SZM | C22: 19500 | D22: 2964.60344 | F22: 1533.40124 | G22: 3250 | H22: 3612.99623 | I22: 362.99623
B23: z toho: implantáty-kardiostim. | C23: 0 | D23: 0 | F23: 0 | G23: 0 | H23: 0 | I23: 0
B24: implantáty-defibrilátory | C24: 0 | D24: 0 | F24: 0 | G24: 0 | H24: 0 | I24: 0
B25: implantáty-TEP | C25: 0 | D25: 0 | F25: 0 | G25: 0 | H25: 0 | I25: 0
A26: 4 | B26: Všeobecný materiál | C26: 902 | D26: 134.17214 | F26: 75.8347 | G26: 150.3333333 | H26: 154.35479 | I26: 4.021456667
A27: 5 | B27: Osobní náklady (OsN) | C27: 57586 | D27: 9117.29516 | F27: 4802.28416 | G27: 9597.666667 | H27: 9888.87939 | I27: 291.2127233
B28: z toho: hrubé mzdy | C28: 42344 | D28: 6703.34 | F28: 3527.021 | G28: 7057.333333 | H28: 7262.723 | I28: 205.3896667
A29: výnosové ukazatele:
A30: 6 | B30: Přímé výnosy (PV) | C30: 87271 | D30: 16998.03303 | F30: 6061.90735 | G30: 14545.16667 | H30: 13589.67186 | I30: -955.4948067
A31: 7 | B31: Výnosy ZP vč. agreg.V | C31: 84656 | D31: 16792.84398 | F31: 5926.62696 | G31: 14109.33333 | H31: 13338.9817 | I31: -770.3516333
A32: 8 | B32: ZUM, ZUL - limity | C32: 22055.779 | D32: 1911.07291 | F32: 1173.22891 | G32: =C32/12*MONTH(dat_do) -> 3675.963167 | H32: 2029.09168 | I32: -1646.871487
A33: ostatní ukazatele
A34: 9 | B34: Body vč.agregovaných výkonů | C34: 70799.659 | D34: 7061.152 | F34: 5392.978 | G34: =C34/12*MONTH(dat_do) -> 11799.94317 | H34: 8187.513 | I34: -3612.430167
A36: Poměrné ukazatale:
A37: 1 | B37: nákladová hodnota bodu-Ncelkem | C37: =C12/C34 -> 1.586787304 | D37: =D12/D34 -> 2.470411876 | F37: =F12/F34 -> 1.668722604 | G37: =G12/G34 -> 1.586787304 | H37: =H12/H34 -> 2.323834781
A38: 2 | B38: výnosová hodnota bodu - V celkem | C38: =C18/C34 -> 1.446221655 | D38: =D13/D34 -> 2.386316546 | F38: =F13/F34 -> 1.104757385 | G38: =G13/G34 -> 1.209935206 | H38: =H13/H34 -> 1.633318727
A39: 3 | B39: podíl OsN na celkových nákl. % | C39: =C27/C12% -> 51.25863419 | D39: =D27/D12% -> 52.26621949 | F39: =F27/F12% -> 53.36236353 | G39: =G27/G12% -> 51.25863419 | H39: =H27/H12% -> 51.97444134
A42: Zpracoval: oddělení ekonomických činností

Sheet 05
A1: Pracoviště: 05 II. Chirurgická klinika
A3: =CONCATENATE("Základní ukazatele hospodaření na rok ",YEAR(dat_do)," (v tis.)") -> Základní ukazatele hospodaření na rok 2010 (v tis.)
G6: Vyhodnocení aktuálního období :
H7: =CONCATENATE("1 - ",MONTH(dat_do)," / ",YEAR(dat_do)) -> 1 - 2 / 2010
C8: A | D8: B | F8: C | G8: D | H8: E
C9: Rozpočet | D9: Skutečnost | F9: Skutečnost | G9: Rozpočet | H9: Skutečnost | I9: Rozdíl
C10: (limit) | D10: za | F10: za | G10: za | H10: za | I10: E - D
A11: Souhrnné ukazatele: | C11: =YEAR(dat_do) -> 2010 | D11: =CONCATENATE("1-",MONTH(dat_do),"/",YEAR(dat_do)-1) -> 1-2/2009 | F11: =CONCATENATE(MONTH(dat_do),"/",YEAR(dat_do)) -> 2/2010 | G11: =CONCATENATE("1-",MONTH(dat_do),"/",YEAR(dat_do)) -> 1-2/2010 | H11: =CONCATENATE("1-",MONTH(dat_do),"/",YEAR(dat_do)) -> 1-2/2010
A12: 1 | B12: Náklady celkem (N) | C12: 44058 | D12: 6062.37086 | F12: 3848.25516 | G12: 7343 | H12: 6809.00287 | I12: =H12-G12 -> -533.99713
A13: 2 | B13: Výnosy celkem (V) | C13: 39441 | D13: 6276.55917 | F13: 2731.70873 | G13: 6573.5 | H13: 5050.29576 | I13: =H13-G13 -> -1523.20424
A14: 3 | B14: Hospodářský výsledek (HV) | C14: =C13-C12 -> -4617 | D14: =D13-D12 -> 214.18831 | F14: =F13-F12 -> -1116.54643 | G14: =G13-G12 -> -769.5 | H14: =H13-H12 -> -1758.70711
A16: Dílčí sledované ukazatele:
A17: nákladové ukazatele:
A18: 1 | B18: Přímé náklady (PN) | C18: 40056 | D18: 5442.16255 | F18: 3468.71456 | G18: 6676 | H18: 6096.49254 | I18: =H18-G18 -> -579.50746
A19: 2 | B19: Léky | C19: 4652 | D19: 702.46696 | F19: 364.80066 | G19: 775.3333333 | H19: 562.20712 | I19: -213.1262133
B20: z toho: vliv lékové vyhlášky | C20: 1202 | D20: 265.42622 | F20: 115.85713 | G20: 200.3333333 | H20: 172.18066 | I20: =H20-G20 -> -28.15267333
B21: spotřeba center | C21: 0 | D21: 0 | F21: 0 | G21: 0 | H21: 0 | I21: =H21-G21 -> 0
A22: 3 | B22: SZM | C22: 7645 | D22: 511.34891 | F22: 569.2819 | G22: 1274.166667 | H22: 705.62762 | I22: -568.5390467
B23: z toho: implantáty-kardiostim. | C23: 0 | D23: 0 | F23: 0 | G23: 0 | H23: 0 | I23: 0
B24: implantáty-defibrilátory | C24: 0 | D24: 0 | F24: 0 | G24: 0 | H24: 0 | I24: 0
B25: implantáty-TEP | C25: 0 | D25: 0 | F25: 0 | G25: 0 | H25: 0 | I25: 0
A26: 4 | B26: Všeobecný materiál | C26: 292 | D26: 48.3307 | F26: 17.37315 | G26: 48.66666667 | H26: 38.85553 | I26: -9.811136667
A27: 5 | B27: Osobní náklady (OsN) | C27: 20735 | D27: 3051.76263 | F27: 1912.94096 | G27: 3455.833333 | H27: 3668.72721 | I27: 212.8938767
B28: z toho: hrubé mzdy | C28: 15246 | D28: 2241.4 | F28: 1406.575 | G28: 2541 | H28: 2695.728 | I28: 154.728
A29: výnosové ukazatele:
A30: 6 | B30: Přímé výnosy (PV) | C30: 40219 | D30: 6341.32552 | F30: 2792.61277 | G30: 6703.166667 | H30: 5162.23496 | I30: -1540.931707
A31: 7 | B31: Výnosy ZP vč. agreg.V | C31: 38737 | D31: 6235.73864 | F31: 2727.84301 | G31: 6456.166667 | H31: 5046.43004 | I31: -1409.736627
A32: 8 | B32: ZUM, ZUL - limity | C32: 10529.016 | D32: 1182.84208 | F32: 934.28635 | G32: =C32/12*MONTH(dat_do) -> 1754.836 | H32: 1484.75888 | I32: -270.07712
A33: ostatní ukazatele:
A34: 9 | B34: Body vč.agregovaných výkonů | C34: 31860.665 | D34: 4188.419 | F34: 2527.311 | G34: =C34/12*MONTH(dat_do) -> 5310.110833 | H34: 4395.828 | I34: -914.2828333
A36: Poměrné ukazatale:
A37: 1 | B37: nákladová hodnota bodu-Ncelkem | C37: =C12/C34 -> 1.38283366 | D37: =D12/D34 -> 1.447412702 | F37: =F12/F34 -> 1.522667832 | G37: =G12/G34 -> 1.38283366 | H37: =H12/H34 -> 1.548969357
A38: 2 | B38: výnosová hodnota bodu - V celkem | C38: =C18/C34 -> 1.257224229 | D38: =D13/D34 -> 1.498550926 | F38: =F13/F34 -> 1.080875575 | G38: =G13/G34 -> 1.237921431 | H38: =H13/H34 -> 1.148883842
A39: 3 | B39: podíl OsN na celkových nákl. % | C39: =C27/C12% -> 47.06296246 | D39: =D27/D12% -> 50.33942496 | F39: =F27/F12% -> 49.7093067 | G39: =G27/G12% -> 47.06296246 | H39: =H27/H12% -> 53.88053552
A42: Zpracoval: oddělení ekonomických činností

Sheet 06
A1: Pracoviště: 06 Neurochirurgická klinika
A3: =CONCATENATE("Základní ukazatele hospodaření na rok ",YEAR(dat_do)," (v tis.)") -> Základní ukazatele hospodaření na rok 2010 (v tis.)
G6: Vyhodnocení aktuálního období :
H7: =CONCATENATE("1 - ",MONTH(dat_do)," / ",YEAR(dat_do)) -> 1 - 2 / 2010
C8: A | D8: B | F8: C | G8: D | H8: E
C9: Rozpočet | D9: Skutečnost | F9: Skutečnost | G9: Rozpočet | H9: Skutečnost | I9: Rozdíl
C10: (limit) | D10: za | F10: za | G10: za | H10: za | I10: E - D
A11: Souhrnné ukazatele: | C11: =YEAR(dat_do) -> 2010 | D11: =CONCATENATE("1-",MONTH(dat_do),"/",YEAR(dat_do)-1) -> 1-2/2009 | F11: =CONCATENATE(MONTH(dat_do),"/",YEAR(dat_do)) -> 2/2010 | G11: =CONCATENATE("1-",MONTH(dat_do),"/",YEAR(dat_do)) -> 1-2/2010 | H11: =CONCATENATE("1-",MONTH(dat_do),"/",YEAR(dat_do)) -> 1-2/2010
A12: 1 | B12: Náklady celkem (N) | C12: 108815 | D12: 16559.94632 | F12: 9495.48903 | G12: 18135.83333 | H12: 18643.61267 | I12: =H12-G12 -> 507.7793367
A13: 2 | B13: Výnosy celkem (V) | C13: 108219 | D13: 15644.65734 | F13: 9960.44197 | G13: 18036.5 | H13: 16858.40604 | I13: =H13-G13 -> -1178.09396
A14: 3 | B14: Hospodářský výsledek (HV) | C14: =C13-C12 -> -596 | D14: =D13-D12 -> -915.28898 | F14: =F13-F12 -> 464.95294 | G14: =G13-G12 -> -99.33333333 | H14: =H13-H12 -> -1785.20663
A16: Dílčí sledované ukazatele:
A17: nákladové ukazatele:
A18: 1 | B18: Přímé náklady (PN) | C18: 100639 | D18: 15363.62503 | F18: 8789.22401 | G18: 16773.16667 | H18: 17219.31139 | I18: =H18-G18 -> 446.1447233
A19: 2 | B19: Léky | C19: 6762 | D19: 1149.28271 | F19: 505.11472 | G19: 1127 | H19: 907.43902 | I19: -219.56098
B20: z toho: vliv lékové vyhlášky | C20: 20 | D20: 0 | F20: 0 | G20: 3.333333333 | H20: 0 | I20: =H20-G20 -> -3.333333333
B21: spotřeba center | C21: 0 | D21: 0 | F21: 0 | G21: 0 | H21: 0 | I21: =H21-G21 -> 0
A22: 3 | B22: SZM | C22: 36461 | D22: 5611.56522 | F22: 3278.36136 | G22: 6076.833333 | H22: 6224.30702 | I22: 147.4736867
B23: z toho: implantáty-kardiostim. | C23: 0 | D23: 0 | F23: 0 | G23: 0 | H23: 0 | I23: 0
B24: implantáty-defibrilátory | C24: 0 | D24: 0 | F24: 0 | G24: 0 | H24: 0 | I24: 0
B25: implantáty-TEP | C25: 0 | D25: 0 | F25: 0 | G25: 0 | H25: 0 | I25: 0
A26: 4 | B26: Všeobecný materiál | C26: 1308 | D26: 204.55271 | F26: 94.40959 | G26: 218 | H26: 198.83062 | I26: -19.16938
A27: 5 | B27: Osobní náklady (OsN) | C27: 42853 | D27: 6048.28182 | F27: 3507.57071 | G27: 7142.166667 | H27: 7223.30746 | I27: 81.14079333
B28: z toho: hrubé mzdy | C28: 31509 | D28: 4443.41 | F28: 2579.056 | G28: 5251.5 | H28: 5309.633 | I28: 58.133
A29: výnosové ukazatele:
A30: 6 | B30: Přímé výnosy (PV) | C30: 109151 | D30: 15754.85648 | F30: 9998.85977 | G30: 18191.83333 | H30: 16955.62652 | I30: -1236.206813
A31: 7 | B31: Výnosy ZP vč. agreg.V | C31: 106988 | D31: 15551.80767 | F31: 9496.34025 | G31: 17831.33333 | H31: 16366.08132 | I31: -1465.252013
A32: 8 | B32: ZUM, ZUL - limity | C32: 41891.578 | D32: 4524.73876 | F32: 3885.09387 | G32: =C32/12*MONTH(dat_do) -> 6981.929667 | H32: 5817.0924 | I32: -1164.837267
A33: ostatní ukazatele:
A34: 9 | B34: Body vč.agregovaných výkonů | C34: 73637.481 | D34: 9902.874 | F34: 5693.717 | G34: =C34/12*MONTH(dat_do) -> 12272.9135 | H34: 10957.166 | I34: -1315.7475
A36: Poměrné ukazatale:
A37: 1 | B37: nákladová hodnota bodu-Ncelkem | C37: =C12/C34 -> 1.477712145 | D37: =D12/D34 -> 1.672236395 | F37: =F12/F34 -> 1.667713557 | G37: =G12/G34 -> 1.477712145 | H37: =H12/H34 -> 1.701499518
A38: 2 | B38: výnosová hodnota bodu - V celkem | C38: =C18/C34 -> 1.366681731 | D38: =D13/D34 -> 1.579809795 | F38: =F13/F34 -> 1.749374261 | G38: =G13/G34 -> 1.469618441 | H38: =H13/H34 -> 1.538573573
A39: 3 | B39: podíl OsN na celkových nákl. % | C39: =C27/C12% -> 39.38151909 | D39: =D27/D12% -> 36.52355933 | F39: =F27/F12% -> 36.93933718 | G39: =G27/G12% -> 39.38151909 | H39: =H27/H12% -> 38.74414035
A42: Zpracoval: oddělení ekonomických činností

Sheet 07
A1: Pracoviště: 07 Klinika anesteziologie a resuscitace
A3: =CONCATENATE("Základní ukazatele hospodaření na rok ",YEAR(dat_do)," (v tis.)") -> Základní ukazatele hospodaření na rok 2010 (v tis.)
G6: Vyhodnocení aktuálního období :
H7: =CONCATENATE("1 - ",MONTH(dat_do)," / ",YEAR(dat_do)) -> 1 - 2 / 2010
C8: A | D8: B | F8: C | G8: D | H8: E
C9: Rozpočet | D9: Skutečnost | F9: Skutečnost | G9: Rozpočet | H9: Skutečnost | I9: Rozdíl
C10: (limit) | D10: za | F10: za | G10: za | H10: za | I10: E - D
A11: Souhrnné ukazatele: | C11: =YEAR(dat_do) -> 2010 | D11: =CONCATENATE("1-",MONTH(dat_do),"/",YEAR(dat_do)-1) -> 1-2/2009 | F11: =CONCATENATE(MONTH(dat_do),"/",YEAR(dat_do)) -> 2/2010 | G11: =CONCATENATE("1-",MONTH(dat_do),"/",YEAR(dat_do)) -> 1-2/2010 | H11: =CONCATENATE("1-",MONTH(dat_do),"/",YEAR(dat_do)) -> 1-2/2010
A12: 1 | B12: Náklady celkem (N) | C12: 141818 | D12: 23395.7723 | F12: 11791.71643 | G12: 23636.33333 | H12: 25378.61175 | I12: =H12-G12 -> 1742.278417
A13: 2 | B13: Výnosy celkem (V) | C13: 139570 | D13: 26513.38175 | F13: 11682.85754 | G13: 23261.66667 | H13: 23323.00325 | I13: =H13-G13 -> 61.33658333
A14: 3 | B14: Hospodářský výsledek (HV) | C14: =C13-C12 -> -2248 | D14: =D13-D12 -> 3117.60945 | F14: =F13-F12 -> -108.85889 | G14: =G13-G12 -> -374.6666667 | H14: =H13-H12 -> -2055.6085
A16: Dílčí sledované ukazatele:
A17: nákladové ukazatele:
A18: 1 | B18: Přímé náklady (PN) | C18: 132301 | D18: 21855.17454 | F18: 10894.82558 | G18: 22050.16667 | H18: 23532.62997 | I18: =H18-G18 -> 1482.463303
A19: 2 | B19: Léky | C19: 22964 | D19: 4312.54122 | F19: 1485.01429 | G19: 3827.333333 | H19: 3825.44209 | I19: -1.891243333
B20: z toho: vliv lékové vyhlášky | C20: 0 | D20: 0 | F20: 0 | G20: 0 | H20: 0 | I20: =H20-G20 -> 0
B21: spotřeba center | C21: 0 | D21: 0 | F21: 0 | G21: 0 | H21: 0 | I21: =H21-G21 -> 0
A22: 3 | B22: SZM | C22: 12878 | D22: 2338.63802 | F22: 1330.86712 | G22: 2146.333333 | H22: 2665.44961 | I22: 519.1162767
B23: z toho: implantáty-kardiostim. | C23: 0 | D23: 0 | F23: 0 | G23: 0 | H23: 0 | I23: 0
B24: implantáty-defibrilátory | C24: 0 | D24: 0 | F24: 0 | G24: 0 | H24: 0 | I24: 0
B25: implantáty-TEP | C25: 0 | D25: 0 | F25: 0 | G25: 0 | H25: 0 | I25: 0
A26: 4 | B26: Všeobecný materiál | C26: 910 | D26: 170.74503 | F26: 81.16589 | G26: 151.6666667 | H26: 172.30237 | I26: 20.63570333
A27: 5 | B27: Osobní náklady (OsN) | C27: 71816 | D27: 10752.83057 | F27: 6150.75943 | G27: 11969.33333 | H27: 12975.05259 | I27: 1005.719257
B28: z toho: hrubé mzdy | C28: 52806 | D28: 7900.357 | F28: 4508.08 | G28: 8801 | H28: 9518.189 | I28: 717.189
A29: výnosové ukazatele:
A30: 6 | B30: Přímé výnosy (PV) | C30: 141201 | D30: 26725.24484 | F30: 11772.08387 | G30: 23533.5 | H30: 23567.67596 | I30: 34.17596
A31: 7 | B31: Výnosy ZP vč. agreg.V | C31: 137497 | D31: 26227.44619 | F31: 11302.66936 | G31: 22916.16667 | H31: 22832.07021 | I31: -84.09645667
A32: 8 | B32: ZUM, ZUL - limity | C32: 11418.335 | D32: 1586.99729 | F32: 1063.31887 | G32: =C32/12*MONTH(dat_do) -> 1903.055833 | H32: 1901.98566 | I32: -1.070173333
A33: ostatní ukazatele:
A34: 9 | B34: Body vč.agregovaných výkonů | C34: 142545.667 | D34: 24093.28 | F34: 14690.777 | G34: =C34/12*MONTH(dat_do) -> 23757.61117 | H34: 25620.67 | I34: 1863.058833
A36: Poměrné ukazatale:
A37: 1 | B37: nákladová hodnota bodu-Ncelkem | C37: =C12/C34 -> 0.9948952008 | D37: =D12/D34 -> 0.9710496993 | F37: =F12/F34 -> 0.8026611819 | G37: =G12/G34 -> 0.9948952008 | H37: =H12/H34 -> 0.9905522279
A38: 2 | B38: výnosová hodnota bodu - V celkem | C38: =C18/C34 -> 0.928130632 | D38: =D13/D34 -> 1.100447168 | F38: =F13/F34 -> 0.7952511661 | G38: =G13/G34 -> 0.9791248162 | H38: =H13/H34 -> 0.9103198023
A39: 3 | B39: podíl OsN na celkových nákl. % | C39: =C27/C12% -> 50.6395521 | D39: =D27/D12% -> 45.96057113 | F39: =F27/F12% -> 52.16169729 | G39: =G27/G12% -> 50.6395521 | H39: =H27/H12% -> 51.12593517
A42: Zpracoval: oddělení ekonomických činností

Sheet 08
A1: Pracoviště: 08 Porodnicko-gynekologická klinika
A3: =CONCATENATE("Základní ukazatele hospodaření na rok ",YEAR(dat_do)," (v tis.)") -> Základní ukazatele hospodaření na rok 2010 (v tis.)
G6: Vyhodnocení aktuálního období :
H7: =CONCATENATE("1 - ",MONTH(dat_do)," / ",YEAR(dat_do)) -> 1 - 2 / 2010
C8: A | D8: B | F8: C | G8: D | H8: E
C9: Rozpočet | D9: Skutečnost | F9: Skutečnost | G9: Rozpočet | H9: Skutečnost | I9: Rozdíl
C10: (limit) | D10: za | F10: za | G10: za | H10: za | I10: E - D
A11: Souhrnné ukazatele: | C11: =YEAR(dat_do) -> 2010 | D11: =CONCATENATE("1-",MONTH(dat_do),"/",YEAR(dat_do)-1) -> 1-2/2009 | F11: =CONCATENATE(MONTH(dat_do),"/",YEAR(dat_do)) -> 2/2010 | G11: =CONCATENATE("1-",MONTH(dat_do),"/",YEAR(dat_do)) -> 1-2/2010 | H11: =CONCATENATE("1-",MONTH(dat_do),"/",YEAR(dat_do)) -> 1-2/2010
A12: 1 | B12: Náklady celkem (N) | C12: 104933 | D12: 13845.17437 | F12: 8192.75152 | G12: 17488.83333 | H12: 15882.99536 | I12: =H12-G12 -> -1605.837973
A13: 2 | B13: Výnosy celkem (V) | C13: 93443 | D13: 11617.07092 | F13: 5434.30097 | G13: 15573.83333 | H13: 10546.27106 | I13: =H13-G13 -> -5027.562273
A14: 3 | B14: Hospodářský výsledek (HV) | C14: =C13-C12 -> -11490 | D14: =D13-D12 -> -2228.10345 | F14: =F13-F12 -> -2758.45055 | G14: =G13-G12 -> -1915 | H14: =H13-H12 -> -5336.7243
A16: Dílčí sledované ukazatele:
A17: nákladové ukazatele:
A18: 1 | B18: Přímé náklady (PN) | C18: 95266 | D18: 12302.66275 | F18: 7353.44205 | G18: 15877.66667 | H18: 14223.40136 | I18: =H18-G18 -> -1654.265307
A19: 2 | B19: Léky | C19: 7805 | D19: 1334.26489 | F19: 678.38362 | G19: 1300.833333 | H19: 1177.15984 | I19: -123.6734933
B20: z toho: vliv lékové vyhlášky | C20: 0 | D20: 0 | F20: 0 | G20: 0 | H20: 0 | I20: =H20-G20 -> 0
B21: spotřeba center | C21: 4565 | D21: 842.2931 | F21: 446.76092 | G21: 760.8333333 | H21: 711.54893 | I21: =H21-G21 -> -49.28440333
A22: 3 | B22: SZM | C22: 18888 | D22: 729.26705 | F22: 788.78922 | G22: 3148 | H22: 1302.31727 | I22: -1845.68273
B23: z toho: implantáty-kardiostim. | C23: 0 | D23: 0 | F23: 0 | G23: 0 | H23: 0 | I23: 0
B24: implantáty-defibrilátory | C24: 0 | D24: 0 | F24: 0 | G24: 0 | H24: 0 | I24: 0
B25: implantáty-TEP | C25: 0 | D25: 0 | F25: 0 | G25: 0 | H25: 0 | I25: 0
A26: 4 | B26: Všeobecný materiál | C26: 1114 | D26: 197.80879 | F26: 121.19001 | G26: 185.6666667 | H26: 211.13703 | I26: 25.47036333
A27: 5 | B27: Osobní náklady (OsN) | C27: 55706 | D27: 7974.34337 | F27: 4515.96994 | G27: 9284.333333 | H27: 9192.79066 | I27: -91.54267333
B28: z toho: hrubé mzdy | C28: 40961 | D28: 5857.964 | F28: 3321.071 | G28: 6826.833333 | H28: 6761.855 | I28: -64.97833333
A29: výnosové ukazatele:
A30: 6 | B30: Přímé výnosy (PV) | C30: 94087 | D30: 11669.89467 | F30: 5470.33706 | G30: 15681.16667 | H30: 10632.09955 | I30: -5049.067117
A31: 7 | B31: Výnosy ZP vč. agreg.V | C31: 88470 | D31: 10821.03506 | F31: 4755.87512 | G31: 14745 | H31: 9512.10767 | I31: -5232.89233
A32: 8 | B32: ZUM, ZUL - limity | C32: 26873.574 | D32: 1415.29852 | F32: 927.3369 | G32: =C32/12*MONTH(dat_do) -> 4478.929 | H32: 1397.09348 | I32: -3081.83552
A33: ostatní ukazatele:
A34: 9 | B34: Body vč.agregovaných výkonů | C34: 61617.063 | D34: 9710.38 | F34: 4479.901 | G34: =C34/12*MONTH(dat_do) -> 10269.5105 | H34: 8807.406 | I34: -1462.1045
A36: Poměrné ukazatale:
A37: 1 | B37: nákladová hodnota bodu-Ncelkem | C37: =C12/C34 -> 1.702986071 | D37: =D12/D34 -> 1.425811798 | F37: =F12/F34 -> 1.828779591 | G37: =G12/G34 -> 1.702986071 | H37: =H12/H34 -> 1.803368138
A38: 2 | B38: výnosová hodnota bodu - V celkem | C38: =C18/C34 -> 1.54609771 | D38: =D13/D34 -> 1.196355953 | F38: =F13/F34 -> 1.213040415 | G38: =G13/G34 -> 1.516511749 | H38: =H13/H34 -> 1.197432145
A39: 3 | B39: podíl OsN na celkových nákl. % | C39: =C27/C12% -> 53.08720803 | D39: =D27/D12% -> 57.59655427 | F39: =F27/F12% -> 55.12152943 | G39: =G27/G12% -> 53.08720803 | H39: =H27/H12% -> 57.87819269
A42: Zpracoval: oddělení ekonomických činností

Sheet 09
A1: Pracoviště: 09 Novorozenecké oddělení
A3: =CONCATENATE("Základní ukazatele hospodaření na rok ",YEAR(dat_do)," (v tis.)") -> Základní ukazatele hospodaření na rok 2010 (v tis.)
G6: Vyhodnocení aktuálního období :
H7: =CONCATENATE("1 - ",MONTH(dat_do)," / ",YEAR(dat_do)) -> 1 - 2 / 2010
C8: A | D8: B | F8: C | G8: D | H8: E
C9: Rozpočet | D9: Skutečnost | F9: Skutečnost | G9: Rozpočet | H9: Skutečnost | I9: Rozdíl
C10: (limit) | D10: za | F10: za | G10: za | H10: za | I10: E - D
A11: Souhrnné ukazatele: | C11: =YEAR(dat_do) -> 2010 | D11: =CONCATENATE("1-",MONTH(dat_do),"/",YEAR(dat_do)-1) -> 1-2/2009 | F11: =CONCATENATE(MONTH(dat_do),"/",YEAR(dat_do)) -> 2/2010 | G11: =CONCATENATE("1-",MONTH(dat_do),"/",YEAR(dat_do)) -> 1-2/2010 | H11: =CONCATENATE("1-",MONTH(dat_do),"/",YEAR(dat_do)) -> 1-2/2010
A12: 1 | B12: Náklady celkem (N) | C12: 58988 | D12: 8131.8778 | F12: 4631.2753 | G12: 9831.333333 | H12: 9517.11986 | I12: =H12-G12 -> -314.2134733
A13: 2 | B13: Výnosy celkem (V) | C13: 62324 | D13: 12945.97158 | F13: 5832.1887 | G13: 10387.33333 | H13: 10750.87998 | I13: =H13-G13 -> 363.5466467
A14: 3 | B14: Hospodářský výsledek (HV) | C14: =C13-C12 -> 3336 | D14: =D13-D12 -> 4814.09378 | F14: =F13-F12 -> 1200.9134 | G14: =G13-G12 -> 556 | H14: =H13-H12 -> 1233.76012
A16: Dílčí sledované ukazatele:
A17: nákladové ukazatele:
A18: 1 | B18: Přímé náklady (PN) | C18: 53347 | D18: 7354.77309 | F18: 4149.19312 | G18: 8891.166667 | H18: 8552.16743 | I18: =H18-G18 -> -338.9992367
A19: 2 | B19: Léky | C19: 3893 | D19: 556.22935 | F19: 327.60016 | G19: 648.8333333 | H19: 653.2221 | I19: 4.388766667
B20: z toho: vliv lékové vyhlášky | C20: 9 | D20: 1.00945 | F20: 0 | G20: 1.5 | H20: 0 | I20: =H20-G20 -> -1.5
B21: spotřeba center | C21: 0 | D21: 0 | F21: 0 | G21: 0 | H21: 0 | I21: =H21-G21 -> 0
A22: 3 | B22: SZM | C22: 4662 | D22: 527.44532 | F22: 355.35053 | G22: 777 | H22: 865.92769 | I22: 88.92769
B23: z toho: implantáty-kardiostim. | C23: 0 | D23: 0 | F23: 0 | G23: 0 | H23: 0 | I23: 0
B24: implantáty-defibrilátory | C24: 0 | D24: 0 | F24: 0 | G24: 0 | H24: 0 | I24: 0
B25: implantáty-TEP | C25: 0 | D25: 0 | F25: 0 | G25: 0 | H25: 0 | I25: 0
A26: 4 | B26: Všeobecný materiál | C26: 796 | D26: 180.07204 | F26: 56.80135 | G26: 132.6666667 | H26: 125.57469 | I26: -7.091976667
A27: 5 | B27: Osobní náklady (OsN) | C27: 35152 | D27: 4737.41157 | F27: 2714.99042 | G27: 5858.666667 | H27: 5592.16084 | I27: -266.5058267
B28: z toho: hrubé mzdy | C28: 25847 | D28: 3483.828 | F28: 1996.404 | G28: 4307.833333 | H28: 4112.593 | I28: -195.2403333
A29: výnosové ukazatele:
A30: 6 | B30: Přímé výnosy (PV) | C30: 63965 | D30: 13161.61424 | F30: 5962.23543 | G30: 10660.83333 | H30: 11014.5542 | I30: 353.7208667
A31: 7 | B31: Výnosy ZP vč. agreg.V | C31: 61761 | D31: 12906.6566 | F31: 5764.83686 | G31: 10293.5 | H31: 10655.83744 | I31: 362.33744
A32: 8 | B32: ZUM, ZUL - limity | C32: 2910.747 | D32: 304.17381 | F32: 134.56635 | G32: =C32/12*MONTH(dat_do) -> 485.1245 | H32: 151.32541 | I32: -333.79909
A33: ostatní ukazatele:
A34: 9 | B34: Body vč.agregovaných výkonů | C34: 66585.916 | D34: 9087.7 | F34: 6175.818 | G34: =C34/12*MONTH(dat_do) -> 11097.65267 | H34: 8797.829 | I34: -2299.823667
A36: Poměrné ukazatale:
A37: 1 | B37: nákladová hodnota bodu-Ncelkem | C37: =C12/C34 -> 0.8858930468 | D37: =D12/D34 -> 0.8948224303 | F37: =F12/F34 -> 0.7499047576 | G37: =G12/G34 -> 0.8858930468 | H37: =H12/H34 -> 1.081757768
A38: 2 | B38: výnosová hodnota bodu - V celkem | C38: =C18/C34 -> 0.8011754318 | D38: =D13/D34 -> 1.424559743 | F38: =F13/F34 -> 0.9443589011 | G38: =G13/G34 -> 0.9359937318 | H38: =H13/H34 -> 1.221992378
A39: 3 | B39: podíl OsN na celkových nákl. % | C39: =C27/C12% -> 59.59178138 | D39: =D27/D12% -> 58.25728923 | F39: =F27/F12% -> 58.62295468 | G39: =G27/G12% -> 59.59178138 | H39: =H27/H12% -> 58.75896198
A42: Zpracoval: oddělení ekonomických činností

Sheet 10
A1: Pracoviště: 10 Dětská klinika
A3: =CONCATENATE("Základní ukazatele hospodaření na rok ",YEAR(dat_do)," (v tis.)") -> Základní ukazatele hospodaření na rok 2010 (v tis.)
G6: Vyhodnocení aktuálního období :
H7: =CONCATENATE("1 - ",MONTH(dat_do)," / ",YEAR(dat_do)) -> 1 - 2 / 2010
C8: A | D8: B | F8: C | G8: D | H8: E
C9: Rozpočet | D9: Skutečnost | F9: Skutečnost | G9: Rozpočet | H9: Skutečnost | I9: Rozdíl
C10: (limit) | D10: za | F10: za | G10: za | H10: za | I10: E - D
A11: Souhrnné ukazatele: | C11: =YEAR(dat_do) -> 2010 | D11: =CONCATENATE("1-",MONTH(dat_do),"/",YEAR(dat_do)-1) -> 1-2/2009 | F11: =CONCATENATE(MONTH(dat_do),"/",YEAR(dat_do)) -> 2/2010 | G11: =CONCATENATE("1-",MONTH(dat_do),"/",YEAR(dat_do)) -> 1-2/2010 | H11: =CONCATENATE("1-",MONTH(dat_do),"/",YEAR(dat_do)) -> 1-2/2010
A12: 1 | B12: Náklady celkem (N) | C12: 146064 | D12: 22830.65203 | F12: 12404.32636 | G12: 24344 | H12: 26088.0393 | I12: =H12-G12 -> 1744.0393
A13: 2 | B13: Výnosy celkem (V) | C13: 125343 | D13: 19208.26457 | F13: 11120.88241 | G13: 20890.5 | H13: 21292.21899 | I13: =H13-G13 -> 401.71899
A14: 3 | B14: Hospodářský výsledek (HV) | C14: =C13-C12 -> -20721 | D14: =D13-D12 -> -3622.38746 | F14: =F13-F12 -> -1283.44395 | G14: =G13-G12 -> -3453.5 | H14: =H13-H12 -> -4795.82031
A16: Dílčí sledované ukazatele:
A17: nákladové ukazatele:
A18: 1 | B18: Přímé náklady (PN) | C18: 132479 | D18: 20637.33927 | F18: 11215.85231 | G18: 22079.83333 | H18: 23695.84051 | I18: =H18-G18 -> 1616.007177
A19: 2 | B19: Léky | C19: 26926 | D19: 4454.93917 | F19: 2386.47279 | G19: 4487.666667 | H19: 5717.47363 | I19: 1229.806963
B20: z toho: vliv lékové vyhlášky | C20: 430 | D20: 8.42084 | F20: 82.64458 | G20: 71.66666667 | H20: 109.18485 | I20: =H20-G20 -> 37.51818333
B21: spotřeba center | C21: 6647 | D21: 1513.68748 | F21: 890.91272 | G21: 1107.833333 | H21: 1701.19984 | I21: =H21-G21 -> 593.3665067
A22: 3 | B22: SZM | C22: 9403 | D22: 1714.33416 | F22: 591.49306 | G22: 1567.166667 | H22: 1126.15909 | I22: -441.0075767
B23: z toho: implantáty-kardiostim. | C23: 0 | D23: 0 | F23: 0 | G23: 0 | H23: 0 | I23: 0
B24: implantáty-defibrilátory | C24: 0 | D24: 0 | F24: 0 | G24: 0 | H24: 0 | I24: 0
B25: implantáty-TEP | C25: 0 | D25: 0 | F25: 0 | G25: 0 | H25: 0 | I25: 0
A26: 4 | B26: Všeobecný materiál | C26: 1681 | D26: 280.30298 | F26: 136.709 | G26: 280.1666667 | H26: 276.39272 | I26: -3.773946667
A27: 5 | B27: Osobní náklady (OsN) | C27: 73498 | D27: 10541.34703 | F27: 6046.12767 | G27: 12249.66667 | H27: 12409.30425 | I27: 159.6375833
B28: z toho: hrubé mzdy | C28: 54041 | D28: 7750.946 | F28: 4442.033 | G28: 9006.833333 | H28: 9114.594 | I28: 107.7606667
A29: výnosové ukazatele:
A30: 6 | B30: Přímé výnosy (PV) | C30: 128064 | D30: 19476.90437 | F30: 11290.7737 | G30: 21344 | H30: 21687.0524 | I30: 343.0524
A31: 7 | B31: Výnosy ZP vč. agreg.V | C31: 122444 | D31: 18686.39988 | F31: 10916.97208 | G31: 20407.33333 | H31: 21012.48436 | I31: 605.1510267
A32: 8 | B32: ZUM, ZUL - limity | C32: 23159.803 | D32: 3379.28623 | F32: 2129.17051 | G32: =C32/12*MONTH(dat_do) -> 3859.967167 | H32: 5163.64557 | I32: 1303.678403
A33: ostatní ukazatele:
A34: 9 | B34: Body vč.agregovaných výkonů | C34: 110279.683 | D34: 14966.331 | F34: 10111 | G34: =C34/12*MONTH(dat_do) -> 18379.94717 | H34: 17041.598 | I34: -1338.349167
A36: Poměrné ukazatale:
A37: 1 | B37: nákladová hodnota bodu-Ncelkem | C37: =C12/C34 -> 1.324486941 | D37: =D12/D34 -> 1.525467533 | F37: =F12/F34 -> 1.22681499 | G37: =G12/G34 -> 1.324486941 | H37: =H12/H34 -> 1.53084466
A38: 2 | B38: výnosová hodnota bodu - V celkem | C38: =C18/C34 -> 1.201300152 | D38: =D13/D34 -> 1.283431762 | F38: =F13/F34 -> 1.099879578 | G38: =G13/G34 -> 1.13659195 | H38: =H13/H34 -> 1.249426198
A39: 3 | B39: podíl OsN na celkových nákl. % | C39: =C27/C12% -> 50.31903823 | D39: =D27/D12% -> 46.17190528 | F39: =F27/F12% -> 48.742088 | G39: =G27/G12% -> 50.31903823 | H39: =H27/H12% -> 47.56702528
A42: Zpracoval: oddělení ekonomických činností

Sheet 11
A1: Pracoviště: 11 Ortopedická klinika
A3: =CONCATENATE("Základní ukazatele hospodaření na rok ",YEAR(dat_do)," (v tis.)") -> Základní ukazatele hospodaření na rok 2010 (v tis.)
G6: Vyhodnocení aktuálního období :
H7: =CONCATENATE("1 - ",MONTH(dat_do)," / ",YEAR(dat_do)) -> 1 - 2 / 2010
C8: A | D8: B | F8: C | G8: D | H8: E
C9: Rozpočet | D9: Skutečnost | F9: Skutečnost | G9: Rozpočet | H9: Skutečnost | I9: Rozdíl
C10: (limit) | D10: za | F10: za | G10: za | H10: za | I10: E - D
A11: Souhrnné ukazatele: | C11: =YEAR(dat_do) -> 2010 | D11: =CONCATENATE("1-",MONTH(dat_do),"/",YEAR(dat_do)-1) -> 1-2/2009 | F11: =CONCATENATE(MONTH(dat_do),"/",YEAR(dat_do)) -> 2/2010 | G11: =CONCATENATE("1-",MONTH(dat_do),"/",YEAR(dat_do)) -> 1-2/2010 | H11: =CONCATENATE("1-",MONTH(dat_do),"/",YEAR(dat_do)) -> 1-2/2010
A12: 1 | B12: Náklady celkem (N) | C12: 90692 | D12: 13602.45826 | F12: 8602.605 | G12: 15115.33333 | H12: 16244.63404 | I12: =H12-G12 -> 1129.300707
A13: 2 | B13: Výnosy celkem (V) | C13: 73958 | D13: 11213.61293 | F13: 6859.82561 | G13: 12326.33333 | H13: 12212.58542 | I13: =H13-G13 -> -113.7479133
A14: 3 | B14: Hospodářský výsledek (HV) | C14: =C13-C12 -> -16734 | D14: =D13-D12 -> -2388.84533 | F14: =F13-F12 -> -1742.77939 | G14: =G13-G12 -> -2789 | H14: =H13-H12 -> -4032.04862
A16: Dílčí sledované ukazatele:
A17: nákladové ukazatele:
A18: 1 | B18: Přímé náklady (PN) | C18: 83055 | D18: 12582.03833 | F18: 7999.74496 | G18: 13842.5 | H18: 15067.67006 | I18: =H18-G18 -> 1225.17006
A19: 2 | B19: Léky | C19: 3292 | D19: 570.9325 | F19: 228.29195 | G19: 548.6666667 | H19: 489.74727 | I19: -58.91939667
B20: z toho: vliv lékové vyhlášky | C20: 15 | D20: 0 | F20: 0 | G20: 2.5 | H20: 0 | I20: =H20-G20 -> -2.5
B21: spotřeba center | C21: 0 | D21: 0 | F21: 0 | G21: 0 | H21: 0 | I21: =H21-G21 -> 0
A22: 3 | B22: SZM | C22: 34276 | D22: 5784.34359 | F22: 3831.20339 | G22: 5712.666667 | H22: 6724.2585 | I22: 1011.591833
B23: z toho: implantáty-kardiostim. | C23: 0 | D23: 0 | F23: 0 | G23: 0 | H23: 0 | I23: 0
B24: implantáty-defibrilátory | C24: 0 | D24: 0 | F24: 0 | G24: 0 | H24: 0 | I24: 0
B25: implantáty-TEP | C25: 24500 | D25: 4066.84732 | F25: 2568.3627 | G25: 4083.333333 | H25: 4467.79603 | I25: 384.4626967
A26: 4 | B26: Všeobecný materiál | C26: 638 | D26: 99.22145 | F26: 44.76324 | G26: 106.3333333 | H26: 101.83057 | I26: -4.502763333
A27: 5 | B27: Osobní náklady (OsN) | C27: 32550 | D27: 4704.71661 | F27: 2707.27321 | G27: 5425 | H27: 5338.03355 | I27: -86.96645
B28: z toho: hrubé mzdy | C28: 23934 | D28: 3455.889 | F28: 1987.572 | G28: 3989 | H28: 3918.707 | I28: -70.293
A29: výnosové ukazatele:
A30: 6 | B30: Přímé výnosy (PV) | C30: 74815 | D30: 11286.1486 | F30: 6893.62991 | G30: 12469.16667 | H30: 12292.67651 | I30: -176.4901567
A31: 7 | B31: Výnosy ZP vč. agreg.V | C31: 72422 | D31: 11084.14652 | F31: 6557.9467 | G31: 12070.33333 | H31: 11872.13531 | I31: -198.1980233
A32: 8 | B32: ZUM, ZUL - limity | C32: 33346.248 | D32: 4974.46124 | F32: 3610.97647 | G32: =C32/12*MONTH(dat_do) -> 5557.708 | H32: 6130.31517 | I32: 572.60717
A33: ostatní ukazatele:
A34: 9 | B34: Body vč.agregovaných výkonů | C34: 44191.709 | D34: 6557.407 | F34: 3993.39 | G34: =C34/12*MONTH(dat_do) -> 7365.284833 | H34: 7338.419 | I34: -26.86583333
A36: Poměrné ukazatale:
A37: 1 | B37: nákladová hodnota bodu-Ncelkem | C37: =C12/C34 -> 2.052240161 | D37: =D12/D34 -> 2.07436541 | F37: =F12/F34 -> 2.154211084 | G37: =G12/G34 -> 2.052240161 | H37: =H12/H34 -> 2.213642208
A38: 2 | B38: výnosová hodnota bodu - V celkem | C38: =C18/C34 -> 1.879424939 | D38: =D13/D34 -> 1.710068161 | F38: =F13/F34 -> 1.717795059 | G38: =G13/G34 -> 1.673571846 | H38: =H13/H34 -> 1.664198436
A39: 3 | B39: podíl OsN na celkových nákl. % | C39: =C27/C12% -> 35.89070701 | D39: =D27/D12% -> 34.58725269 | F39: =F27/F12% -> 31.47038845 | G39: =G27/G12% -> 35.89070701 | H39: =H27/H12% -> 32.86028812
A42: Zpracoval: oddělení ekonomických činností

Sheet 12
A1: Pracoviště: 12 Urologická klinika
A3: =CONCATENATE("Základní ukazatele hospodaření na rok ",YEAR(dat_do)," (v tis.)") -> Základní ukazatele hospodaření na rok 2010 (v tis.)
G6: Vyhodnocení aktuálního období :
H7: =CONCATENATE("1 - ",MONTH(dat_do)," / ",YEAR(dat_do)) -> 1 - 2 / 2010
C8: A | D8: B | F8: C | G8: D | H8: E
C9: Rozpočet | D9: Skutečnost | F9: Skutečnost | G9: Rozpočet | H9: Skutečnost | I9: Rozdíl
C10: (limit) | D10: za | F10: za | G10: za | H10: za | I10: E - D
A11: Souhrnné ukazatele: | C11: =YEAR(dat_do) -> 2010 | D11: =CONCATENATE("1-",MONTH(dat_do),"/",YEAR(dat_do)-1) -> 1-2/2009 | F11: =CONCATENATE(MONTH(dat_do),"/",YEAR(dat_do)) -> 2/2010 | G11: =CONCATENATE("1-",MONTH(dat_do),"/",YEAR(dat_do)) -> 1-2/2010 | H11: =CONCATENATE("1-",MONTH(dat_do),"/",YEAR(dat_do)) -> 1-2/2010
A12: 1 | B12: Náklady celkem (N) | C12: 61320 | D12: 7559.76084 | F12: 5136.36346 | G12: 10220 | H12: 9839.0394 | I12: =H12-G12 -> -380.9606
A13: 2 | B13: Výnosy celkem (V) | C13: 45266 | D13: 5578.81723 | F13: 2632.73142 | G13: 7544.333333 | H13: 5298.61107 | I13: =H13-G13 -> -2245.722263
A14: 3 | B14: Hospodářský výsledek (HV) | C14: =C13-C12 -> -16054 | D14: =D13-D12 -> -1980.94361 | F14: =F13-F12 -> -2503.63204 | G14: =G13-G12 -> -2675.666667 | H14: =H13-H12 -> -4540.42833
A16: Dílčí sledované ukazatele:
A17: nákladové ukazatele:
A18: 1 | B18: Přímé náklady (PN) | C18: 55836 | D18: 6657.65167 | F18: 4631.49216 | G18: 9306 | H18: 8836.34459 | I18: =H18-G18 -> -469.65541
A19: 2 | B19: Léky | C19: 2456 | D19: 416.88288 | F19: 214.87767 | G19: 409.3333333 | H19: 532.77115 | I19: 123.4378167
B20: z toho: vliv lékové vyhlášky | C20: 333 | D20: 26.04658 | F20: 48.23922 | G20: 55.5 | H20: 78.38874 | I20: =H20-G20 -> 22.88874
B21: spotřeba center | C21: 0 | D21: 0 | F21: 8.54674 | G21: 0 | H21: 8.54674 | I21: =H21-G21 -> 8.54674
A22: 3 | B22: SZM | C22: 17664 | D22: 412.52253 | F22: 1197.83382 | G22: 2944 | H22: 1829.75989 | I22: -1114.24011
B23: z toho: implantáty-kardiostim. | C23: 0 | D23: 0 | F23: 0 | G23: 0 | H23: 0 | I23: 0
B24: implantáty-defibrilátory | C24: 0 | D24: 0 | F24: 0 | G24: 0 | H24: 0 | I24: 0
B25: implantáty-TEP | C25: 0 | D25: 0 | F25: 0 | G25: 0 | H25: 0 | I25: 0
A26: 4 | B26: Všeobecný materiál | C26: 392 | D26: 67.67078 | F26: 29.19468 | G26: 65.33333333 | H26: 68.37123 | I26: 3.037896667
A27: 5 | B27: Osobní náklady (OsN) | C27: 26037 | D27: 4110.11528 | F27: 2403.64566 | G27: 4339.5 | H27: 4915.14661 | I27: 575.64661
B28: z toho: hrubé mzdy | C28: 19145 | D28: 3019.649 | F28: 1764.79 | G28: 3190.833333 | H28: 3611.448 | I28: 420.6146667
A29: výnosové ukazatele:
A30: 6 | B30: Přímé výnosy (PV) | C30: 45748 | D30: 5617.59237 | F30: 2668.85678 | G30: 7624.666667 | H30: 5382.7343 | I30: -2241.932367
A31: 7 | B31: Výnosy ZP vč. agreg.V | C31: 43956 | D31: 5134.78225 | F31: 2401.57737 | G31: 7326 | H31: 4616.47723 | I31: -2709.52277
A32: 8 | B32: ZUM, ZUL - limity | C32: 22134.439 | D32: 634.2856 | F32: 354.14825 | G32: =C32/12*MONTH(dat_do) -> 3689.073167 | H32: 776.94728 | I32: -2912.125887
A33: ostatní ukazatele:
A34: 9 | B34: Body vč.agregovaných výkonů | C34: 24628.075 | D34: 4223.335 | F34: 2188.844 | G34: =C34/12*MONTH(dat_do) -> 4104.679167 | H34: 4395.406 | I34: 290.7268333
A36: Poměrné ukazatale:
A37: 1 | B37: nákladová hodnota bodu-Ncelkem | C37: =C12/C34 -> 2.48984137 | D37: =D12/D34 -> 1.789997914 | F37: =F12/F34 -> 2.34661011 | G37: =G12/G34 -> 2.48984137 | H37: =H12/H34 -> 2.238482497
A38: 2 | B38: výnosová hodnota bodu - V celkem | C38: =C18/C34 -> 2.267168668 | D38: =D13/D34 -> 1.320950678 | F38: =F13/F34 -> 1.202795366 | G38: =G13/G34 -> 1.837983683 | H38: =H13/H34 -> 1.205488428
A39: 3 | B39: podíl OsN na celkových nákl. % | C39: =C27/C12% -> 42.46086106 | D39: =D27/D12% -> 54.36832417 | F39: =F27/F12% -> 46.79664277 | G39: =G27/G12% -> 42.46086106 | H39: =H27/H12% -> 49.95555369
A42: Zpracoval: oddělení ekonomických činností

Sheet 13
A1: Pracoviště: 13 Otolaryngologická klinika
A3: =CONCATENATE("Základní ukazatele hospodaření na rok ",YEAR(dat_do)," (v tis.)") -> Základní ukazatele hospodaření na rok 2010 (v tis.)
G6: Vyhodnocení aktuálního období :
H7: =CONCATENATE("1 - ",MONTH(dat_do)," / ",YEAR(dat_do)) -> 1 - 2 / 2010
C8: A | D8: B | F8: C | G8: D | H8: E
C9: Rozpočet | D9: Skutečnost | F9: Skutečnost | G9: Rozpočet | H9: Skutečnost | I9: Rozdíl
C10: (limit) | D10: za | F10: za | G10: za | H10: za | I10: E - D
A11: Souhrnné ukazatele: | C11: =YEAR(dat_do) -> 2010 | D11: =CONCATENATE("1-",MONTH(dat_do),"/",YEAR(dat_do)-1) -> 1-2/2009 | F11: =CONCATENATE(MONTH(dat_do),"/",YEAR(dat_do)) -> 2/2010 | G11: =CONCATENATE("1-",MONTH(dat_do),"/",YEAR(dat_do)) -> 1-2/2010 | H11: =CONCATENATE("1-",MONTH(dat_do),"/",YEAR(dat_do)) -> 1-2/2010
A12: 1 | B12: Náklady celkem (N) | C12: 45475 | D12: 6547.9179 | F12: 3681.2453 | G12: 7579.166667 | H12: 7312.43534 | I12: =H12-G12 -> -266.7313267
A13: 2 | B13: Výnosy celkem (V) | C13: 30744 | D13: 4428.59427 | F13: 2105.0363 | G13: 5124 | H13: 4037.59759 | I13: =H13-G13 -> -1086.40241
A14: 3 | B14: Hospodářský výsledek (HV) | C14: =C13-C12 -> -14731 | D14: =D13-D12 -> -2119.32363 | F14: =F13-F12 -> -1576.209 | G14: =G13-G12 -> -2455.166667 | H14: =H13-H12 -> -3274.83775
A16: Dílčí sledované ukazatele:
A17: nákladové ukazatele:
A18: 1 | B18: Přímé náklady (PN) | C18: 40343 | D18: 5672.45317 | F18: 3221.81335 | G18: 6723.833333 | H18: 6413.8157 | I18: =H18-G18 -> -310.0176333
A19: 2 | B19: Léky | C19: 1382 | D19: 247.8348 | F19: 160.27297 | G19: 230.3333333 | H19: 271.43163 | I19: 41.09829667
B20: z toho: vliv lékové vyhlášky | C20: 0 | D20: 0 | F20: 0 | G20: 0 | H20: 0 | I20: =H20-G20 -> 0
B21: spotřeba center | C21: 0 | D21: 0 | F21: 0 | G21: 0 | H21: 0 | I21: =H21-G21 -> 0
A22: 3 | B22: SZM | C22: 1264 | D22: 208.62344 | F22: 118.03947 | G22: 210.6666667 | H22: 208.48865 | I22: -2.178016667
B23: z toho: implantáty-kardiostim. | C23: 0 | D23: 0 | F23: 0 | G23: 0 | H23: 0 | I23: 0
B24: implantáty-defibrilátory | C24: 0 | D24: 0 | F24: 0 | G24: 0 | H24: 0 | I24: 0
B25: implantáty-TEP | C25: 0 | D25: 0 | F25: 0 | G25: 0 | H25: 0 | I25: 0
A26: 4 | B26: Všeobecný materiál | C26: 680 | D26: 136.65691 | F26: 55.50947 | G26: 113.3333333 | H26: 112.59317 | I26: -0.7401633333
A27: 5 | B27: Osobní náklady (OsN) | C27: 27649 | D27: 4059.47407 | F27: 2279.46173 | G27: 4608.166667 | H27: 4620.25901 | I27: 12.09234333
B28: z toho: hrubé mzdy | C28: 20329 | D28: 2984.047 | F28: 1674.14 | G28: 3388.166667 | H28: 3395.712 | I28: 7.545333333
A29: výnosové ukazatele:
A30: 6 | B30: Přímé výnosy (PV) | C30: 31054 | D30: 4470.14345 | F30: 2123.67783 | G30: 5175.666667 | H30: 4076.99016 | I30: -1098.676507
A31: 7 | B31: Výnosy ZP vč. agreg.V | C31: 27141 | D31: 4348.94553 | F31: 2005.62534 | G31: 4523.5 | H31: 3925.72193 | I31: -597.77807
A32: 8 | B32: ZUM, ZUL - limity | C32: 751.947 | D32: 61.57119 | F32: 86.26774 | G32: =C32/12*MONTH(dat_do) -> 125.3245 | H32: 102.66847 | I32: -22.65603
A33: ostatní ukazatele:
A34: 9 | B34: Body vč.agregovaných výkonů | C34: 29851.695 | D34: 4482.303 | F34: 2707.224 | G34: =C34/12*MONTH(dat_do) -> 4975.2825 | H34: 4681.099 | I34: -294.1835
A36: Poměrné ukazatale:
A37: 1 | B37: nákladová hodnota bodu-Ncelkem | C37: =C12/C34 -> 1.523364084 | D37: =D12/D34 -> 1.460837855 | F37: =F12/F34 -> 1.359786002 | G37: =G12/G34 -> 1.523364084 | H37: =H12/H34 -> 1.562119353
A38: 2 | B38: výnosová hodnota bodu - V celkem | C38: =C18/C34 -> 1.351447548 | D38: =D13/D34 -> 0.9880176039 | F38: =F13/F34 -> 0.777562662 | G38: =G13/G34 -> 1.029891267 | H38: =H13/H34 -> 0.8625319802
A39: 3 | B39: podíl OsN na celkových nákl. % | C39: =C27/C12% -> 60.8004398 | D39: =D27/D12% -> 61.99641065 | F39: =F27/F12% -> 61.92094099 | G39: =G27/G12% -> 60.8004398 | H39: =H27/H12% -> 63.18358789
A42: Zpracoval: oddělení ekonomických činností

Sheet 14
A1: Pracoviště: 14 Oční klinika
A3: =CONCATENATE("Základní ukazatele hospodaření na rok ",YEAR(dat_do)," (v tis.)") -> Základní ukazatele hospodaření na rok 2010 (v tis.)
G6: Vyhodnocení aktuálního období :
H7: =CONCATENATE("1 - ",MONTH(dat_do)," / ",YEAR(dat_do)) -> 1 - 2 / 2010
C8: A | D8: B | F8: C | G8: D | H8: E
C9: Rozpočet | D9: Skutečnost | F9: Skutečnost | G9: Rozpočet | H9: Skutečnost | I9: Rozdíl
C10: (limit) | D10: za | F10: za | G10: za | H10: za | I10: E - D
A11: Souhrnné ukazatele: | C11: =YEAR(dat_do) -> 2010 | D11: =CONCATENATE("1-",MONTH(dat_do),"/",YEAR(dat_do)-1) -> 1-2/2009 | F11: =CONCATENATE(MONTH(dat_do),"/",YEAR(dat_do)) -> 2/2010 | G11: =CONCATENATE("1-",MONTH(dat_do),"/",YEAR(dat_do)) -> 1-2/2010 | H11: =CONCATENATE("1-",MONTH(dat_do),"/",YEAR(dat_do)) -> 1-2/2010
A12: 1 | B12: Náklady celkem (N) | C12: 67636 | D12: 10163.3623 | F12: 6337.55391 | G12: 11272.66667 | H12: 13187.12019 | I12: =H12-G12 -> 1914.453523
A13: 2 | B13: Výnosy celkem (V) | C13: 76561 | D13: 8615.81082 | F13: 4511.11402 | G13: 12760.16667 | H13: 9223.5015 | I13: =H13-G13 -> -3536.665167
A14: 3 | B14: Hospodářský výsledek (HV) | C14: =C13-C12 -> 8925 | D14: =D13-D12 -> -1547.55148 | F14: =F13-F12 -> -1826.43989 | G14: =G13-G12 -> 1487.5 | H14: =H13-H12 -> -3963.61869
A16: Dílčí sledované ukazatele:
A17: nákladové ukazatele:
A18: 1 | B18: Přímé náklady (PN) | C18: 63150 | D18: 9389.60197 | F18: 5944.31067 | G18: 10525 | H18: 12414.44252 | I18: =H18-G18 -> 1889.44252
A19: 2 | B19: Léky | C19: 22256 | D19: 2900.22281 | F19: 2368.10562 | G19: 3709.333333 | H19: 5059.74995 | I19: 1350.416617
B20: z toho: vliv lékové vyhlášky | C20: 0 | D20: 0 | F20: 0 | G20: 0 | H20: 0 | I20: =H20-G20 -> 0
B21: spotřeba center | C21: 20220 | D21: 2604.88294 | F21: 2191.93986 | G21: 3370 | H21: 4698.20044 | I21: =H21-G21 -> 1328.20044
A22: 3 | B22: SZM | C22: 8705 | D22: 1444.07645 | F22: 857.34059 | G22: 1450.833333 | H22: 1732.39728 | I22: 281.5639467
B23: z toho: implantáty-kardiostim. | C23: 0 | D23: 0 | F23: 0 | G23: 0 | H23: 0 | I23: 0
B24: implantáty-defibrilátory | C24: 0 | D24: 0 | F24: 0 | G24: 0 | H24: 0 | I24: 0
B25: implantáty-TEP | C25: 0 | D25: 0 | F25: 0 | G25: 0 | H25: 0 | I25: 0
A26: 4 | B26: Všeobecný materiál | C26: 425 | D26: 71.91354 | F26: 42.04177 | G26: 70.83333333 | H26: 89.11332 | I26: 18.27998667
A27: 5 | B27: Osobní náklady (OsN) | C27: 24004 | D27: 3623.93622 | F27: 1945.63947 | G27: 4000.666667 | H27: 3935.32906 | I27: -65.33760667
B28: z toho: hrubé mzdy | C28: 17650 | D28: 2663.741 | F28: 1433.038 | G28: 2941.666667 | H28: 2896.119 | I28: -45.54766667
A29: výnosové ukazatele:
A30: 6 | B30: Přímé výnosy (PV) | C30: 76667 | D30: 8628.0767 | F30: 4518.5316 | G30: 12777.83333 | H30: 9236.48767 | I30: -3541.345663
A31: 7 | B31: Výnosy ZP vč. agreg.V | C31: 72867 | D31: 7842.00112 | F31: 3613.86344 | G31: 12144.5 | H31: 7748.79215 | I31: -4395.70785
A32: 8 | B32: ZUM, ZUL - limity | C32: 28860.877 | D32: 1215.17228 | F32: 1022.26594 | G32: =C32/12*MONTH(dat_do) -> 4810.146167 | H32: 2110.37082 | I32: -2699.775347
A33: ostatní ukazatele:
A34: 9 | B34: Body vč.agregovaných výkonů | C34: 42228.905 | D34: 6417.643 | F34: 2775.183 | G34: =C34/12*MONTH(dat_do) -> 7038.150833 | H34: 5606.753 | I34: -1431.397833
A36: Poměrné ukazatale:
A37: 1 | B37: nákladová hodnota bodu-Ncelkem | C37: =C12/C34 -> 1.60165176 | D37: =D12/D34 -> 1.583659655 | F37: =F12/F34 -> 2.283652613 | G37: =G12/G34 -> 1.60165176 | H37: =H12/H34 -> 2.352006623
A38: 2 | B38: výnosová hodnota bodu - V celkem | C38: =C18/C34 -> 1.495421205 | D38: =D13/D34 -> 1.342519492 | F38: =F13/F34 -> 1.625519477 | G38: =G13/G34 -> 1.812999887 | H38: =H13/H34 -> 1.645070061
A39: 3 | B39: podíl OsN na celkových nákl. % | C39: =C27/C12% -> 35.48997575 | D39: =D27/D12% -> 35.65686348 | F39: =F27/F12% -> 30.70016441 | G39: =G27/G12% -> 35.48997575 | H39: =H27/H12% -> 29.84221728
A42: Zpracoval: oddělení ekonomických činností

Sheet 15
A1: Pracoviště: 15 Oddělení alergologie a klinické imunologie
A3: =CONCATENATE("Základní ukazatele hospodaření na rok ",YEAR(dat_do)," (v tis.)") -> Základní ukazatele hospodaření na rok 2010 (v tis.)
G6: Vyhodnocení aktuálního období :
H7: =CONCATENATE("1 - ",MONTH(dat_do)," / ",YEAR(dat_do)) -> 1 - 2 / 2010
C8: A | D8: B | F8: C | G8: D | H8: E
C9: Rozpočet | D9: Skutečnost | F9: Skutečnost | G9: Rozpočet | H9: Skutečnost | I9: Rozdíl
C10: (limit) | D10: za | F10: za | G10: za | H10: za | I10: E - D
A11: Souhrnné ukazatele: | C11: =YEAR(dat_do) -> 2010 | D11: =CONCATENATE("1-",MONTH(dat_do),"/",YEAR(dat_do)-1) -> 1-2/2009 | F11: =CONCATENATE(MONTH(dat_do),"/",YEAR(dat_do)) -> 2/2010 | G11: =CONCATENATE("1-",MONTH(dat_do),"/",YEAR(dat_do)) -> 1-2/2010 | H11: =CONCATENATE("1-",MONTH(dat_do),"/",YEAR(dat_do)) -> 1-2/2010
A12: 1 | B12: Náklady celkem (N) | C12: 13963 | D12: 1585.69201 | F12: 1165.79859 | G12: 2327.166667 | H12: 2325.69726 | I12: =H12-G12 -> -1.469406667
A13: 2 | B13: Výnosy celkem (V) | C13: 11514 | D13: 1562.91746 | F13: 788.56309 | G13: 1919 | H13: 1609.56238 | I13: =H13-G13 -> -309.43762
A14: 3 | B14: Hospodářský výsledek (HV) | C14: =C13-C12 -> -2449 | D14: =D13-D12 -> -22.77455 | F14: =F13-F12 -> -377.2355 | G14: =G13-G12 -> -408.1666667 | H14: =H13-H12 -> -716.13488
A16: Dílčí sledované ukazatele:
A17: nákladové ukazatele:
A18: 1 | B18: Přímé náklady (PN) | C18: 12218 | D18: 1298.41866 | F18: 1010.93382 | G18: 2036.333333 | H18: 2024.1416 | I18: =H18-G18 -> -12.19173333
A19: 2 | B19: Léky | C19: 2636 | D19: 237.46343 | F19: 215.98085 | G19: 439.3333333 | H19: 410.16731 | I19: -29.16602333
B20: z toho: vliv lékové vyhlášky | C20: 0 | D20: 0 | F20: 0 | G20: 0 | H20: 0 | I20: =H20-G20 -> 0
B21: spotřeba center | C21: 933 | D21: 0 | F21: 101.90224 | G21: 155.5 | H21: 203.80448 | I21: =H21-G21 -> 48.30448
A22: 3 | B22: SZM | C22: 200 | D22: 13.99898 | F22: 5.85932 | G22: 33.33333333 | H22: 15.65182 | I22: -17.68151333
B23: z toho: implantáty-kardiostim. | C23: 0 | D23: 0 | F23: 0 | G23: 0 | H23: 0 | I23: 0
B24: implantáty-defibrilátory | C24: 0 | D24: 0 | F24: 0 | G24: 0 | H24: 0 | I24: 0
B25: implantáty-TEP | C25: 0 | D25: 0 | F25: 0 | G25: 0 | H25: 0 | I25: 0
A26: 4 | B26: Všeobecný materiál | C26: 83 | D26: 13.04466 | F26: 5.99652 | G26: 13.83333333 | H26: 13.78323 | I26: -0.05010333333
A27: 5 | B27: Osobní náklady (OsN) | C27: 8109 | D27: 1173.52241 | F27: 670.69209 | G27: 1351.5 | H27: 1343.92754 | I27: -7.57246
B28: z toho: hrubé mzdy | C28: 5962 | D28: 861.958 | F28: 491.532 | G28: 993.6666667 | H28: 986.56 | I28: -7.106666667
A29: výnosové ukazatele:
A30: 6 | B30: Přímé výnosy (PV) | C30: 11514 | D30: 1562.91746 | F30: 788.56309 | G30: 1919 | H30: 1609.56238 | I30: -309.43762
A31: 7 | B31: Výnosy ZP vč. agreg.V | C31: 11426 | D31: 1560.03368 | F31: 785.81184 | G31: 1904.333333 | H31: 1606.08284 | I31: -298.2504933
A32: 8 | B32: ZUM, ZUL - limity | C32: 3265.375 | D32: 269.11606 | F32: 311.69646 | G32: =C32/12*MONTH(dat_do) -> 544.2291667 | H32: 581.53701 | I32: 37.30784333
A33: ostatní ukazatele:
A34: 9 | B34: Body vč.agregovaných výkonů | C34: 9198.434 | D34: 1439.659 | F34: 679.903 | G34: =C34/12*MONTH(dat_do) -> 1533.072333 | H34: 1409.809 | I34: -123.2633333
A36: Poměrné ukazatale:
A37: 1 | B37: nákladová hodnota bodu-Ncelkem | C37: =C12/C34 -> 1.517975777 | D37: =D12/D34 -> 1.101435833 | F37: =F12/F34 -> 1.714654282 | G37: =G12/G34 -> 1.517975777 | H37: =H12/H34 -> 1.649654145
A38: 2 | B38: výnosová hodnota bodu - V celkem | C38: =C18/C34 -> 1.328269573 | D38: =D13/D34 -> 1.085616427 | F38: =F13/F34 -> 1.159817047 | G38: =G13/G34 -> 1.251734806 | H38: =H13/H34 -> 1.141688257
A39: 3 | B39: podíl OsN na celkových nákl. % | C39: =C27/C12% -> 58.07491227 | D39: =D27/D12% -> 74.00695738 | F39: =F27/F12% -> 57.53070005 | G39: =G27/G12% -> 58.07491227 | H39: =H27/H12% -> 57.78600522
A42: Zpracoval: oddělení ekonomických činností

Sheet 16
A1: Pracoviště: 16 Klinika plicních nemocí a tuberkulózy
A3: =CONCATENATE("Základní ukazatele hospodaření na rok ",YEAR(dat_do)," (v tis.)") -> Základní ukazatele hospodaření na rok 2010 (v tis.)
G6: Vyhodnocení aktuálního období :
H7: =CONCATENATE("1 - ",MONTH(dat_do)," / ",YEAR(dat_do)) -> 1 - 2 / 2010
C8: A | D8: B | F8: C | G8: D | H8: E
C9: Rozpočet | D9: Skutečnost | F9: Skutečnost | G9: Rozpočet | H9: Skutečnost | I9: Rozdíl
C10: (limit) | D10: za | F10: za | G10: za | H10: za | I10: E - D
A11: Souhrnné ukazatele: | C11: =YEAR(dat_do) -> 2010 | D11: =CONCATENATE("1-",MONTH(dat_do),"/",YEAR(dat_do)-1) -> 1-2/2009 | F11: =CONCATENATE(MONTH(dat_do),"/",YEAR(dat_do)) -> 2/2010 | G11: =CONCATENATE("1-",MONTH(dat_do),"/",YEAR(dat_do)) -> 1-2/2010 | H11: =CONCATENATE("1-",MONTH(dat_do),"/",YEAR(dat_do)) -> 1-2/2010
A12: 1 | B12: Náklady celkem (N) | C12: 82057 | D12: 12728.5559 | F12: 7196.46613 | G12: 13676.16667 | H12: 14920.51988 | I12: =H12-G12 -> 1244.353213
A13: 2 | B13: Výnosy celkem (V) | C13: 62817 | D13: 9866.70788 | F13: 4260.85944 | G13: 10469.5 | H13: 9373.10769 | I13: =H13-G13 -> -1096.39231
A14: 3 | B14: Hospodářský výsledek (HV) | C14: =C13-C12 -> -19240 | D14: =D13-D12 -> -2861.84802 | F14: =F13-F12 -> -2935.60669 | G14: =G13-G12 -> -3206.666667 | H14: =H13-H12 -> -5547.41219
A16: Dílčí sledované ukazatele:
A17: nákladové ukazatele:
A18: 1 | B18: Přímé náklady (PN) | C18: 75311 | D18: 11411.6812 | F18: 6573.12054 | G18: 12551.83333 | H18: 13684.14047 | I18: =H18-G18 -> 1132.307137
A19: 2 | B19: Léky | C19: 27650 | D19: 4223.98958 | F19: 2372.55664 | G19: 4608.333333 | H19: 5142.23918 | I19: 533.9058467
B20: z toho: vliv lékové vyhlášky | C20: 1779 | D20: 298.76158 | F20: 244.58478 | G20: 296.5 | H20: 653.69219 | I20: =H20-G20 -> 357.19219
B21: spotřeba center | C21: 15772 | D21: 2383.18298 | F21: 1310.81242 | G21: 2628.666667 | H21: 2397.90162 | I21: =H21-G21 -> -230.7650467
A22: 3 | B22: SZM | C22: 2421 | D22: 516.40051 | F22: 288.26517 | G22: 403.5 | H22: 421.47238 | I22: 17.97238
B23: z toho: implantáty-kardiostim. | C23: 0 | D23: 0 | F23: 0 | G23: 0 | H23: 0 | I23: 0
B24: implantáty-defibrilátory | C24: 0 | D24: 0 | F24: 0 | G24: 0 | H24: 0 | I24: 0
B25: implantáty-TEP | C25: 0 | D25: 0 | F25: 0 | G25: 0 | H25: 0 | I25: 0
A26: 4 | B26: Všeobecný materiál | C26: 811 | D26: 148.10993 | F26: 74.99293 | G26: 135.1666667 | H26: 153.09524 | I26: 17.92857333
A27: 5 | B27: Osobní náklady (OsN) | C27: 33713 | D27: 4986.71771 | F27: 2957.45191 | G27: 5618.833333 | H27: 6095.39945 | I27: 476.5661167
B28: z toho: hrubé mzdy | C28: 24789 | D28: 3661.845 | F28: 2169.654 | G28: 4131.5 | H28: 4474.297 | I28: 342.797
A29: výnosové ukazatele:
A30: 6 | B30: Přímé výnosy (PV) | C30: 64871 | D30: 10081.60609 | F30: 4416.23688 | G30: 10811.83333 | H30: 9716.39167 | I30: -1095.441663
A31: 7 | B31: Výnosy ZP vč. agreg.V | C31: 61091 | D31: 9694.33375 | F31: 4137.17789 | G31: 10181.83333 | H31: 9234.58286 | I31: -947.2504733
A32: 8 | B32: ZUM, ZUL - limity | C32: 27210.193 | D32: 3864.24902 | F32: 1896.07292 | G32: =C32/12*MONTH(dat_do) -> 4535.032167 | H32: 4358.91933 | I32: -176.1128367
A33: ostatní ukazatele:
A34: 9 | B34: Body vč.agregovaných výkonů | C34: 38283.694 | D34: 5975.459 | F34: 3061.509 | G34: =C34/12*MONTH(dat_do) -> 6380.615667 | H34: 5427.726 | I34: -952.8896667
A36: Poměrné ukazatale:
A37: 1 | B37: nákladová hodnota bodu-Ncelkem | C37: =C12/C34 -> 2.143392955 | D37: =D12/D34 -> 2.130138605 | F37: =F12/F34 -> 2.350627135 | G37: =G12/G34 -> 2.143392955 | H37: =H12/H34 -> 2.748944932
A38: 2 | B38: výnosová hodnota bodu - V celkem | C38: =C18/C34 -> 1.967182164 | D38: =D13/D34 -> 1.651205017 | F38: =F13/F34 -> 1.391751401 | G38: =G13/G34 -> 1.640829122 | H38: =H13/H34 -> 1.726894042
A39: 3 | B39: podíl OsN na celkových nákl. % | C39: =C27/C12% -> 41.08485565 | D39: =D27/D12% -> 39.17740354 | F39: =F27/F12% -> 41.09589146 | G39: =G27/G12% -> 41.08485565 | H39: =H27/H12% -> 40.85246023
A42: Zpracoval: oddělení ekonomických činností

Sheet 17
A1: Pracoviště: 17 Neurologická klinika
A3: =CONCATENATE("Základní ukazatele hospodaření na rok ",YEAR(dat_do)," (v tis.)") -> Základní ukazatele hospodaření na rok 2010 (v tis.)
G6: Vyhodnocení aktuálního období :
H7: =CONCATENATE("1 - ",MONTH(dat_do)," / ",YEAR(dat_do)) -> 1 - 2 / 2010
C8: A | D8: B | F8: C | G8: D | H8: E
C9: Rozpočet | D9: Skutečnost | F9: Skutečnost | G9: Rozpočet | H9: Skutečnost | I9: Rozdíl
C10: (limit) | D10: za | F10: za | G10: za | H10: za | I10: E - D
A11: Souhrnné ukazatele: | C11: =YEAR(dat_do) -> 2010 | D11: =CONCATENATE("1-",MONTH(dat_do),"/",YEAR(dat_do)-1) -> 1-2/2009 | F11: =CONCATENATE(MONTH(dat_do),"/",YEAR(dat_do)) -> 2/2010 | G11: =CONCATENATE("1-",MONTH(dat_do),"/",YEAR(dat_do)) -> 1-2/2010 | H11: =CONCATENATE("1-",MONTH(dat_do),"/",YEAR(dat_do)) -> 1-2/2010
A12: 1 | B12: Náklady celkem (N) | C12: 165299 | D12: 29085.43772 | F12: 14338.54966 | G12: 27549.83333 | H12: 28734.94405 | I12: =H12-G12 -> 1185.110717
A13: 2 | B13: Výnosy celkem (V) | C13: 140610 | D13: 25172.0604 | F13: 11239.74481 | G13: 23435 | H13: 23453.50652 | I13: =H13-G13 -> 18.50652
A14: 3 | B14: Hospodářský výsledek (HV) | C14: =C13-C12 -> -24689 | D14: =D13-D12 -> -3913.37732 | F14: =F13-F12 -> -3098.80485 | G14: =G13-G12 -> -4114.833333 | H14: =H13-H12 -> -5281.43753
A16: Dílčí sledované ukazatele:
A17: nákladové ukazatele:
A18: 1 | B18: Přímé náklady (PN) | C18: 157344 | D18: 27851.22428 | F18: 13571.34462 | G18: 26224 | H18: 26975.78072 | I18: =H18-G18 -> 751.78072
A19: 2 | B19: Léky | C19: 112273 | D19: 21578.2991 | F19: 9144.89824 | G19: 18712.16667 | H19: 18163.61618 | I19: -548.5504867
B20: z toho: vliv lékové vyhlášky | C20: 14 | D20: 0 | F20: 0 | G20: 2.333333333 | H20: 0 | I20: =H20-G20 -> -2.333333333
B21: spotřeba center | C21: 92008 | D21: 19860.47178 | F21: 8409.3657 | G21: 15334.66667 | H21: 16321.83924 | I21: =H21-G21 -> 987.1725733
A22: 3 | B22: SZM | C22: 1026 | D22: 200.895 | F22: 95.25659 | G22: 171 | H22: 213.22414 | I22: 42.22414
B23: z toho: implantáty-kardiostim. | C23: 0 | D23: 0 | F23: 0 | G23: 0 | H23: 0 | I23: 0
B24: implantáty-defibrilátory | C24: 0 | D24: 0 | F24: 0 | G24: 0 | H24: 0 | I24: 0
B25: implantáty-TEP | C25: 0 | D25: 0 | F25: 0 | G25: 0 | H25: 0 | I25: 0
A26: 4 | B26: Všeobecný materiál | C26: 665 | D26: 100.83649 | F26: 48.62423 | G26: 110.8333333 | H26: 109.02284 | I26: -1.810493333
A27: 5 | B27: Osobní náklady (OsN) | C27: 35118 | D27: 4595.61735 | F27: 3496.64978 | G27: 5853 | H27: 6849.36508 | I27: 996.36508
B28: z toho: hrubé mzdy | C28: 25822 | D28: 3373.219 | F28: 2566.574 | G28: 4303.666667 | H28: 5028.905 | I28: 725.2383333
A29: výnosové ukazatele:
A30: 6 | B30: Přímé výnosy (PV) | C30: 141958 | D30: 25307.24619 | F30: 11314.13916 | G30: 23659.66667 | H30: 23642.15335 | I30: -17.51331667
A31: 7 | B31: Výnosy ZP vč. agreg.V | C31: 140031 | D31: 24664.82575 | F31: 10892.11721 | G31: 23338.5 | H31: 22405.89922 | I31: -932.60078
A32: 8 | B32: ZUM, ZUL - limity | C32: 103660.969 | D32: 19593.53047 | F32: 8786.98289 | G32: =C32/12*MONTH(dat_do) -> 17276.82817 | H32: 16960.02913 | I32: -316.7990367
A33: ostatní ukazatele:
A34: 9 | B34: Body vč.agregovaných výkonů | C34: 40921.65 | D34: 4261.75 | F34: 2834.886 | G34: =C34/12*MONTH(dat_do) -> 6820.275 | H34: 3839.802 | I34: -2980.473
A36: Poměrné ukazatale:
A37: 1 | B37: nákladová hodnota bodu-Ncelkem | C37: =C12/C34 -> 4.039402126 | D37: =D12/D34 -> 6.82476394 | F37: =F12/F34 -> 5.057892861 | G37: =G12/G34 -> 4.039402126 | H37: =H12/H34 -> 7.483444211
A38: 2 | B38: výnosová hodnota bodu - V celkem | C38: =C18/C34 -> 3.84500625 | D38: =D13/D34 -> 5.906507984 | F38: =F13/F34 -> 3.964796048 | G38: =G13/G34 -> 3.436078457 | H38: =H13/H34 -> 6.107998933
A39: 3 | B39: podíl OsN na celkových nákl. % | C39: =C27/C12% -> 21.2451376 | D39: =D27/D12% -> 15.80040636 | F39: =F27/F12% -> 24.3863561 | G39: =G27/G12% -> 21.2451376 | H39: =H27/H12% -> 23.83636129
A42: Zpracoval: oddělení ekonomických činností

Sheet 18
A1: Pracoviště: 18 Klinika psychiatrie
A3: =CONCATENATE("Základní ukazatele hospodaření na rok ",YEAR(dat_do)," (v tis.)") -> Základní ukazatele hospodaření na rok 2010 (v tis.)
G6: Vyhodnocení aktuálního období :
H7: =CONCATENATE("1 - ",MONTH(dat_do)," / ",YEAR(dat_do)) -> 1 - 2 / 2010
C8: A | D8: B | F8: C | G8: D | H8: E
C9: Rozpočet | D9: Skutečnost | F9: Skutečnost | G9: Rozpočet | H9: Skutečnost | I9: Rozdíl
C10: (limit) | D10: za | F10: za | G10: za | H10: za | I10: E - D
A11: Souhrnné ukazatele: | C11: =YEAR(dat_do) -> 2010 | D11: =CONCATENATE("1-",MONTH(dat_do),"/",YEAR(dat_do)-1) -> 1-2/2009 | F11: =CONCATENATE(MONTH(dat_do),"/",YEAR(dat_do)) -> 2/2010 | G11: =CONCATENATE("1-",MONTH(dat_do),"/",YEAR(dat_do)) -> 1-2/2010 | H11: =CONCATENATE("1-",MONTH(dat_do),"/",YEAR(dat_do)) -> 1-2/2010
A12: 1 | B12: Náklady celkem (N) | C12: 40469 | D12: 5759.43683 | F12: 3743.94548 | G12: 6744.833333 | H12: 7702.90405 | I12: =H12-G12 -> 958.0707167
A13: 2 | B13: Výnosy celkem (V) | C13: 37703 | D13: 5860.13316 | F13: 2626.29169 | G13: 6283.833333 | H13: 4302.17516 | I13: =H13-G13 -> -1981.658173
A14: 3 | B14: Hospodářský výsledek (HV) | C14: =C13-C12 -> -2766 | D14: =D13-D12 -> 100.69633 | F14: =F13-F12 -> -1117.65379 | G14: =G13-G12 -> -461 | H14: =H13-H12 -> -3400.72889
A16: Dílčí sledované ukazatele:
A17: nákladové ukazatele:
A18: 1 | B18: Přímé náklady (PN) | C18: 35723 | D18: 5025.32829 | F18: 3306.41538 | G18: 5953.833333 | H18: 6811.31423 | I18: =H18-G18 -> 857.4808967
A19: 2 | B19: Léky | C19: 2188 | D19: 353.23446 | F19: 213.75897 | G19: 364.6666667 | H19: 333.87375 | I19: -30.79291667
B20: z toho: vliv lékové vyhlášky | C20: 1 | D20: 0 | F20: 0 | G20: 0.1666666667 | H20: 0 | I20: =H20-G20 -> -0.1666666667
B21: spotřeba center | C21: 0 | D21: 0 | F21: 0 | G21: 0 | H21: 0 | I21: =H21-G21 -> 0
A22: 3 | B22: SZM | C22: 45 | D22: 6.47886 | F22: 4.60104 | G22: 7.5 | H22: 6.19588 | I22: -1.30412
B23: z toho: implantáty-kardiostim. | C23: 0 | D23: 0 | F23: 0 | G23: 0 | H23: 0 | I23: 0
B24: implantáty-defibrilátory | C24: 0 | D24: 0 | F24: 0 | G24: 0 | H24: 0 | I24: 0
B25: implantáty-TEP | C25: 0 | D25: 0 | F25: 0 | G25: 0 | H25: 0 | I25: 0
A26: 4 | B26: Všeobecný materiál | C26: 201 | D26: 36.06403 | F26: 15.28436 | G26: 33.5 | H26: 27.95682 | I26: -5.54318
A27: 5 | B27: Osobní náklady (OsN) | C27: 26853 | D27: 3732.08105 | F27: 2393.90176 | G27: 4475.5 | H27: 5115.33054 | I27: 639.83054
B28: z toho: hrubé mzdy | C28: 19744 | D28: 2735.753 | F28: 1760.842 | G28: 3290.666667 | H28: 3759.002 | I28: 468.3353333
A29: výnosové ukazatele:
A30: 6 | B30: Přímé výnosy (PV) | C30: 37962 | D30: 5889.44604 | F30: 2642.31871 | G30: 6327 | H30: 4339.61196 | I30: -1987.38804
A31: 7 | B31: Výnosy ZP vč. agreg.V | C31: 37235 | D31: 5792.54567 | F31: 2586.41538 | G31: 6205.833333 | H31: 4230.92386 | I31: -1974.909473
A32: 8 | B32: ZUM, ZUL - limity | C32: 3511.031 | D32: 318.21682 | F32: 113.77304 | G32: =C32/12*MONTH(dat_do) -> 585.1718333 | H32: 195.01308 | I32: -390.1587533
A33: ostatní ukazatele:
A34: 9 | B34: Body vč.agregovaných výkonů | C34: 38157.511 | D34: 6075.678 | F34: 3345.627 | G34: =C34/12*MONTH(dat_do) -> 6359.585167 | H34: 5344.374 | I34: -1015.211167
A36: Poměrné ukazatale:
A37: 1 | B37: nákladová hodnota bodu-Ncelkem | C37: =C12/C34 -> 1.060577562 | D37: =D12/D34 -> 0.9479496494 | F37: =F12/F34 -> 1.119056452 | G37: =G12/G34 -> 1.060577562 | H37: =H12/H34 -> 1.441310816
A38: 2 | B38: výnosová hodnota bodu - V celkem | C38: =C18/C34 -> 0.9361983804 | D38: =D13/D34 -> 0.9645233273 | F38: =F13/F34 -> 0.7849923766 | G38: =G13/G34 -> 0.9880885575 | H38: =H13/H34 -> 0.8049914097
A39: 3 | B39: podíl OsN na celkových nákl. % | C39: =C27/C12% -> 66.35449356 | D39: =D27/D12% -> 64.79940939 | F39: =F27/F12% -> 63.94061486 | G39: =G27/G12% -> 66.35449356 | H39: =H27/H12% -> 66.40781849
A42: Zpracoval: oddělení ekonomických činností

Sheet 19
A1: Pracoviště: 19 Klinika pracovního lékařství
A3: =CONCATENATE("Základní ukazatele hospodaření na rok ",YEAR(dat_do)," (v tis.)") -> Základní ukazatele hospodaření na rok 2010 (v tis.)
G6: Vyhodnocení aktuálního období :
H7: =CONCATENATE("1 - ",MONTH(dat_do)," / ",YEAR(dat_do)) -> 1 - 2 / 2010
C8: A | D8: B | F8: C | G8: D | H8: E
C9: Rozpočet | D9: Skutečnost | F9: Skutečnost | G9: Rozpočet | H9: Skutečnost | I9: Rozdíl
C10: (limit) | D10: za | F10: za | G10: za | H10: za | I10: E - D
A11: Souhrnné ukazatele: | C11: =YEAR(dat_do) -> 2010 | D11: =CONCATENATE("1-",MONTH(dat_do),"/",YEAR(dat_do)-1) -> 1-2/2009 | F11: =CONCATENATE(MONTH(dat_do),"/",YEAR(dat_do)) -> 2/2010 | G11: =CONCATENATE("1-",MONTH(dat_do),"/",YEAR(dat_do)) -> 1-2/2010 | H11: =CONCATENATE("1-",MONTH(dat_do),"/",YEAR(dat_do)) -> 1-2/2010
A12: 1 | B12: Náklady celkem (N) | C12: 11164 | D12: 1764.85613 | F12: 986.73331 | G12: 1860.666667 | H12: 2015.23413 | I12: =H12-G12 -> 154.5674633
A13: 2 | B13: Výnosy celkem (V) | C13: 8137 | D13: 1272.22489 | F13: 619.72112 | G13: 1356.166667 | H13: 1077.88718 | I13: =H13-G13 -> -278.2794867
A14: 3 | B14: Hospodářský výsledek (HV) | C14: =C13-C12 -> -3027 | D14: =D13-D12 -> -492.63124 | F14: =F13-F12 -> -367.01219 | G14: =G13-G12 -> -504.5 | H14: =H13-H12 -> -937.34695
A16: Dílčí sledované ukazatele:
A17: nákladové ukazatele:
A18: 1 | B18: Přímé náklady (PN) | C18: 9775 | D18: 1542.06837 | F18: 864.65331 | G18: 1629.166667 | H18: 1777.19659 | I18: =H18-G18 -> 148.0299233
A19: 2 | B19: Léky | C19: 483 | D19: 49.3878 | F19: 26.77324 | G19: 80.5 | H19: 63.7394 | I19: -16.7606
B20: z toho: vliv lékové vyhlášky | C20: 0 | D20: 0 | F20: 0 | G20: 0 | H20: 0 | I20: =H20-G20 -> 0
B21: spotřeba center | C21: 0 | D21: 0 | F21: 0 | G21: 0 | H21: 0 | I21: =H21-G21 -> 0
A22: 3 | B22: SZM | C22: 80 | D22: 13.11334 | F22: 6.60906 | G22: 13.33333333 | H22: 13.02254 | I22: -0.3107933333
B23: z toho: implantáty-kardiostim. | C23: 0 | D23: 0 | F23: 0 | G23: 0 | H23: 0 | I23: 0
B24: implantáty-defibrilátory | C24: 0 | D24: 0 | F24: 0 | G24: 0 | H24: 0 | I24: 0
B25: implantáty-TEP | C25: 0 | D25: 0 | F25: 0 | G25: 0 | H25: 0 | I25: 0
A26: 4 | B26: Všeobecný materiál | C26: 71 | D26: 11.23365 | F26: 6.63876 | G26: 11.83333333 | H26: 13.03921 | I26: 1.205876667
A27: 5 | B27: Osobní náklady (OsN) | C27: 6947 | D27: 1035.85489 | F27: 611.85561 | G27: 1157.833333 | H27: 1231.0417 | I27: 73.20836667
B28: z toho: hrubé mzdy | C28: 5108 | D28: 761.657 | F28: 449.557 | G28: 851.3333333 | H28: 904.391 | I28: 53.05766667
A29: výnosové ukazatele:
A30: 6 | B30: Přímé výnosy (PV) | C30: 8329 | D30: 1293.14737 | F30: 630.55404 | G30: 1388.166667 | H30: 1100.11635 | I30: -288.0503167
A31: 7 | B31: Výnosy ZP vč. agreg.V | C31: 7018 | D31: 1105.25309 | F31: 516.81273 | G31: 1169.666667 | H31: 914.92159 | I31: -254.7450767
A32: 8 | B32: ZUM, ZUL - limity | C32: 86.358 | D32: 3.84475 | F32: 2.5132 | G32: =C32/12*MONTH(dat_do) -> 14.393 | H32: 4.82471 | I32: -9.56829
A33: ostatní ukazatele:
A34: 9 | B34: Body vč.agregovaných výkonů | C34: 7844.784 | D34: 1213.774 | F34: 728.174 | G34: =C34/12*MONTH(dat_do) -> 1307.464 | H34: 1295.169 | I34: -12.295
A36: Poměrné ukazatale:
A37: 1 | B37: nákladová hodnota bodu-Ncelkem | C37: =C12/C34 -> 1.423111204 | D37: =D12/D34 -> 1.454023673 | F37: =F12/F34 -> 1.35507902 | G37: =G12/G34 -> 1.423111204 | H37: =H12/H34 -> 1.555962295
A38: 2 | B38: výnosová hodnota bodu - V celkem | C38: =C18/C34 -> 1.246050879 | D38: =D13/D34 -> 1.048156321 | F38: =F13/F34 -> 0.8510618616 | G38: =G13/G34 -> 1.037249719 | H38: =H13/H34 -> 0.8322367042
A39: 3 | B39: podíl OsN na celkových nákl. % | C39: =C27/C12% -> 62.22680043 | D39: =D27/D12% -> 58.69344659 | F39: =F27/F12% -> 62.00820463 | G39: =G27/G12% -> 62.22680043 | H39: =H27/H12% -> 61.086783
A42: Zpracoval: oddělení ekonomických činností

Sheet 20
A1: Pracoviště: 20 Klinika chorob kožních a pohlavních
A3: =CONCATENATE("Základní ukazatele hospodaření na rok ",YEAR(dat_do)," (v tis.)") -> Základní ukazatele hospodaření na rok 2010 (v tis.)
G6: Vyhodnocení aktuálního období :
H7: =CONCATENATE("1 - ",MONTH(dat_do)," / ",YEAR(dat_do)) -> 1 - 2 / 2010
C8: A | D8: B | F8: C | G8: D | H8: E
C9: Rozpočet | D9: Skutečnost | F9: Skutečnost | G9: Rozpočet | H9: Skutečnost | I9: Rozdíl
C10: (limit) | D10: za | F10: za | G10: za | H10: za | I10: E - D
A11: Souhrnné ukazatele: | C11: =YEAR(dat_do) -> 2010 | D11: =CONCATENATE("1-",MONTH(dat_do),"/",YEAR(dat_do)-1) -> 1-2/2009 | F11: =CONCATENATE(MONTH(dat_do),"/",YEAR(dat_do)) -> 2/2010 | G11: =CONCATENATE("1-",MONTH(dat_do),"/",YEAR(dat_do)) -> 1-2/2010 | H11: =CONCATENATE("1-",MONTH(dat_do),"/",YEAR(dat_do)) -> 1-2/2010
A12: 1 | B12: Náklady celkem (N) | C12: 31680 | D12: 4650.05469 | F12: 3281.49346 | G12: 5280 | H12: 6314.06627 | I12: =H12-G12 -> 1034.06627
A13: 2 | B13: Výnosy celkem (V) | C13: 26610 | D13: 3714.37836 | F13: 2067.86745 | G13: 4435 | H13: 4215.55975 | I13: =H13-G13 -> -219.44025
A14: 3 | B14: Hospodářský výsledek (HV) | C14: =C13-C12 -> -5070 | D14: =D13-D12 -> -935.67633 | F14: =F13-F12 -> -1213.62601 | G14: =G13-G12 -> -845 | H14: =H13-H12 -> -2098.50652
A16: Dílčí sledované ukazatele:
A17: nákladové ukazatele:
A18: 1 | B18: Přímé náklady (PN) | C18: 28931 | D18: 4260.8238 | F18: 3051.65148 | G18: 4821.833333 | H18: 5856.21151 | I18: =H18-G18 -> 1034.378177
A19: 2 | B19: Léky | C19: 12816 | D19: 1798.64935 | F19: 1628.33468 | G19: 2136 | H19: 2945.80462 | I19: 809.80462
B20: z toho: vliv lékové vyhlášky | C20: 0 | D20: 0 | F20: 0 | G20: 0 | H20: 0 | I20: =H20-G20 -> 0
B21: spotřeba center | C21: 11891 | D21: 1674.72746 | F21: 1564.95329 | G21: 1981.833333 | H21: 2791.26483 | I21: =H21-G21 -> 809.4314967
A22: 3 | B22: SZM | C22: 249 | D22: 66.81196 | F22: 19.54364 | G22: 41.5 | H22: 38.71021 | I22: -2.78979
B23: z toho: implantáty-kardiostim. | C23: 0 | D23: 0 | F23: 0 | G23: 0 | H23: 0 | I23: 0
B24: implantáty-defibrilátory | C24: 0 | D24: 0 | F24: 0 | G24: 0 | H24: 0 | I24: 0
B25: implantáty-TEP | C25: 0 | D25: 0 | F25: 0 | G25: 0 | H25: 0 | I25: 0
A26: 4 | B26: Všeobecný materiál | C26: 176 | D26: 37.5149 | F26: 9.66846 | G26: 29.33333333 | H26: 24.86641 | I26: -4.466923333
A27: 5 | B27: Osobní náklady (OsN) | C27: 11755 | D27: 1651.4316 | F27: 997.45869 | G27: 1959.166667 | H27: 2026.93699 | I27: 67.77032333
B28: z toho: hrubé mzdy | C28: 8642 | D28: 1213.32 | F28: 733.378 | G28: 1440.333333 | H28: 1490.48 | I28: 50.14666667
A29: výnosové ukazatele:
A30: 6 | B30: Přímé výnosy (PV) | C30: 27243 | D30: 3763.80801 | F30: 2106.02945 | G30: 4540.5 | H30: 4296.3078 | I30: -244.1922
A31: 7 | B31: Výnosy ZP vč. agreg.V | C31: 26320 | D31: 3687.92002 | F31: 2030.64762 | G31: 4386.666667 | H31: 4160.16782 | I31: -226.4988467
A32: 8 | B32: ZUM, ZUL - limity | C32: 12297.079 | D32: 1541.13127 | F32: 1139.32095 | G32: =C32/12*MONTH(dat_do) -> 2049.513167 | H32: 2346.44077 | I32: 296.9276033
A33: ostatní ukazatele:
A34: 9 | B34: Body vč.agregovaných výkonů | C34: 15865.223 | D34: 2301.378 | F34: 1266.603 | G34: =C34/12*MONTH(dat_do) -> 2644.203833 | H34: 2358.035 | I34: -286.1688333
A36: Poměrné ukazatale:
A37: 1 | B37: nákladová hodnota bodu-Ncelkem | C37: =C12/C34 -> 1.996820341 | D37: =D12/D34 -> 2.020552334 | F37: =F12/F34 -> 2.590782953 | G37: =G12/G34 -> 1.996820341 | H37: =H12/H34 -> 2.677681319
A38: 2 | B38: výnosová hodnota bodu - V celkem | C38: =C18/C34 -> 1.823548273 | D38: =D13/D34 -> 1.613980128 | F38: =F13/F34 -> 1.632608994 | G38: =G13/G34 -> 1.677253449 | H38: =H13/H34 -> 1.787742654
A39: 3 | B39: podíl OsN na celkových nákl. % | C39: =C27/C12% -> 37.10542929 | D39: =D27/D12% -> 35.51424037 | F39: =F27/F12% -> 30.39648569 | G39: =G27/G12% -> 37.10542929 | H39: =H27/H12% -> 32.10192772
A42: Zpracoval: oddělení ekonomických činností

Sheet 21
A1: Pracoviště: 21 Onkologická klinika
A3: =CONCATENATE("Základní ukazatele hospodaření na rok ",YEAR(dat_do)," (v tis.)") -> Základní ukazatele hospodaření na rok 2010 (v tis.)
G6: Vyhodnocení aktuálního období :
H7: =CONCATENATE("1 - ",MONTH(dat_do)," / ",YEAR(dat_do)) -> 1 - 2 / 2010
C8: A | D8: B | F8: C | G8: D | H8: E
C9: Rozpočet | D9: Skutečnost | F9: Skutečnost | G9: Rozpočet | H9: Skutečnost | I9: Rozdíl
C10: (limit) | D10: za | F10: za | G10: za | H10: za | I10: E - D
A11: Souhrnné ukazatele: | C11: =YEAR(dat_do) -> 2010 | D11: =CONCATENATE("1-",MONTH(dat_do),"/",YEAR(dat_do)-1) -> 1-2/2009 | F11: =CONCATENATE(MONTH(dat_do),"/",YEAR(dat_do)) -> 2/2010 | G11: =CONCATENATE("1-",MONTH(dat_do),"/",YEAR(dat_do)) -> 1-2/2010 | H11: =CONCATENATE("1-",MONTH(dat_do),"/",YEAR(dat_do)) -> 1-2/2010
A12: 1 | B12: Náklady celkem (N) | C12: 265945 | D12: 36787.9603 | F12: 21945.56429 | G12: 44324.16667 | H12: 48138.58364 | I12: =H12-G12 -> 3814.416973
A13: 2 | B13: Výnosy celkem (V) | C13: 267726 | D13: 38603.62944 | F13: 22104.63118 | G13: 44621 | H13: 47785.68722 | I13: =H13-G13 -> 3164.68722
A14: 3 | B14: Hospodářský výsledek (HV) | C14: =C13-C12 -> 1781 | D14: =D13-D12 -> 1815.66914 | F14: =F13-F12 -> 159.06689 | G14: =G13-G12 -> 296.8333333 | H14: =H13-H12 -> -352.89642
A16: Dílčí sledované ukazatele:
A17: nákladové ukazatele:
A18: 1 | B18: Přímé náklady (PN) | C18: 258763 | D18: 35700.57385 | F18: 21302.84827 | G18: 43127.16667 | H18: 46870.52108 | I18: =H18-G18 -> 3743.354413
A19: 2 | B19: Léky | C19: 176791 | D19: 24767.3905 | F19: 14289.5529 | G19: 29465.16667 | H19: 32641.81532 | I19: 3176.648653
B20: z toho: vliv lékové vyhlášky | C20: 28194 | D20: 7059.33059 | F20: 1864.05442 | G20: 4699 | H20: 3977.79402 | I20: -721.20598
B21: spotřeba center | C21: 117211 | D21: 16050.23687 | F21: 10034.04395 | G21: 19535.16667 | H21: 23019.76867 | I21: 3484.602003
A22: 3 | B22: SZM | C22: 2085 | D22: 247.70376 | F22: 211.69867 | G22: 347.5 | H22: 400.0875 | I22: 52.5875
B23: z toho: implantáty-kardiostim. | C23: 0 | D23: 0 | F23: 0 | G23: 0 | H23: 0 | I23: 0
B24: implantáty-defibrilátory | C24: 0 | D24: 0 | F24: 0 | G24: 0 | H24: 0 | I24: 0
B25: implantáty-TEP | C25: 0 | D25: 0 | F25: 0 | G25: 0 | H25: 0 | I25: 0
A26: 4 | B26: Všeobecný materiál | C26: 520 | D26: 80.23376 | F26: 79.11412 | G26: 86.66666667 | H26: 133.32683 | I26: 46.66016333
A27: 5 | B27: Osobní náklady (OsN) | C27: 39887 | D27: 5430.84175 | F27: 3394.43423 | G27: 6647.833333 | H27: 6872.96481 | I27: 225.1314767
B28: z toho: hrubé mzdy | C28: 29328 | D28: 3989.562 | F28: 2490.677 | G28: 4888 | H28: 5042.848 | I28: 154.848
A29: výnosové ukazatele:
A30: 6 | B30: Přímé výnosy (PV) | C30: 268769 | D30: 38718.59239 | F30: 22201.45423 | G30: 44794.83333 | H30: 47965.26748 | I30: 3170.434147
A31: 7 | B31: Výnosy ZP vč. agreg.V | C31: 266326 | D31: 37944.45224 | F31: 21923.80142 | G31: 44387.66667 | H31: 47425.06858 | I31: 3037.401913
A32: 8 | B32: ZUM, ZUL - limity | C32: 200154.577 | D32: 28486.16376 | F32: 16263.84826 | G32: =C32/12*MONTH(dat_do) -> 33359.09617 | H32: 33986.95995 | I32: 627.8637833
A33: ostatní ukazatele:
A34: 9 | B34: Body vč.agregovaných výkonů | C34: 74645.205 | D34: 9298.016 | F34: 7986.304 | G34: =C34/12*MONTH(dat_do) -> 12440.8675 | H34: 13951.811 | I34: 1510.9435
A36: Poměrné ukazatale:
A37: 1 | B37: nákladová hodnota bodu-Ncelkem | C37: =C12/C34 -> 3.562787456 | D37: =D12/D34 -> 3.956538718 | F37: =F12/F34 -> 2.747899941 | G37: =G12/G34 -> 3.562787456 | H37: =H12/H34 -> 3.450346599
A38: 2 | B38: výnosová hodnota bodu - V celkem | C38: =C18/C34 -> 3.4665723 | D38: =D13/D34 -> 4.151813617 | F38: =F13/F34 -> 2.767817401 | G38: =G13/G34 -> 3.586646992 | H38: =H13/H34 -> 3.425052649
A39: 3 | B39: podíl OsN na celkových nákl. % | C39: =C27/C12% -> 14.99821392 | D39: =D27/D12% -> 14.76255195 | F39: =F27/F12% -> 15.46751856 | G39: =G27/G12% -> 14.99821392 | H39: =H27/H12% -> 14.2774554
A42: Zpracoval: oddělení ekonomických činností

Sheet 22
A1: Pracoviště: 22 Klinika nukleární medicíny
A3: =CONCATENATE("Základní ukazatele hospodaření na rok ",YEAR(dat_do)," (v tis.)") -> Základní ukazatele hospodaření na rok 2010 (v tis.)
G6: Vyhodnocení aktuálního období :
H7: =CONCATENATE("1 - ",MONTH(dat_do)," / ",YEAR(dat_do)) -> 1 - 2 / 2010
C8: A | D8: B | F8: C | G8: D | H8: E
C9: Rozpočet | D9: Skutečnost | F9: Skutečnost | G9: Rozpočet | H9: Skutečnost | I9: Rozdíl
C10: (limit) | D10: za | F10: za | G10: za | H10: za | I10: E - D
A11: Souhrnné ukazatele: | C11: =YEAR(dat_do) -> 2010 | D11: =CONCATENATE("1-",MONTH(dat_do),"/",YEAR(dat_do)-1) -> 1-2/2009 | F11: =CONCATENATE(MONTH(dat_do),"/",YEAR(dat_do)) -> 2/2010 | G11: =CONCATENATE("1-",MONTH(dat_do),"/",YEAR(dat_do)) -> 1-2/2010 | H11: =CONCATENATE("1-",MONTH(dat_do),"/",YEAR(dat_do)) -> 1-2/2010
A12: 1 | B12: Náklady celkem (N) | C12: 102077 | D12: 15513.11291 | F12: 7640.30809 | G12: 17012.83333 | H12: 15614.50654 | I12: =H12-G12 -> -1398.326793
A13: 2 | B13: Výnosy celkem (V) | C13: 161576 | D13: 26327.44314 | F13: 12337.74014 | G13: 26929.33333 | H13: 24436.14926 | I13: =H13-G13 -> -2493.184073
A14: 3 | B14: Hospodářský výsledek (HV) | C14: =C13-C12 -> 59499 | D14: =D13-D12 -> 10814.33023 | F14: =F13-F12 -> 4697.43205 | G14: =G13-G12 -> 9916.5 | H14: =H13-H12 -> 8821.64272
A16: Dílčí sledované ukazatele:
A17: nákladové ukazatele:
A18: 1 | B18: Přímé náklady (PN) | C18: 96959 | D18: 14754.13128 | F18: 7201.16244 | G18: 16159.83333 | H18: 14749.10493 | I18: =H18-G18 -> -1410.728403
A19: 2 | B19: Léky | C19: 48244 | D19: 7970.54048 | F19: 3438.80082 | G19: 8040.666667 | H19: 7333.81198 | I19: -706.8546867
B20: z toho: vliv lékové vyhlášky | C20: 0 | D20: 0 | F20: 0 | G20: 0 | H20: 0 | I20: =H20-G20 -> 0
B21: spotřeba center | C21: 3243 | D21: 1392.148 | F21: 0 | G21: 540.5 | H21: 421.6498 | I21: =H21-G21 -> -118.8502
A22: 3 | B22: SZM | C22: 1714 | D22: 310.17922 | F22: 31.27383 | G22: 285.6666667 | H22: 308.04691 | I22: 22.38024333
B23: z toho: implantáty-kardiostim. | C23: 0 | D23: 0 | F23: 0 | G23: 0 | H23: 0 | I23: 0
B24: implantáty-defibrilátory | C24: 0 | D24: 0 | F24: 0 | G24: 0 | H24: 0 | I24: 0
B25: implantáty-TEP | C25: 0 | D25: 0 | F25: 0 | G25: 0 | H25: 0 | I25: 0
A26: 4 | B26: Všeobecný materiál | C26: 292 | D26: 65.6568 | F26: 23.21214 | G26: 48.66666667 | H26: 42.50956 | I26: -6.157106667
A27: 5 | B27: Osobní náklady (OsN) | C27: 19358 | D27: 2999.45585 | F27: 1645.91176 | G27: 3226.333333 | H27: 3353.99623 | I27: 127.6628967
B28: z toho: hrubé mzdy | C28: 14233 | D28: 2204.205 | F28: 1210.231 | G28: 2372.166667 | H28: 2466.175 | I28: 94.00833333
A29: výnosové ukazatele:
A30: 6 | B30: Přímé výnosy (PV) | C30: 161631 | D30: 26333.53682 | F30: 12342.30904 | G30: 26938.5 | H30: 24445.51296 | I30: -2492.98704
A31: 7 | B31: Výnosy ZP vč. agreg.V | C31: 160189 | D31: 26245.52092 | F31: 12320.06925 | G31: 26698.16667 | H31: 24416.99007 | I31: -2281.176597
A32: 8 | B32: ZUM, ZUL - limity | C32: 81583.939 | D32: 13206.8019 | F32: 6664.58395 | G32: =C32/12*MONTH(dat_do) -> 13597.32317 | H32: 13490.73583 | I32: -106.5873367
A33: ostatní ukazatele:
A34: 9 | B34: Body vč.agregovaných výkonů | C34: 88502.826 | D34: 14230.671 | F34: 8288.2 | G34: =C34/12*MONTH(dat_do) -> 14750.471 | H34: 16089.94 | I34: 1339.469
A36: Poměrné ukazatale:
A37: 1 | B37: nákladová hodnota bodu-Ncelkem | C37: =C12/C34 -> 1.1533756 | D37: =D12/D34 -> 1.090118162 | F37: =F12/F34 -> 0.9218295999 | G37: =G12/G34 -> 1.1533756 | H37: =H12/H34 -> 0.9704515082
A38: 2 | B38: výnosová hodnota bodu - V celkem | C38: =C18/C34 -> 1.095546938 | D38: =D13/D34 -> 1.850049315 | F38: =F13/F34 -> 1.488591026 | G38: =G13/G34 -> 1.825659217 | H38: =H13/H34 -> 1.518722212
A39: 3 | B39: podíl OsN na celkových nákl. % | C39: =C27/C12% -> 18.96411532 | D39: =D27/D12% -> 19.33497079 | F39: =F27/F12% -> 21.54247892 | G39: =G27/G12% -> 18.96411532 | H39: =H27/H12% -> 21.48000144
A42: Zpracoval: oddělení ekonomických činností

Sheet 24
A1: Pracoviště: 24 Klinika zubního lékařství
A3: =CONCATENATE("Základní ukazatele hospodaření na rok ",YEAR(dat_do)," (v tis.)") -> Základní ukazatele hospodaření na rok 2010 (v tis.)
G6: Vyhodnocení aktuálního období :
H7: =CONCATENATE("1 - ",MONTH(dat_do)," / ",YEAR(dat_do)) -> 1 - 2 / 2010
C8: A | D8: B | F8: C | G8: D | H8: E
C9: Rozpočet | D9: Skutečnost | F9: Skutečnost | G9: Rozpočet | H9: Skutečnost | I9: Rozdíl
C10: (limit) | D10: za | F10: za | G10: za | H10: za | I10: E - D
A11: Souhrnné ukazatele: | C11: =YEAR(dat_do) -> 2010 | D11: =CONCATENATE("1-",MONTH(dat_do),"/",YEAR(dat_do)-1) -> 1-2/2009 | F11: =CONCATENATE(MONTH(dat_do),"/",YEAR(dat_do)) -> 2/2010 | G11: =CONCATENATE("1-",MONTH(dat_do),"/",YEAR(dat_do)) -> 1-2/2010 | H11: =CONCATENATE("1-",MONTH(dat_do),"/",YEAR(dat_do)) -> 1-2/2010
A12: 1 | B12: Náklady celkem (N) | C12: 40882 | D12: 6754.89866 | F12: 3548.31257 | G12: 6813.666667 | H12: 7478.00162 | I12: =H12-G12 -> 664.3349533
A13: 2 | B13: Výnosy celkem (V) | C13: 31510 | D13: 5922.00933 | F13: 3308.44662 | G13: 5251.666667 | H13: 5722.5766 | I13: =H13-G13 -> 470.9099333
A14: 3 | B14: Hospodářský výsledek (HV) | C14: =C13-C12 -> -9372 | D14: =D13-D12 -> -832.88933 | F14: =F13-F12 -> -239.86595 | G14: =G13-G12 -> -1562 | H14: =H13-H12 -> -1755.42502
A16: Dílčí sledované ukazatele:
A17: nákladové ukazatele:
A18: 1 | B18: Přímé náklady (PN) | C18: 36968 | D18: 6115.16166 | F18: 3201.29798 | G18: 6161.333333 | H18: 6771.23881 | I18: =H18-G18 -> 609.9054767
A19: 2 | B19: Léky | C19: 162 | D19: 30.26673 | F19: 10.72663 | G19: 27 | H19: 29.60027 | I19: 2.60027
B20: z toho: vliv lékové vyhlášky | C20: 0 | D20: 0 | F20: 0 | G20: 0 | H20: 0 | I20: 0
B21: spotřeba center | C21: 0 | D21: 0 | F21: 0 | G21: 0 | H21: 0 | I21: 0
A22: 3 | B22: SZM | C22: 4134 | D22: 942.43332 | F22: 274.82871 | G22: 689 | H22: 586.55697 | I22: -102.44303
B23: z toho: implantáty-kardiostim. | C23: 0 | D23: 0 | F23: 0 | G23: 0 | H23: 0 | I23: 0
B24: implantáty-defibrilátory | C24: 0 | D24: 0 | F24: 0 | G24: 0 | H24: 0 | I24: 0
B25: implantáty-TEP | C25: 0 | D25: 0 | F25: 0 | G25: 0 | H25: 0 | I25: 0
A26: 4 | B26: Všeobecný materiál | C26: 836 | D26: 146.32071 | F26: 81.09016 | G26: 139.3333333 | H26: 154.66865 | I26: 15.33531667
A27: 5 | B27: Osobní náklady (OsN) | C27: 24512 | D27: 3562.77361 | F27: 2037.85137 | G27: 4085.333333 | H27: 4343.74641 | I27: 258.4130767
B28: z toho: hrubé mzdy | C28: 18023 | D28: 2614.942 | F28: 1497.46 | G28: 3003.833333 | H28: 3193.745 | I28: 189.9116667
A29: výnosové ukazatele:
A30: 6 | B30: Přímé výnosy (PV) | C30: 31510 | D30: 5922.00933 | F30: 3308.44662 | G30: 5251.666667 | H30: 5722.5766 | I30: 470.9099333
A31: 7 | B31: Výnosy ZP vč. agreg.V | C31: 20421 | D31: 4188.9482 | F31: 2273.82097 | G31: 3403.5 | H31: 4284.01195 | I31: 880.51195
A32: 8 | B32: ZUM, ZUL - limity | C32: 3458.064 | D32: 549.572 | F32: 243.93 | G32: =C32/12*MONTH(dat_do) -> 576.344 | H32: 403.855 | I32: -172.489
A33: ostatní ukazatele:
A34: 9 | B34: Body vč.agregovaných výkonů | C34: 0 | D34: 0 | F34: 0 | G34: =C34/12*MONTH(dat_do) -> 0 | H34: 0 | I34: -
A36: Poměrné ukazatale:
A37: 1 | B37: nákladová hodnota bodu-Ncelkem | C37: - | D37: - | F37: - | G37: - | H37: -
A38: 2 | B38: výnosová hodnota bodu - V celkem | C38: - | D38: =D13/D34 ->  | F38: =F13/F34 ->  | G38: =G13/G34 ->  | H38: =H13/H34 -> 
A39: 3 | B39: podíl OsN na celkových nákl. % | C39: =C27/C12% -> 59.95792769 | D39: =D27/D12% -> 52.74355382 | F39: =F27/F12% -> 57.43156303 | G39: =G27/G12% -> 59.95792769 | H39: =H27/H12% -> 58.08699477
A42: Zpracoval: oddělení ekonomických činností

Sheet 25
A1: Pracoviště: 25 Klinika ústní, čelistní a obličejové chirurgie
A3: =CONCATENATE("Základní ukazatele hospodaření na rok ",YEAR(dat_do)," (v tis.)") -> Základní ukazatele hospodaření na rok 2010 (v tis.)
G6: Vyhodnocení aktuálního období :
H7: =CONCATENATE("1 - ",MONTH(dat_do)," / ",YEAR(dat_do)) -> 1 - 2 / 2010
C8: A | D8: B | F8: C | G8: D | H8: E
C9: Rozpočet | D9: Skutečnost | F9: Skutečnost | G9: Rozpočet | H9: Skutečnost | I9: Rozdíl
C10: (limit) | D10: za | F10: za | G10: za | H10: za | I10: E - D
A11: Souhrnné ukazatele: | C11: =YEAR(dat_do) -> 2010 | D11: =CONCATENATE("1-",MONTH(dat_do),"/",YEAR(dat_do)-1) -> 1-2/2009 | F11: =CONCATENATE(MONTH(dat_do),"/",YEAR(dat_do)) -> 2/2010 | G11: =CONCATENATE("1-",MONTH(dat_do),"/",YEAR(dat_do)) -> 1-2/2010 | H11: =CONCATENATE("1-",MONTH(dat_do),"/",YEAR(dat_do)) -> 1-2/2010
A12: 1 | B12: Náklady celkem (N) | C12: 29570 | D12: 4950.35247 | F12: 2513.18988 | G12: 4928.333333 | H12: 5253.13966 | I12: =H12-G12 -> 324.8063267
A13: 2 | B13: Výnosy celkem (V) | C13: 23855 | D13: 3647.33775 | F13: 1939.07301 | G13: 3975.833333 | H13: 4049.59012 | I13: =H13-G13 -> 73.75678667
A14: 3 | B14: Hospodářský výsledek (HV) | C14: =C13-C12 -> -5715 | D14: =D13-D12 -> -1303.01472 | F14: =F13-F12 -> -574.11687 | G14: =G13-G12 -> -952.5 | H14: =H13-H12 -> -1203.54954
A16: Dílčí sledované ukazatele:
A17: nákladové ukazatele:
A18: 1 | B18: Přímé náklady (PN) | C18: 26204 | D18: 4361.16764 | F18: 2202.47539 | G18: 4367.333333 | H18: 4636.66737 | I18: =H18-G18 -> 269.3340367
A19: 2 | B19: Léky | C19: 922 | D19: 101.68225 | F19: 71.29302 | G19: 153.6666667 | H19: 129.02894 | I19: -24.63772667
B20: z toho: vliv lékové vyhlášky | C20: 24 | D20: 0 | F20: 4.51915 | G20: 4 | H20: 9.01081 | I20: =H20-G20 -> 5.01081
B21: spotřeba center | C21: 0 | D21: 0 | F21: 0 | G21: 0 | H21: 0 | I21: =H21-G21 -> 0
A22: 3 | B22: SZM | C22: 1678 | D22: 326.8824 | F22: 105.8468 | G22: 279.6666667 | H22: 340.74709 | I22: 61.08042333
B23: z toho: implantáty-kardiostim. | C23: 0 | D23: 0 | F23: 0 | G23: 0 | H23: 0 | I23: 0
B24: implantáty-defibrilátory | C24: 0 | D24: 0 | F24: 0 | G24: 0 | H24: 0 | I24: 0
B25: implantáty-TEP | C25: 0 | D25: 0 | F25: 0 | G25: 0 | H25: 0 | I25: 0
A26: 4 | B26: Všeobecný materiál | C26: 583 | D26: 106.22274 | F26: 47.85181 | G26: 97.16666667 | H26: 92.84989 | I26: -4.316776667
A27: 5 | B27: Osobní náklady (OsN) | C27: 16446 | D27: 2574.02181 | F27: 1393.40078 | G27: 2741 | H27: 2898.24862 | I27: 157.24862
B28: z toho: hrubé mzdy | C28: 12092 | D28: 1894.955 | F28: 1024.583 | G28: 2015.333333 | H28: 2130.292 | I28: 114.9586667
A29: výnosové ukazatele:
A30: 6 | B30: Přímé výnosy (PV) | C30: 23946 | D30: 3652.69306 | F30: 1946.30449 | G30: 3991 | H30: 4067.25094 | I30: 76.25094
A31: 7 | B31: Výnosy ZP vč. agreg.V | C31: 21209 | D31: 3397.29767 | F31: 1741.26798 | G31: 3534.833333 | H31: 3826.62602 | I31: 291.7926867
A32: 8 | B32: ZUM, ZUL - limity | C32: 938.966 | D32: 78.60239 | F32: 74.13574 | G32: =C32/12*MONTH(dat_do) -> 156.4943333 | H32: 144.1579 | I32: -12.33643333
A33: ostatní ukazatele:
A34: 9 | B34: Body vč.agregovaných výkonů | C34: 9750.14 | D34: 1157.597 | F34: 725.098 | G34: =C34/12*MONTH(dat_do) -> 1625.023333 | H34: 1385.051 | I34: -239.9723333
A36: Poměrné ukazatale:
A37: 1 | B37: nákladová hodnota bodu-Ncelkem | C37: =C12/C34 -> 3.032776965 | D37: =D12/D34 -> 4.276404025 | F37: =F12/F34 -> 3.466000292 | G37: =G12/G34 -> 3.032776965 | H37: =H12/H34 -> 3.79274096
A38: 2 | B38: výnosová hodnota bodu - V celkem | C38: =C18/C34 -> 2.687551153 | D38: =D13/D34 -> 3.150783692 | F38: =F13/F34 -> 2.674221981 | G38: =G13/G34 -> 2.446631536 | H38: =H13/H34 -> 2.923784121
A39: 3 | B39: podíl OsN na celkových nákl. % | C39: =C27/C12% -> 55.61717957 | D39: =D27/D12% -> 51.99673812 | F39: =F27/F12% -> 55.44351388 | G39: =G27/G12% -> 55.61717957 | H39: =H27/H12% -> 55.17174124
A42: Zpracoval: oddělení ekonomických činností

Sheet 26
A1: Pracoviště: 26 Oddělení rehabilitace
A3: =CONCATENATE("Základní ukazatele hospodaření na rok ",YEAR(dat_do)," (v tis.)") -> Základní ukazatele hospodaření na rok 2010 (v tis.)
G6: Vyhodnocení aktuálního období :
H7: =CONCATENATE("1 - ",MONTH(dat_do)," / ",YEAR(dat_do)) -> 1 - 2 / 2010
C8: A | D8: B | F8: C | G8: D | H8: E
C9: Rozpočet | D9: Skutečnost | F9: Skutečnost | G9: Rozpočet | H9: Skutečnost | I9: Rozdíl
C10: (limit) | D10: za | F10: za | G10: za | H10: za | I10: E - D
A11: Souhrnné ukazatele: | C11: =YEAR(dat_do) -> 2010 | D11: =CONCATENATE("1-",MONTH(dat_do),"/",YEAR(dat_do)-1) -> 1-2/2009 | F11: =CONCATENATE(MONTH(dat_do),"/",YEAR(dat_do)) -> 2/2010 | G11: =CONCATENATE("1-",MONTH(dat_do),"/",YEAR(dat_do)) -> 1-2/2010 | H11: =CONCATENATE("1-",MONTH(dat_do),"/",YEAR(dat_do)) -> 1-2/2010
A12: 1 | B12: Náklady celkem (N) | C12: 32289 | D12: 5747.10676 | F12: 3299.1785 | G12: 5381.5 | H12: 6349.17376 | I12: =H12-G12 -> 967.67376
A13: 2 | B13: Výnosy celkem (V) | C13: 57906 | D13: 8770.63154 | F13: 3571.54634 | G13: 9651 | H13: 6865.89202 | I13: =H13-G13 -> -2785.10798
A14: 3 | B14: Hospodářský výsledek (HV) | C14: =C13-C12 -> 25617 | D14: =D13-D12 -> 3023.52478 | F14: =F13-F12 -> 272.36784 | G14: =G13-G12 -> 4269.5 | H14: =H13-H12 -> 516.71826
A16: Dílčí sledované ukazatele:
A17: nákladové ukazatele:
A18: 1 | B18: Přímé náklady (PN) | C18: 28381 | D18: 4954.87331 | F18: 2876.00512 | G18: 4730.166667 | H18: 5548.35467 | I18: =H18-G18 -> 818.1880033
A19: 2 | B19: Léky | C19: 580 | D19: 93.97393 | F19: 67.23475 | G19: 96.66666667 | H19: 111.02028 | I19: 14.35361333
B20: z toho: vliv lékové vyhlášky | C20: 0 | D20: 0 | F20: 0 | G20: 0 | H20: 0 | I20: =H20-G20 -> 0
B21: spotřeba center | C21: 0 | D21: 0 | F21: 0 | G21: 0 | H21: 0 | I21: =H21-G21 -> 0
A22: 3 | B22: SZM | C22: 161 | D22: 25.85531 | F22: 26.48209 | G22: 26.83333333 | H22: 28.32479 | I22: 1.491456667
B23: z toho: implantáty-kardiostim. | C23: 0 | D23: 0 | F23: 0 | G23: 0 | H23: 0 | I23: 0
B24: implantáty-defibrilátory | C24: 0 | D24: 0 | F24: 0 | G24: 0 | H24: 0 | I24: 0
B25: implantáty-TEP | C25: 0 | D25: 0 | F25: 0 | G25: 0 | H25: 0 | I25: 0
A26: 4 | B26: Všeobecný materiál | C26: 200 | D26: 31.74821 | F26: 16.97187 | G26: 33.33333333 | H26: 36.45839 | I26: 3.125056667
A27: 5 | B27: Osobní náklady (OsN) | C27: 22304 | D27: 3916.6554 | F27: 2350.72722 | G27: 3717.333333 | H27: 4515.87514 | I27: 798.5418067
B28: z toho: hrubé mzdy | C28: 16400 | D28: 2874.858 | F28: 1725.01 | G28: 2733.333333 | H28: 3315.435 | I28: 582.1016667
A29: výnosové ukazatele:
A30: 6 | B30: Přímé výnosy (PV) | C30: 58034 | D30: 8775.36269 | F30: 3579.01341 | G30: 9672.333333 | H30: 6878.26223 | I30: -2794.071103
A31: 7 | B31: Výnosy ZP vč. agreg.V | C31: 57144 | D31: 8564.78566 | F31: 3527.52544 | G31: 9524 | H31: 6762.58522 | I31: -2761.41478
A32: 8 | B32: ZUM, ZUL - limity | C32: 158.1 | D32: 0 | F32: 0 | G32: =C32/12*MONTH(dat_do) -> 26.35 | H32: 0 | I32: -26.35
A33: ostatní ukazatele:
A34: 9 | B34: Body vč.agregovaných výkonů | C34: 64374.169 | D34: 9543.414 | F34: 5040.376 | G34: =C34/12*MONTH(dat_do) -> 10729.02817 | H34: 9121.168 | I34: -1607.860167
A36: Poměrné ukazatale:
A37: 1 | B37: nákladová hodnota bodu-Ncelkem | C37: =C12/C34 -> 0.5015831738 | D37: =D12/D34 -> 0.6022065856 | F37: =F12/F34 -> 0.6545500772 | G37: =G12/G34 -> 0.5015831738 | H37: =H12/H34 -> 0.6960921847
A38: 2 | B38: výnosová hodnota bodu - V celkem | C38: =C18/C34 -> 0.4408755941 | D38: =D13/D34 -> 0.9190245273 | F38: =F13/F34 -> 0.708587284 | G38: =G13/G34 -> 0.8995222913 | H38: =H13/H34 -> 0.7527426334
A39: 3 | B39: podíl OsN na celkových nákl. % | C39: =C27/C12% -> 69.07615597 | D39: =D27/D12% -> 68.15003729 | F39: =F27/F12% -> 71.25189559 | G39: =G27/G12% -> 69.07615597 | H39: =H27/H12% -> 71.12539853
A42: Zpracoval: oddělení ekonomických činností

Sheet 27
A1: Pracoviště: 27 Klinika TV a kardiologické rehabilitace
A3: =CONCATENATE("Základní ukazatele hospodaření na rok ",YEAR(dat_do)," (v tis.)") -> Základní ukazatele hospodaření na rok 2010 (v tis.)
G6: Vyhodnocení aktuálního období :
H7: =CONCATENATE("1 - ",MONTH(dat_do)," / ",YEAR(dat_do)) -> 1 - 2 / 2010
C8: A | D8: B | F8: C | G8: D | H8: E
C9: Rozpočet | D9: Skutečnost | F9: Skutečnost | G9: Rozpočet | H9: Skutečnost | I9: Rozdíl
C10: (limit) | D10: za | F10: za | G10: za | H10: za | I10: E - D
A11: Souhrnné ukazatele: | C11: =YEAR(dat_do) -> 2010 | D11: =CONCATENATE("1-",MONTH(dat_do),"/",YEAR(dat_do)-1) -> 1-2/2009 | F11: =CONCATENATE(MONTH(dat_do),"/",YEAR(dat_do)) -> 2/2010 | G11: =CONCATENATE("1-",MONTH(dat_do),"/",YEAR(dat_do)) -> 1-2/2010 | H11: =CONCATENATE("1-",MONTH(dat_do),"/",YEAR(dat_do)) -> 1-2/2010
A12: 1 | B12: Náklady celkem (N) | C12: 32289 | D12: 5747.10676 | F12: 3299.1785 | G12: 5381.5 | H12: 6349.17376 | I12: =H12-G12 -> 967.67376
A13: 2 | B13: Výnosy celkem (V) | C13: 57906 | D13: 8770.63154 | F13: 3571.54634 | G13: 9651 | H13: 6865.89202 | I13: =H13-G13 -> -2785.10798
A14: 3 | B14: Hospodářský výsledek (HV) | C14: =C13-C12 -> 25617 | D14: =D13-D12 -> 3023.52478 | F14: =F13-F12 -> 272.36784 | G14: =G13-G12 -> 4269.5 | H14: =H13-H12 -> 516.71826
A16: Dílčí sledované ukazatele:
A17: nákladové ukazatele:
A18: 1 | B18: Přímé náklady (PN) | C18: 4055 | D18: 0 | F18: 69.64841 | G18: 675.8333333 | H18: 135.40557 | I18: =H18-G18 -> -540.4277633
A19: 2 | B19: Léky | C19: 2 | D19: 0 | F19: 0 | G19: 0.3333333333 | H19: 1e-05 | I19: -0.3333233333
B20: z toho: vliv lékové vyhlášky | C20: 0 | D20: 0 | F20: 0 | G20: 0 | H20: 0 | I20: 0
B21: spotřeba center | C21: 0 | D21: 0 | F21: 0 | G21: 0 | H21: 0 | I21: 0
A22: 3 | B22: SZM | C22: 10 | D22: 0 | F22: 2.54743 | G22: 1.666666667 | H22: 4.43264 | I22: 2.765973333
B23: z toho: implantáty-kardiostim. | C23: 0 | D23: 0 | F23: 0 | G23: 0 | H23: 0 | I23: 0
B24: implantáty-defibrilátory | C24: 0 | D24: 0 | F24: 0 | G24: 0 | H24: 0 | I24: 0
B25: implantáty-TEP | C25: 0 | D25: 0 | F25: 0 | G25: 0 | H25: 0 | I25: 0
A26: 4 | B26: Všeobecný materiál | C26: 38 | D26: 0 | F26: 7.12216 | G26: 6.333333333 | H26: 11.55283 | I26: 5.219496667
A27: 5 | B27: Osobní náklady (OsN) | C27: 3441 | D27: 0 | F27: 0 | G27: 573.5 | H27: 0 | I27: -573.5
B28: z toho: hrubé mzdy | C28: 2530 | D28: 0 | F28: 0 | G28: 421.6666667 | H28: 0 | I28: -421.6666667
A29: výnosové ukazatele:
A30: 6 | B30: Přímé výnosy (PV) | C30: 2382 | D30: 0 | F30: 254.86873 | G30: 397 | H30: 462.87012 | I30: =H30-G30 -> 65.87012
A31: 7 | B31: Výnosy ZP vč. agreg.V | C31: 1569 | D31: 0 | F31: 149.07302 | G31: 261.5 | H31: 273.03418 | I31: =H31-G31 -> 11.53418
A32: 8 | B32: ZUM, ZUL - limity | C32: 0 | D32: 0 | F32: 0 | G32: =C32/12*MONTH(dat_do) -> 0 | H32: 0 | I32: =H32-G32 -> 0
A33: ostatní ukazatele:
A34: 9 | B34: Body vč.agregovaných výkonů | C34: 1765.325 | D34: 0 | F34: 213.875 | G34: =C34/12*MONTH(dat_do) -> 294.2208333 | H34: 395.25 | I34: =H34-G34 -> 101.0291667
A36: Poměrné ukazatale:
A37: 1 | B37: nákladová hodnota bodu-Ncelkem | C37: =C12/C34 -> 18.29068302 | D37: =D12/D34 ->  | F37: =F12/F34 -> 15.42573232 | G37: =G12/G34 -> 18.29068302 | H37: =H12/H34 -> 16.06369073
A38: 2 | B38: výnosová hodnota bodu - V celkem | C38: =C18/C34 -> 2.29702746 | D38: =D13/D34 ->  | F38: =F13/F34 -> 16.6992231 | G38: =G13/G34 -> 32.801892 | H38: =H13/H34 -> 17.3710108
A39: 3 | B39: podíl OsN na celkových nákl. % | C39: =C27/C12% -> 10.65688005 | D39: =D27/D12% -> 0 | F39: =F27/F12% -> 0 | G39: =G27/G12% -> 10.65688005 | H39: =H27/H12% -> 0
A42: Zpracoval: oddělení ekonomických činností

Sheet 28
A1: Pracoviště: 28 Ústav lékařské genetiky a fetální medicíny
A3: =CONCATENATE("Základní ukazatele hospodaření na rok ",YEAR(dat_do)," (v tis.)") -> Základní ukazatele hospodaření na rok 2010 (v tis.)
G6: Vyhodnocení aktuálního období :
H7: =CONCATENATE("1 - ",MONTH(dat_do)," / ",YEAR(dat_do)) -> 1 - 2 / 2010
C8: A | D8: B | F8: C | G8: D | H8: E
C9: Rozpočet | D9: Skutečnost | F9: Skutečnost | G9: Rozpočet | H9: Skutečnost | I9: Rozdíl
C10: (limit) | D10: za | F10: za | G10: za | H10: za | I10: E - D
A11: Souhrnné ukazatele: | C11: =YEAR(dat_do) -> 2010 | D11: =CONCATENATE("1-",MONTH(dat_do),"/",YEAR(dat_do)-1) -> 1-2/2009 | F11: =CONCATENATE(MONTH(dat_do),"/",YEAR(dat_do)) -> 2/2010 | G11: =CONCATENATE("1-",MONTH(dat_do),"/",YEAR(dat_do)) -> 1-2/2010 | H11: =CONCATENATE("1-",MONTH(dat_do),"/",YEAR(dat_do)) -> 1-2/2010
A12: 1 | B12: Náklady celkem (N) | C12: 16917 | D12: 2661.69834 | F12: 1410.24805 | G12: 2819.5 | H12: 3188.21869 | I12: =H12-G12 -> 368.71869
A13: 2 | B13: Výnosy celkem (V) | C13: 25956 | D13: 7789.69801 | F13: 2693.3226 | G13: 4326 | H13: 5759.97786 | I13: =H13-G13 -> 1433.97786
A14: 3 | B14: Hospodářský výsledek (HV) | C14: =C13-C12 -> 9039 | D14: =D13-D12 -> 5127.99967 | F14: =F13-F12 -> 1283.07455 | G14: =G13-G12 -> 1506.5 | H14: =H13-H12 -> 2571.75917
A16: Dílčí sledované ukazatele:
A17: nákladové ukazatele:
A18: 1 | B18: Přímé náklady (PN) | C18: 15103 | D18: 2348.42973 | F18: 1250.41531 | G18: 2517.166667 | H18: 2870.40951 | I18: =H18-G18 -> 353.2428433
A19: 2 | B19: Léky | C19: 89 | D19: 24.35292 | F19: 5.94022 | G19: 14.83333333 | H19: 17.71595 | I19: 2.882616667
B20: z toho: vliv lékové vyhlášky | C20: 0 | D20: 0 | F20: 0 | G20: 0 | H20: 0 | I20: =H20-G20 -> 0
B21: spotřeba center | C21: 0 | D21: 0 | F21: 0 | G21: 0 | H21: 0 | I21: =H21-G21 -> 0
A22: 3 | B22: SZM | C22: 1260 | D22: 244.37768 | F22: 152.24452 | G22: 210 | H22: 326.35103 | I22: 116.35103
B23: z toho: implantáty-kardiostim. | C23: 0 | D23: 0 | F23: 0 | G23: 0 | H23: 0 | I23: 0
B24: implantáty-defibrilátory | C24: 0 | D24: 0 | F24: 0 | G24: 0 | H24: 0 | I24: 0
B25: implantáty-TEP | C25: 0 | D25: 0 | F25: 0 | G25: 0 | H25: 0 | I25: 0
A26: 4 | B26: Všeobecný materiál | C26: 108 | D26: 9.24904 | F26: 10.55604 | G26: 18 | H26: 29.88711 | I26: 11.88711
A27: 5 | B27: Osobní náklady (OsN) | C27: 11320 | D27: 1693.53768 | F27: 934.37716 | G27: 1886.666667 | H27: 1919.59419 | I27: 32.92752333
B28: z toho: hrubé mzdy | C28: 8323 | D28: 1246.015 | F28: 684.184 | G28: 1387.166667 | H28: 1408.607 | I28: 21.44033333
A29: výnosové ukazatele:
A30: 6 | B30: Přímé výnosy (PV) | C30: 25954 | D30: 7789.69801 | F30: 2693.3226 | G30: 4325.666667 | H30: 5759.97786 | I30: 1434.311193
A31: 7 | B31: Výnosy ZP vč. agreg.V | C31: 25714 | D31: 7745.28133 | F31: 2436.73867 | G31: 4285.666667 | H31: 5503.36493 | I31: 1217.698263
A32: 8 | B32: ZUM, ZUL - limity | C32: 49851 | D32: 14.79708 | F32: 2.03872 | G32: =C32/12*MONTH(dat_do) -> 8308.5 | H32: 6.62584 | I32: -8301.87416
A33: ostatní ukazatele:
A34: 9 | B34: Body vč.agregovaných výkonů | C34: 29008.044 | D34: 8287.349 | F34: 4050.86 | G34: =C34/12*MONTH(dat_do) -> 4834.674 | H34: 8259.605 | I34: 3424.931
A36: Poměrné ukazatale:
A37: 1 | B37: nákladová hodnota bodu-Ncelkem | C37: =C12/C34 -> 0.5831830647 | D37: =D12/D34 -> 0.321176089 | F37: =F12/F34 -> 0.34813547 | G37: =G12/G34 -> 0.5831830647 | H37: =H12/H34 -> 0.3860013512
A38: 2 | B38: výnosová hodnota bodu - V celkem | C38: =C18/C34 -> 0.5206486863 | D38: =D13/D34 -> 0.939950521 | F38: =F13/F34 -> 0.6648767422 | G38: =G13/G34 -> 0.8947862876 | H38: =H13/H34 -> 0.69736723
A39: 3 | B39: podíl OsN na celkových nákl. % | C39: =C27/C12% -> 66.91493764 | D39: =D27/D12% -> 63.62620642 | F39: =F27/F12% -> 66.25622776 | G39: =G27/G12% -> 66.91493764 | H39: =H27/H12% -> 60.20898742
A42: Zpracoval: oddělení ekonomických činností

Sheet 29
A1: Pracoviště: 29 Oddělení plastické a estetické
A3: =CONCATENATE("Základní ukazatele hospodaření na rok ",YEAR(dat_do)," (v tis.)") -> Základní ukazatele hospodaření na rok 2010 (v tis.)
G6: Vyhodnocení aktuálního období :
H7: =CONCATENATE("1 - ",MONTH(dat_do)," / ",YEAR(dat_do)) -> 1 - 2 / 2010
C8: A | D8: B | F8: C | G8: D | H8: E
C9: Rozpočet | D9: Skutečnost | F9: Skutečnost | G9: Rozpočet | H9: Skutečnost | I9: Rozdíl
C10: (limit) | D10: za | F10: za | G10: za | H10: za | I10: E - D
A11: Souhrnné ukazatele: | C11: =YEAR(dat_do) -> 2010 | D11: =CONCATENATE("1-",MONTH(dat_do),"/",YEAR(dat_do)-1) -> 1-2/2009 | F11: =CONCATENATE(MONTH(dat_do),"/",YEAR(dat_do)) -> 2/2010 | G11: =CONCATENATE("1-",MONTH(dat_do),"/",YEAR(dat_do)) -> 1-2/2010 | H11: =CONCATENATE("1-",MONTH(dat_do),"/",YEAR(dat_do)) -> 1-2/2010
A12: 1 | B12: Náklady celkem (N) | C12: 21073 | D12: 3297.30905 | F12: 1950.03843 | G12: 3512.166667 | H12: 3928.30132 | I12: =H12-G12 -> 416.1346533
A13: 2 | B13: Výnosy celkem (V) | C13: 15066 | D13: 2029.60763 | F13: 925.71797 | G13: 2511 | H13: 1827.08974 | I13: =H13-G13 -> -683.91026
A14: 3 | B14: Hospodářský výsledek (HV) | C14: =C13-C12 -> -6007 | D14: =D13-D12 -> -1267.70142 | F14: =F13-F12 -> -1024.32046 | G14: =G13-G12 -> -1001.166667 | H14: =H13-H12 -> -2101.21158
A16: Dílčí sledované ukazatele:
A17: nákladové ukazatele:
A18: 1 | B18: Přímé náklady (PN) | C18: 18764 | D18: 2914.84234 | F18: 1731.3607 | G18: 3127.333333 | H18: 3491.23162 | I18: =H18-G18 -> 363.8982867
A19: 2 | B19: Léky | C19: 777 | D19: 135.60481 | F19: 78.51219 | G19: 129.5 | H19: 156.59404 | I19: 27.09404
B20: z toho: vliv lékové vyhlášky | C20: 5 | D20: 0 | F20: 0 | G20: 0.8333333333 | H20: 0 | I20: =H20-G20 -> -0.8333333333
B21: spotřeba center | C21: 0 | D21: 0 | F21: 0 | G21: 0 | H21: 0 | I21: =H21-G21 -> 0
A22: 3 | B22: SZM | C22: 1306 | D22: 236.78855 | F22: 129.07538 | G22: 217.6666667 | H22: 236.6293 | I22: 18.96263333
B23: z toho: implantáty-kardiostim. | C23: 0 | D23: 0 | F23: 0 | G23: 0 | H23: 0 | I23: 0
B24: implantáty-defibrilátory | C24: 0 | D24: 0 | F24: 0 | G24: 0 | H24: 0 | I24: 0
B25: implantáty-TEP | C25: 0 | D25: 0 | F25: 0 | G25: 0 | H25: 0 | I25: 0
A26: 4 | B26: Všeobecný materiál | C26: 291 | D26: 38.05201 | F26: 26.54375 | G26: 48.5 | H26: 46.00354 | I26: -2.49646
A27: 5 | B27: Osobní náklady (OsN) | C27: 12572 | D27: 1853.24618 | F27: 1174.60009 | G27: 2095.333333 | H27: 2418.28884 | I27: 322.9555067
B28: z toho: hrubé mzdy | C28: 9244 | D28: 1362.683 | F28: 863.276 | G28: 1540.666667 | H28: 1777.755 | I28: 237.0883333
A29: výnosové ukazatele:
A30: 6 | B30: Přímé výnosy (PV) | C30: 15178 | D30: 2034.93233 | F30: 935.92707 | G30: 2529.666667 | H30: 1849.78849 | I30: -679.8781767
A31: 7 | B31: Výnosy ZP vč. agreg.V | C31: 11300 | D31: 1362.4679 | F31: 558.99064 | G31: 1883.333333 | H31: 1066.86311 | I31: -816.4702233
A32: 8 | B32: ZUM, ZUL - limity | C32: 392.121 | D32: 38.78406 | F32: 24.12613 | G32: =C32/12*MONTH(dat_do) -> 65.3535 | H32: 57.56678 | I32: -7.78672
A33: ostatní ukazatele:
A34: 9 | B34: Body vč.agregovaných výkonů | C34: 12297.244 | D34: 1729.366 | F34: 758.218 | G34: =C34/12*MONTH(dat_do) -> 2049.540667 | H34: 1412.197 | I34: -637.3436667
A36: Poměrné ukazatale:
A37: 1 | B37: nákladová hodnota bodu-Ncelkem | C37: =C12/C34 -> 1.713635998 | D37: =D12/D34 -> 1.906657729 | F37: =F12/F34 -> 2.571870399 | G37: =G12/G34 -> 1.713635998 | H37: =H12/H34 -> 2.78169499
A38: 2 | B38: výnosová hodnota bodu - V celkem | C38: =C18/C34 -> 1.525870349 | D38: =D13/D34 -> 1.1736137 | F38: =F13/F34 -> 1.220912679 | G38: =G13/G34 -> 1.225152563 | H38: =H13/H34 -> 1.293792396
A39: 3 | B39: podíl OsN na celkových nákl. % | C39: =C27/C12% -> 59.65927965 | D39: =D27/D12% -> 56.20480677 | F39: =F27/F12% -> 60.23471496 | G39: =G27/G12% -> 59.65927965 | H39: =H27/H12% -> 61.5606758
A42: Zpracoval: oddělení ekonomických činností

Sheet 30
A1: Pracoviště: 30 Oddělení geriatrie
A3: =CONCATENATE("Základní ukazatele hospodaření na rok ",YEAR(dat_do)," (v tis.)") -> Základní ukazatele hospodaření na rok 2010 (v tis.)
G6: Vyhodnocení aktuálního období :
H7: =CONCATENATE("1 - ",MONTH(dat_do)," / ",YEAR(dat_do)) -> 1 - 2 / 2010
C8: A | D8: B | F8: C | G8: D | H8: E
C9: Rozpočet | D9: Skutečnost | F9: Skutečnost | G9: Rozpočet | H9: Skutečnost | I9: Rozdíl
C10: (limit) | D10: za | F10: za | G10: za | H10: za | I10: E - D
A11: Souhrnné ukazatele: | C11: =YEAR(dat_do) -> 2010 | D11: =CONCATENATE("1-",MONTH(dat_do),"/",YEAR(dat_do)-1) -> 1-2/2009 | F11: =CONCATENATE(MONTH(dat_do),"/",YEAR(dat_do)) -> 2/2010 | G11: =CONCATENATE("1-",MONTH(dat_do),"/",YEAR(dat_do)) -> 1-2/2010 | H11: =CONCATENATE("1-",MONTH(dat_do),"/",YEAR(dat_do)) -> 1-2/2010
A12: 1 | B12: Náklady celkem (N) | C12: 37860 | D12: 5466.86797 | F12: 3060.94593 | G12: 6310 | H12: 6166.30115 | I12: =H12-G12 -> -143.69885
A13: 2 | B13: Výnosy celkem (V) | C13: 24388 | D13: 2316.64513 | F13: 1606.17671 | G13: 4064.666667 | H13: 2660.9959 | I13: =H13-G13 -> -1403.670767
A14: 3 | B14: Hospodářský výsledek (HV) | C14: =C13-C12 -> -13472 | D14: =D13-D12 -> -3150.22284 | F14: =F13-F12 -> -1454.76922 | G14: =G13-G12 -> -2245.333333 | H14: =H13-H12 -> -3505.30525
A16: Dílčí sledované ukazatele:
A17: nákladové ukazatele:
A18: 1 | B18: Přímé náklady (PN) | C18: 32643 | D18: 4711.15964 | F18: 2617.45289 | G18: 5440.5 | H18: 5296.38588 | I18: =H18-G18 -> -144.11412
A19: 2 | B19: Léky | C19: 2758 | D19: 369.30345 | F19: 268.7187 | G19: 459.6666667 | H19: 547.81401 | I19: 88.14734333
B20: z toho: vliv lékové vyhlášky | C20: 0 | D20: 0 | F20: 0 | G20: 0 | H20: 0 | I20: =H20-G20 -> 0
B21: spotřeba center | C21: 0 | D21: 0 | F21: 0 | G21: 0 | H21: 0 | I21: =H21-G21 -> 0
A22: 3 | B22: SZM | C22: 750 | D22: 161.04938 | F22: 58.78564 | G22: 125 | H22: 121.87924 | I22: -3.12076
B23: z toho: implantáty-kardiostim. | C23: 0 | D23: 0 | F23: 0 | G23: 0 | H23: 0 | I23: 0
B24: implantáty-defibrilátory | C24: 0 | D24: 0 | F24: 0 | G24: 0 | H24: 0 | I24: 0
B25: implantáty-TEP | C25: 0 | D25: 0 | F25: 0 | G25: 0 | H25: 0 | I25: 0
A26: 4 | B26: Všeobecný materiál | C26: 407 | D26: 102.79963 | F26: 24.82127 | G26: 67.83333333 | H26: 74.01558 | I26: 6.182246667
A27: 5 | B27: Osobní náklady (OsN) | C27: 23345 | D27: 3164.8891 | F27: 1839.79117 | G27: 3890.833333 | H27: 3700.38095 | I27: -190.4523833
B28: z toho: hrubé mzdy | C28: 17164 | D28: 2326.312 | F28: 1348.724 | G28: 2860.666667 | H28: 2713.492 | I28: -147.1746667
A29: výnosové ukazatele:
A30: 6 | B30: Přímé výnosy (PV) | C30: 25159 | D30: 2390.2649 | F30: 1656.15929 | G30: 4193.166667 | H30: 2777.67783 | I30: -1415.488837
A31: 7 | B31: Výnosy ZP vč. agreg.V | C31: 23973 | D31: 2243.74944 | F31: 1602.58133 | G31: 3995.5 | H31: 2655.45752 | I31: -1340.04248
A32: 8 | B32: ZUM, ZUL - limity | C32: 1827.731 | D32: 53.17312 | F32: 70.95872 | G32: =C32/12*MONTH(dat_do) -> 304.6218333 | H32: 103.12032 | I32: -201.5015133
A33: ostatní ukazatele:
A34: 9 | B34: Body vč.agregovaných výkonů | C34: 25058.69 | D34: 2334.638 | F34: 2014.797 | G34: =C34/12*MONTH(dat_do) -> 4176.448333 | H34: 3217.894 | I34: -958.5543333
A36: Poměrné ukazatale:
A37: 1 | B37: nákladová hodnota bodu-Ncelkem | C37: =C12/C34 -> 1.510853121 | D37: =D12/D34 -> 2.341634108 | F37: =F12/F34 -> 1.51923292 | G37: =G12/G34 -> 1.510853121 | H37: =H12/H34 -> 1.916253658
A38: 2 | B38: výnosová hodnota bodu - V celkem | C38: =C18/C34 -> 1.302661871 | D38: =D13/D34 -> 0.9922930793 | F38: =F13/F34 -> 0.7971903423 | G38: =G13/G34 -> 0.973235233 | H38: =H13/H34 -> 0.8269370899
A39: 3 | B39: podíl OsN na celkových nákl. % | C39: =C27/C12% -> 61.66138405 | D39: =D27/D12% -> 57.892181 | F39: =F27/F12% -> 60.10531424 | G39: =G27/G12% -> 61.66138405 | H39: =H27/H12% -> 60.00973452
A42: Zpracoval: oddělení ekonomických činností

Sheet 31
A1: Pracoviště: 31 Traumatologické oddělení
A3: =CONCATENATE("Základní ukazatele hospodaření na rok ",YEAR(dat_do)," (v tis.)") -> Základní ukazatele hospodaření na rok 2010 (v tis.)
G6: Vyhodnocení aktuálního období :
H7: =CONCATENATE("1 - ",MONTH(dat_do)," / ",YEAR(dat_do)) -> 1 - 2 / 2010
C8: A | D8: B | F8: C | G8: D | H8: E
C9: Rozpočet | D9: Skutečnost | F9: Skutečnost | G9: Rozpočet | H9: Skutečnost | I9: Rozdíl
C10: (limit) | D10: za | F10: za | G10: za | H10: za | I10: E - D
A11: Souhrnné ukazatele: | C11: =YEAR(dat_do) -> 2010 | D11: =CONCATENATE("1-",MONTH(dat_do),"/",YEAR(dat_do)-1) -> 1-2/2009 | F11: =CONCATENATE(MONTH(dat_do),"/",YEAR(dat_do)) -> 2/2010 | G11: =CONCATENATE("1-",MONTH(dat_do),"/",YEAR(dat_do)) -> 1-2/2010 | H11: =CONCATENATE("1-",MONTH(dat_do),"/",YEAR(dat_do)) -> 1-2/2010
A12: 1 | B12: Náklady celkem (N) | C12: 62671 | D12: 11408.58396 | F12: 6147.20152 | G12: 10445.16667 | H12: 11759.26127 | I12: =H12-G12 -> 1314.094603
A13: 2 | B13: Výnosy celkem (V) | C13: 46020 | D13: 8807.30987 | F13: 3813.68483 | G13: 7670 | H13: 8433.42574 | I13: =H13-G13 -> 763.42574
A14: 3 | B14: Hospodářský výsledek (HV) | C14: =C13-C12 -> -16651 | D14: =D13-D12 -> -2601.27409 | F14: =F13-F12 -> -2333.51669 | G14: =G13-G12 -> -2775.166667 | H14: =H13-H12 -> -3325.83553
A16: Dílčí sledované ukazatele:
A17: nákladové ukazatele:
A18: 1 | B18: Přímé náklady (PN) | C18: 57312 | D18: 10385.36122 | F18: 5680.37511 | G18: 9552 | H18: 10778.9748 | I18: =H18-G18 -> 1226.9748
A19: 2 | B19: Léky | C19: 2741 | D19: 500.29005 | F19: 340.88041 | G19: 456.8333333 | H19: 535.03784 | I19: 78.20450667
B20: z toho: vliv lékové vyhlášky | C20: 0 | D20: 0 | F20: 0 | G20: 0 | H20: 0 | I20: =H20-G20 -> 0
B21: spotřeba center | C21: 0 | D21: 0 | F21: 0 | G21: 0 | H21: 0 | I21: =H21-G21 -> 0
A22: 3 | B22: SZM | C22: 14081 | D22: 3130.35745 | F22: 1357.35376 | G22: 2346.833333 | H22: 2524.82257 | I22: 177.9892367
B23: z toho: implantáty-kardiostim. | C23: 0 | D23: 0 | F23: 0 | G23: 0 | H23: 0 | I23: 0
B24: implantáty-defibrilátory | C24: 0 | D24: 0 | F24: 0 | G24: 0 | H24: 0 | I24: 0
B25: implantáty-TEP | C25: 0 | D25: 0 | F25: 0 | G25: 0 | H25: 0 | I25: 0
A26: 4 | B26: Všeobecný materiál | C26: 696 | D26: 130.1364 | F26: 139.55999 | G26: 116 | H26: 194.89729 | I26: 78.89729
A27: 5 | B27: Osobní náklady (OsN) | C27: 32618 | D27: 5252.34166 | F27: 2655.13755 | G27: 5436.333333 | H27: 5756.3548 | I27: 320.0214667
B28: z toho: hrubé mzdy | C28: 23984 | D28: 3861.329 | F28: 1951.044 | G28: 3997.333333 | H28: 4230.574 | I28: 233.2406667
A29: výnosové ukazatele:
A30: 6 | B30: Přímé výnosy (PV) | C30: 47035 | D30: 8854.98433 | F30: 3849.63521 | G30: 7839.166667 | H30: 8500.63256 | I30: 661.4658933
A31: 7 | B31: Výnosy ZP vč. agreg.V | C31: 45263 | D31: 8648.60453 | F31: 3684.92311 | G31: 7543.833333 | H31: 8287.62961 | I31: 743.7962767
A32: 8 | B32: ZUM, ZUL - limity | C32: 13468.799 | D32: 2880.72977 | F32: 1709.08283 | G32: =C32/12*MONTH(dat_do) -> 2244.799833 | H32: 2774.12172 | I32: 529.3218867
A33: ostatní ukazatele:
A34: 9 | B34: Body vč.agregovaných výkonů | C34: 35893.897 | D34: 5706.599 | F34: 2747.576 | G34: =C34/12*MONTH(dat_do) -> 5982.316167 | H34: 5884.171 | I34: -98.14516667
A36: Poměrné ukazatale:
A37: 1 | B37: nákladová hodnota bodu-Ncelkem | C37: =C12/C34 -> 1.746007128 | D37: =D12/D34 -> 1.999191455 | F37: =F12/F34 -> 2.237318101 | G37: =G12/G34 -> 1.746007128 | H37: =H12/H34 -> 1.998456753
A38: 2 | B38: výnosová hodnota bodu - V celkem | C38: =C18/C34 -> 1.59670598 | D38: =D13/D34 -> 1.54335531 | F38: =F13/F34 -> 1.388017958 | G38: =G13/G34 -> 1.282112109 | H38: =H13/H34 -> 1.433239404
A39: 3 | B39: podíl OsN na celkových nákl. % | C39: =C27/C12% -> 52.04640105 | D39: =D27/D12% -> 46.03850643 | F39: =F27/F12% -> 43.19262255 | G39: =G27/G12% -> 52.04640105 | H39: =H27/H12% -> 48.95167024
A42: Zpracoval: oddělení ekonomických činností

Sheet 32
A1: Pracoviště: 32 Hemato-onkologická klinika
A3: =CONCATENATE("Základní ukazatele hospodaření na rok ",YEAR(dat_do)," (v tis.)") -> Základní ukazatele hospodaření na rok 2010 (v tis.)
G6: Vyhodnocení aktuálního období :
H7: =CONCATENATE("1 - ",MONTH(dat_do)," / ",YEAR(dat_do)) -> 1 - 2 / 2010
C8: A | D8: B | F8: C | G8: D | H8: E
C9: Rozpočet | D9: Skutečnost | F9: Skutečnost | G9: Rozpočet | H9: Skutečnost | I9: Rozdíl
C10: (limit) | D10: za | F10: za | G10: za | H10: za | I10: E - D
A11: Souhrnné ukazatele: | C11: =YEAR(dat_do) -> 2010 | D11: =CONCATENATE("1-",MONTH(dat_do),"/",YEAR(dat_do)-1) -> 1-2/2009 | F11: =CONCATENATE(MONTH(dat_do),"/",YEAR(dat_do)) -> 2/2010 | G11: =CONCATENATE("1-",MONTH(dat_do),"/",YEAR(dat_do)) -> 1-2/2010 | H11: =CONCATENATE("1-",MONTH(dat_do),"/",YEAR(dat_do)) -> 1-2/2010
A12: 1 | B12: Náklady celkem (N) | C12: 278230 | D12: 44406.84737 | F12: 25320.53695 | G12: 46371.66667 | H12: 50178.02015 | I12: =H12-G12 -> 3806.353483
A13: 2 | B13: Výnosy celkem (V) | C13: 307925 | D13: 53091.3232 | F13: 21574.09522 | G13: 51320.83333 | H13: 45227.85789 | I13: =H13-G13 -> -6092.975443
A14: 3 | B14: Hospodářský výsledek (HV) | C14: =C13-C12 -> 29695 | D14: =D13-D12 -> 8684.47583 | F14: =F13-F12 -> -3746.44173 | G14: =G13-G12 -> 4949.166667 | H14: =H13-H12 -> -4950.16226
A16: Dílčí sledované ukazatele:
A17: nákladové ukazatele:
A18: 1 | B18: Přímé náklady (PN) | C18: 266722 | D18: 43481.43376 | F18: 24298.46038 | G18: 44453.66667 | H18: 48201.02751 | I18: =H18-G18 -> 3747.360843
A19: 2 | B19: Léky | C19: 156017 | D19: 26466.55658 | F19: 14675.70576 | G19: 26002.83333 | H19: 29421.07899 | I19: 3418.245657
B20: z toho: vliv lékové vyhlášky | C20: 23642 | D20: 3717.52224 | F20: 2315.13232 | G20: 3940.333333 | H20: 4520.47481 | I20: =H20-G20 -> 580.1414767
B21: spotřeba center | C21: 75162 | D21: 14052.1912 | F21: 8216.60351 | G21: 12527 | H21: 17211.76964 | I21: =H21-G21 -> 4684.76964
A22: 3 | B22: SZM | C22: 20065 | D22: 3878.80138 | F22: 1962.08643 | G22: 3344.166667 | H22: 3710.35239 | I22: 366.1857233
B23: z toho: implantáty-kardiostim. | C23: 0 | D23: 0 | F23: 0 | G23: 0 | H23: 0 | I23: 0
B24: implantáty-defibrilátory | C24: 0 | D24: 0 | F24: 0 | G24: 0 | H24: 0 | I24: 0
B25: implantáty-TEP | C25: 0 | D25: 0 | F25: 0 | G25: 0 | H25: 0 | I25: 0
A26: 4 | B26: Všeobecný materiál | C26: 1282 | D26: 219.14304 | F26: 97.53605 | G26: 213.6666667 | H26: 205.67905 | I26: -7.987616667
A27: 5 | B27: Osobní náklady (OsN) | C27: 61256 | D27: 8799.38816 | F27: 5084.27735 | G27: 10209.33333 | H27: 10193.76155 | I27: -15.57178333
B28: z toho: hrubé mzdy | C28: 45040 | D28: 6468.172 | F28: 3727.812 | G28: 7506.666667 | H28: 7482.442 | I28: -24.22466667
A29: výnosové ukazatele:
A30: 6 | B30: Přímé výnosy (PV) | C30: 306528 | D30: 52916.00144 | F30: 21448.05104 | G30: 51088 | H30: 44894.42526 | I30: -6193.57474
A31: 7 | B31: Výnosy ZP vč. agreg.V | C31: 306819 | D31: 52933.57059 | F31: 21380.92813 | G31: 51136.5 | H31: 44983.84554 | I31: -6152.65446
A32: 8 | B32: ZUM, ZUL - limity | C32: 159871.23 | D32: 24144.99602 | F32: 11097.29531 | G32: =C32/12*MONTH(dat_do) -> 26645.205 | H32: 22306.75595 | I32: -4338.44905
A33: ostatní ukazatele:
A34: 9 | B34: Body vč.agregovaných výkonů | C34: 166204.436 | D34: 22332.318 | F34: 12379.16 | G34: =C34/12*MONTH(dat_do) -> 27700.73933 | H34: 22153.775 | I34: -5546.964333
A36: Poměrné ukazatale:
A37: 1 | B37: nákladová hodnota bodu-Ncelkem | C37: =C12/C34 -> 1.674022708 | D37: =D12/D34 -> 1.988456701 | F37: =F12/F34 -> 2.045416405 | G37: =G12/G34 -> 1.674022708 | H37: =H12/H34 -> 2.264987351
A38: 2 | B38: výnosová hodnota bodu - V celkem | C38: =C18/C34 -> 1.604782679 | D38: =D13/D34 -> 2.377331507 | F38: =F13/F34 -> 1.742775376 | G38: =G13/G34 -> 1.852688216 | H38: =H13/H34 -> 2.041541809
A39: 3 | B39: podíl OsN na celkových nákl. % | C39: =C27/C12% -> 22.01631744 | D39: =D27/D12% -> 19.81538587 | F39: =F27/F12% -> 20.0796585 | G39: =G27/G12% -> 22.01631744 | H39: =H27/H12% -> 20.31519283
A42: Zpracoval: oddělení ekonomických činností

Sheet 33
A1: Pracoviště: 33 Oddělení klinické biochemie
A3: =CONCATENATE("Základní ukazatele hospodaření na rok ",YEAR(dat_do)," (v tis.)") -> Základní ukazatele hospodaření na rok 2010 (v tis.)
G6: Vyhodnocení aktuálního období :
H7: =CONCATENATE("1 - ",MONTH(dat_do)," / ",YEAR(dat_do)) -> 1 - 2 / 2010
C8: A | D8: B | F8: C | G8: D | H8: E
C9: Rozpočet | D9: Skutečnost | F9: Skutečnost | G9: Rozpočet | H9: Skutečnost | I9: Rozdíl
C10: (limit) | D10: za | F10: za | G10: za | H10: za | I10: E - D
A11: Souhrnné ukazatele: | C11: =YEAR(dat_do) -> 2010 | D11: =CONCATENATE("1-",MONTH(dat_do),"/",YEAR(dat_do)-1) -> 1-2/2009 | F11: =CONCATENATE(MONTH(dat_do),"/",YEAR(dat_do)) -> 2/2010 | G11: =CONCATENATE("1-",MONTH(dat_do),"/",YEAR(dat_do)) -> 1-2/2010 | H11: =CONCATENATE("1-",MONTH(dat_do),"/",YEAR(dat_do)) -> 1-2/2010
A12: 1 | B12: Náklady celkem (N) | C12: 97037 | D12: 16046.2747 | F12: 8754.5079 | G12: 16172.83333 | H12: 17082.93107 | I12: =H12-G12 -> 910.0977367
A13: 2 | B13: Výnosy celkem (V) | C13: 139891 | D13: 23788.93077 | F13: 10178.79902 | G13: 23315.16667 | H13: 22979.73586 | I13: =H13-G13 -> -335.4308067
A14: 3 | B14: Hospodářský výsledek (HV) | C14: =C13-C12 -> 42854 | D14: =D13-D12 -> 7742.65607 | F14: =F13-F12 -> 1424.29112 | G14: =G13-G12 -> 7142.333333 | H14: =H13-H12 -> 5896.80479
A16: Dílčí sledované ukazatele:
A17: nákladové ukazatele:
A18: 1 | B18: Přímé náklady (PN) | C18: 90815 | D18: 15020.25265 | F18: 8195.04559 | G18: 15135.83333 | H18: 15970.93987 | I18: =H18-G18 -> 835.1065367
A19: 2 | B19: Léky | C19: 19 | D19: 2.11065 | F19: 10.58218 | G19: 3.166666667 | H19: 13.8781 | I19: 10.71143333
B20: z toho: vliv lékové vyhlášky | C20: 0 | D20: 0 | F20: 0 | G20: 0 | H20: 0 | I20: =H20-G20 -> 0
B21: spotřeba center | C21: 0 | D21: 0 | F21: 0 | G21: 0 | H21: 0 | I21: =H21-G21 -> 0
A22: 3 | B22: SZM | C22: 45280 | D22: 7737.73818 | F22: 4215.59329 | G22: 7546.666667 | H22: 8006.07035 | I22: 459.4036833
B23: z toho: implantáty-kardiostim. | C23: 0 | D23: 0 | F23: 0 | G23: 0 | H23: 0 | I23: 0
B24: implantáty-defibrilátory | C24: 0 | D24: 0 | F24: 0 | G24: 0 | H24: 0 | I24: 0
B25: implantáty-TEP | C25: 0 | D25: 0 | F25: 0 | G25: 0 | H25: 0 | I25: 0
A26: 4 | B26: Všeobecný materiál | C26: 352 | D26: 55.69681 | F26: 82.3283 | G26: 58.66666667 | H26: 135.72783 | I26: 77.06116333
A27: 5 | B27: Osobní náklady (OsN) | C27: 37921 | D27: 5743.79581 | F27: 3199.8091 | G27: 6320.166667 | H27: 6564.71704 | I27: 244.5503733
B28: z toho: hrubé mzdy | C28: 27883 | D28: 4224.668 | F28: 2353.142 | G28: 4647.166667 | H28: 4832.84 | I28: 185.6733333
A29: výnosové ukazatele:
A30: 6 | B30: Přímé výnosy (PV) | C30: 132559 | D30: 22974.78277 | F30: 9580.04436 | G30: 22093.16667 | H30: 21667.03444 | I30: -426.1322267
A31: 7 | B31: Výnosy ZP vč. agreg.V | C31: 138959 | D31: 23534.46618 | F31: 10034.36301 | G31: 23159.83333 | H31: 22815.97374 | I31: -343.8595933
A32: 8 | B32: ZUM, ZUL - limity | C32: 0 | D32: 0 | F32: 0 | G32: =C32/12*MONTH(dat_do) -> 0 | H32: 0 | I32: 0
A33: ostatní ukazatele:
A34: 9 | B34: Body vč.agregovaných výkonů | C34: 156861.592 | D34: 24697.459 | F34: 14327.132 | G34: =C34/12*MONTH(dat_do) -> 26143.59867 | H34: 27714.287 | I34: 1570.688333
A36: Poměrné ukazatale:
A37: 1 | B37: nákladová hodnota bodu-Ncelkem | C37: =C12/C34 -> 0.6186154224 | D37: =D12/D34 -> 0.6497135879 | F37: =F12/F34 -> 0.6110439898 | G37: =G12/G34 -> 0.6186154224 | H37: =H12/H34 -> 0.6163943915
A38: 2 | B38: výnosová hodnota bodu - V celkem | C38: =C18/C34 -> 0.5789498809 | D38: =D13/D34 -> 0.9632136962 | F38: =F13/F34 -> 0.7104561485 | G38: =G13/G34 -> 0.8918116807 | H38: =H13/H34 -> 0.8291656884
A39: 3 | B39: podíl OsN na celkových nákl. % | C39: =C27/C12% -> 39.07890805 | D39: =D27/D12% -> 35.79519806 | F39: =F27/F12% -> 36.5504165 | G39: =G27/G12% -> 39.07890805 | H39: =H27/H12% -> 38.42851682
A42: Zpracoval: oddělení ekonomických činností

Sheet 34
A1: Pracoviště: 34 Radiologická klinika
A3: =CONCATENATE("Základní ukazatele hospodaření na rok ",YEAR(dat_do)," (v tis.)") -> Základní ukazatele hospodaření na rok 2010 (v tis.)
G6: Vyhodnocení aktuálního období :
H7: =CONCATENATE("1 - ",MONTH(dat_do)," / ",YEAR(dat_do)) -> 1 - 2 / 2010
C8: A | D8: B | F8: C | G8: D | H8: E
C9: Rozpočet | D9: Skutečnost | F9: Skutečnost | G9: Rozpočet | H9: Skutečnost | I9: Rozdíl
C10: (limit) | D10: za | F10: za | G10: za | H10: za | I10: E - D
A11: Souhrnné ukazatele: | C11: =YEAR(dat_do) -> 2010 | D11: =CONCATENATE("1-",MONTH(dat_do),"/",YEAR(dat_do)-1) -> 1-2/2009 | F11: =CONCATENATE(MONTH(dat_do),"/",YEAR(dat_do)) -> 2/2010 | G11: =CONCATENATE("1-",MONTH(dat_do),"/",YEAR(dat_do)) -> 1-2/2010 | H11: =CONCATENATE("1-",MONTH(dat_do),"/",YEAR(dat_do)) -> 1-2/2010
A12: 1 | B12: Náklady celkem (N) | C12: 145972 | D12: 24089.42179 | F12: 12246.14236 | G12: 24328.66667 | H12: 24734.36486 | I12: =H12-G12 -> 405.6981933
A13: 2 | B13: Výnosy celkem (V) | C13: 170554 | D13: 29626.46083 | F13: 12295.45317 | G13: 28425.66667 | H13: 25977.30377 | I13: =H13-G13 -> -2448.362897
A14: 3 | B14: Hospodářský výsledek (HV) | C14: =C13-C12 -> 24582 | D14: =D13-D12 -> 5537.03904 | F14: =F13-F12 -> 49.31081 | G14: =G13-G12 -> 4097 | H14: =H13-H12 -> 1242.93891
A16: Dílčí sledované ukazatele:
A17: nákladové ukazatele:
A18: 1 | B18: Přímé náklady (PN) | C18: 137881 | D18: 22532.9314 | F18: 11534.56041 | G18: 22980.16667 | H18: 23321.5217 | I18: =H18-G18 -> 341.3550333
A19: 2 | B19: Léky | C19: 12210 | D19: 1966.04846 | F19: 1081.3938 | G19: 2035 | H19: 1963.794 | I19: -71.206
B20: z toho: vliv lékové vyhlášky | C20: 0 | D20: 0 | F20: 0 | G20: 0 | H20: 0 | I20: =H20-G20 -> 0
B21: spotřeba center | C21: 0 | D21: 0 | F21: 0 | G21: 0 | H21: 0 | I21: =H21-G21 -> 0
A22: 3 | B22: SZM | C22: 21714 | D22: 3792.70983 | F22: 2032.44768 | G22: 3619 | H22: 3799.06307 | I22: 180.06307
B23: z toho: implantáty-kardiostim. | C23: 0 | D23: 0 | F23: 0 | G23: 0 | H23: 0 | I23: 0
B24: implantáty-defibrilátory | C24: 0 | D24: 0 | F24: 0 | G24: 0 | H24: 0 | I24: 0
B25: implantáty-TEP | C25: 0 | D25: 0 | F25: 0 | G25: 0 | H25: 0 | I25: 0
A26: 4 | B26: Všeobecný materiál | C26: 1247 | D26: 126.41737 | F26: 39.72084 | G26: 207.8333333 | H26: 288.47274 | I26: 80.63940667
A27: 5 | B27: Osobní náklady (OsN) | C27: 47371 | D27: 7418.06173 | F27: 3876.98144 | G27: 7895.166667 | H27: 7886.31305 | I27: -8.853616667
B28: z toho: hrubé mzdy | C28: 34832 | D28: 5453.195 | F28: 2850.72 | G28: 5805.333333 | H28: 5795.974 | I28: -9.359333333
A29: výnosové ukazatele:
A30: 6 | B30: Přímé výnosy (PV) | C30: 167021 | D30: 29171.03945 | F30: 12079.63865 | G30: 27836.83333 | H30: 25253.46426 | I30: -2583.369073
A31: 7 | B31: Výnosy ZP vč. agreg.V | C31: 168976 | D31: 29334.21294 | F31: 12211.80338 | G31: 28162.66667 | H31: 25522.96799 | I31: -2639.698677
A32: 8 | B32: ZUM, ZUL - limity | C32: 43060.342 | D32: 7512.25411 | F32: 3867.952 | G32: =C32/12*MONTH(dat_do) -> 7176.723667 | H32: 7421.78197 | I32: 245.0583033
A33: ostatní ukazatele:
A34: 9 | B34: Body vč.agregovaných výkonů | C34: 143370.827 | D34: 23329.813 | F34: 11896.866 | G34: =C34/12*MONTH(dat_do) -> 23895.13783 | H34: 23981.92 | I34: 86.78216667
A36: Poměrné ukazatale:
A37: 1 | B37: nákladová hodnota bodu-Ncelkem | C37: =C12/C34 -> 1.018142973 | D37: =D12/D34 -> 1.032559575 | F37: =F12/F34 -> 1.029358687 | G37: =G12/G34 -> 1.018142973 | H37: =H12/H34 -> 1.031375505
A38: 2 | B38: výnosová hodnota bodu - V celkem | C38: =C18/C34 -> 0.9617088977 | D38: =D13/D34 -> 1.269897055 | F38: =F13/F34 -> 1.033503544 | G38: =G13/G34 -> 1.189600448 | H38: =H13/H34 -> 1.083203671
A39: 3 | B39: podíl OsN na celkových nákl. % | C39: =C27/C12% -> 32.4521141 | D39: =D27/D12% -> 30.79385547 | F39: =F27/F12% -> 31.65879773 | G39: =G27/G12% -> 32.4521141 | H39: =H27/H12% -> 31.88403298
A42: Zpracoval: oddělení ekonomických činností

Sheet 35
A1: Pracoviště: 35 Transfůzní oddělení
A3: =CONCATENATE("Základní ukazatele hospodaření na rok ",YEAR(dat_do)," (v tis.)") -> Základní ukazatele hospodaření na rok 2010 (v tis.)
G6: Vyhodnocení aktuálního období :
H7: =CONCATENATE("1 - ",MONTH(dat_do)," / ",YEAR(dat_do)) -> 1 - 2 / 2010
C8: A | D8: B | F8: C | G8: D | H8: E
C9: Rozpočet | D9: Skutečnost | F9: Skutečnost | G9: Rozpočet | H9: Skutečnost | I9: Rozdíl
C10: (limit) | D10: za | F10: za | G10: za | H10: za | I10: E - D
A11: Souhrnné ukazatele: | C11: =YEAR(dat_do) -> 2010 | D11: =CONCATENATE("1-",MONTH(dat_do),"/",YEAR(dat_do)-1) -> 1-2/2009 | F11: =CONCATENATE(MONTH(dat_do),"/",YEAR(dat_do)) -> 2/2010 | G11: =CONCATENATE("1-",MONTH(dat_do),"/",YEAR(dat_do)) -> 1-2/2010 | H11: =CONCATENATE("1-",MONTH(dat_do),"/",YEAR(dat_do)) -> 1-2/2010
A12: 1 | B12: Náklady celkem (N) | C12: 114052 | D12: 14774.34408 | F12: 9932.94775 | G12: 19008.66667 | H12: 20581.64195 | I12: =H12-G12 -> 1572.975283
A13: 2 | B13: Výnosy celkem (V) | C13: 146789 | D13: 19310.95338 | F13: 11931.97392 | G13: 24464.83333 | H13: 24396.0259 | I13: =H13-G13 -> -68.80743333
A14: 3 | B14: Hospodářský výsledek (HV) | C14: =C13-C12 -> 32737 | D14: =D13-D12 -> 4536.6093 | F14: =F13-F12 -> 1999.02617 | G14: =G13-G12 -> 5456.166667 | H14: =H13-H12 -> 3814.38395
A16: Dílčí sledované ukazatele:
A17: nákladové ukazatele:
A18: 1 | B18: Přímé náklady (PN) | C18: 109742 | D18: 14065.84241 | F18: 9541.64893 | G18: 18290.33333 | H18: 19770.96042 | I18: =H18-G18 -> 1480.627087
A19: 2 | B19: Léky | C19: 202 | D19: 36.4004 | F19: 199.90203 | G19: 33.66666667 | H19: 222.0392 | I19: 188.3725333
B20: z toho: vliv lékové vyhlášky | C20: 0 | D20: 0 | F20: 0 | G20: 0 | H20: 0 | I20: =H20-G20 -> 0
B21: spotřeba center | C21: 0 | D21: 0 | F21: 0 | G21: 0 | H21: 0 | I21: =H21-G21 -> 0
A22: 3 | B22: SZM | C22: 35172 | D22: 3880.4021 | F22: 3305.26919 | G22: 5862 | H22: 6271.12045 | I22: 409.12045
B23: z toho: implantáty-kardiostim. | C23: 0 | D23: 0 | F23: 0 | G23: 0 | H23: 0 | I23: 0
B24: implantáty-defibrilátory | C24: 0 | D24: 0 | F24: 0 | G24: 0 | H24: 0 | I24: 0
B25: implantáty-TEP | C25: 0 | D25: 0 | F25: 0 | G25: 0 | H25: 0 | I25: 0
A26: 4 | B26: Všeobecný materiál | C26: 784 | D26: 173.36181 | F26: 60.41398 | G26: 130.6666667 | H26: 113.47722 | I26: -17.18944667
A27: 5 | B27: Osobní náklady (OsN) | C27: 28155 | D27: 4232.29909 | F27: 2355.53805 | G27: 4692.5 | H27: 4741.81111 | I27: 49.31111
B28: z toho: hrubé mzdy | C28: 20701 | D28: 3106.464 | F28: 1728.462 | G28: 3450.166667 | H28: 3480.092 | I28: 29.92533333
A29: výnosové ukazatele:
A30: 6 | B30: Přímé výnosy (PV) | C30: 146375 | D30: 21996.55522 | F30: 11888.10431 | G30: 24395.83333 | H30: 24312.02081 | I30: -83.81252333
A31: 7 | B31: Výnosy ZP vč. agreg.V | C31: 21691 | D31: 3970.95639 | F31: 1579.73662 | G31: 3615.166667 | H31: 3507.3319 | I31: -107.8347667
A32: 8 | B32: ZUM, ZUL - limity | C32: 507.442 | D32: 93.496 | F32: 41.47 | G32: =C32/12*MONTH(dat_do) -> 84.57366667 | H32: 89.726 | I32: 5.152333333
A33: ostatní ukazatele:
A34: 9 | B34: Body vč.agregovaných výkonů | C34: 23956.078 | D34: 4269.317 | F34: 2205.734 | G34: =C34/12*MONTH(dat_do) -> 3992.679667 | H34: 4432.152 | I34: 439.4723333
A36: Poměrné ukazatale:
A37: 1 | B37: nákladová hodnota bodu-Ncelkem | C37: =C12/C34 -> 4.760879473 | D37: =D12/D34 -> 3.460587274 | F37: =F12/F34 -> 4.503239171 | G37: =G12/G34 -> 4.760879473 | H37: =H12/H34 -> 4.64371302
A38: 2 | B38: výnosová hodnota bodu - V celkem | C38: =C18/C34 -> 4.580966884 | D38: =D13/D34 -> 4.523195017 | F38: =F13/F34 -> 5.409525319 | G38: =G13/G34 -> 6.127422026 | H38: =H13/H34 -> 5.504329703
A39: 3 | B39: podíl OsN na celkových nákl. % | C39: =C27/C12% -> 24.68610809 | D39: =D27/D12% -> 28.64627402 | F39: =F27/F12% -> 23.71439083 | G39: =G27/G12% -> 24.68610809 | H39: =H27/H12% -> 23.03903217
A42: Zpracoval: oddělení ekonomických činností

Sheet 36
A1: Pracoviště: 36 Oddělení klinické logopedie
A3: =CONCATENATE("Základní ukazatele hospodaření na rok ",YEAR(dat_do)," (v tis.)") -> Základní ukazatele hospodaření na rok 2010 (v tis.)
G6: Vyhodnocení aktuálního období :
H7: =CONCATENATE("1 - ",MONTH(dat_do)," / ",YEAR(dat_do)) -> 1 - 2 / 2010
C8: A | D8: B | F8: C | G8: D | H8: E
C9: Rozpočet | D9: Skutečnost | F9: Skutečnost | G9: Rozpočet | H9: Skutečnost | I9: Rozdíl
C10: (limit) | D10: za | F10: za | G10: za | H10: za | I10: E - D
A11: Souhrnné ukazatele: | C11: =YEAR(dat_do) -> 2010 | D11: =CONCATENATE("1-",MONTH(dat_do),"/",YEAR(dat_do)-1) -> 1-2/2009 | F11: =CONCATENATE(MONTH(dat_do),"/",YEAR(dat_do)) -> 2/2010 | G11: =CONCATENATE("1-",MONTH(dat_do),"/",YEAR(dat_do)) -> 1-2/2010 | H11: =CONCATENATE("1-",MONTH(dat_do),"/",YEAR(dat_do)) -> 1-2/2010
A12: 1 | B12: Náklady celkem (N) | C12: 3068 | D12: 547.71556 | F12: 268.52517 | G12: 511.3333333 | H12: 524.03701 | I12: =H12-G12 -> 12.70367667
A13: 2 | B13: Výnosy celkem (V) | C13: 2145 | D13: 240.377 | F13: 133.27173 | G13: 357.5 | H13: 279.94386 | I13: =H13-G13 -> -77.55614
A14: 3 | B14: Hospodářský výsledek (HV) | C14: =C13-C12 -> -923 | D14: =D13-D12 -> -307.33856 | F14: =F13-F12 -> -135.25344 | G14: =G13-G12 -> -153.8333333 | H14: =H13-H12 -> -244.09315
A16: Dílčí sledované ukazatele:
A17: nákladové ukazatele:
A18: 1 | B18: Přímé náklady (PN) | C18: 2673 | D18: 474.80716 | F18: 233.92223 | G18: 445.5 | H18: 456.93059 | I18: =H18-G18 -> 11.43059
A19: 2 | B19: Léky | C19: 0 | D19: 0 | F19: 0 | G19: 0 | H19: 0 | I19: 0
B20: z toho: vliv lékové vyhlášky | C20: 0 | D20: 0 | F20: 0 | G20: 0 | H20: 0 | I20: =H20-G20 -> 0
B21: spotřeba center | C21: 0 | D21: 0 | F21: 0 | G21: 0 | H21: 0 | I21: =H21-G21 -> 0
A22: 3 | B22: SZM | C22: 2 | D22: 0 | F22: 0 | G22: 0.3333333333 | H22: 0 | I22: -0.3333333333
B23: z toho: implantáty-kardiostim. | C23: 0 | D23: 0 | F23: 0 | G23: 0 | H23: 0 | I23: 0
B24: implantáty-defibrilátory | C24: 0 | D24: 0 | F24: 0 | G24: 0 | H24: 0 | I24: 0
B25: implantáty-TEP | C25: 0 | D25: 0 | F25: 0 | G25: 0 | H25: 0 | I25: 0
A26: 4 | B26: Všeobecný materiál | C26: 14 | D26: 3.2377 | F26: 1.10957 | G26: 2.333333333 | H26: 1.10957 | I26: -1.223763333
A27: 5 | B27: Osobní náklady (OsN) | C27: 2409 | D27: 425.87295 | F27: 203.48835 | G27: 401.5 | H27: 402.92284 | I27: 1.42284
B28: z toho: hrubé mzdy | C28: 1772 | D28: 313.142 | F28: 149.623 | G28: 295.3333333 | H28: 296.265 | I28: 0.9316666667
A29: výnosové ukazatele:
A30: 6 | B30: Přímé výnosy (PV) | C30: 2145 | D30: 240.377 | F30: 133.27173 | G30: 357.5 | H30: 279.94386 | I30: -77.55614
A31: 7 | B31: Výnosy ZP vč. agreg.V | C31: 2140 | D31: 240.27925 | F31: 133.27173 | G31: 356.6666667 | H31: 279.94386 | I31: -76.72280667
A32: 8 | B32: ZUM, ZUL - limity | C32: 0 | D32: 0 | F32: 0 | G32: =C32/12*MONTH(dat_do) -> 0 | H32: 0 | I32: 0
A33: ostatní ukazatele:
A34: 9 | B34: Body vč.agregovaných výkonů | C34: 2421.785 | D34: 262.936 | F34: 190.765 | G34: =C34/12*MONTH(dat_do) -> 403.6308333 | H34: 372.738 | I34: -30.89283333
A36: Poměrné ukazatale:
A37: 1 | B37: nákladová hodnota bodu-Ncelkem | C37: =C12/C34 -> 1.266834174 | D37: =D12/D34 -> 2.083075577 | F37: =F12/F34 -> 1.407622834 | G37: =G12/G34 -> 1.266834174 | H37: =H12/H34 -> 1.405912491
A38: 2 | B38: výnosová hodnota bodu - V celkem | C38: =C18/C34 -> 1.103731339 | D38: =D13/D34 -> 0.9142034564 | F38: =F13/F34 -> 0.698617304 | G38: =G13/G34 -> 0.8857103335 | H38: =H13/H34 -> 0.7510472772
A39: 3 | B39: podíl OsN na celkových nákl. % | C39: =C27/C12% -> 78.5202086 | D39: =D27/D12% -> 77.75440048 | F39: =F27/F12% -> 75.77999113 | G39: =G27/G12% -> 78.5202086 | H39: =H27/H12% -> 76.88824116
A42: Zpracoval: oddělení ekonomických činností

Sheet 37
A1: Pracoviště: 37 Ústav patologie
A3: =CONCATENATE("Základní ukazatele hospodaření na rok ",YEAR(dat_do)," (v tis.)") -> Základní ukazatele hospodaření na rok 2010 (v tis.)
G6: Vyhodnocení aktuálního období :
H7: =CONCATENATE("1 - ",MONTH(dat_do)," / ",YEAR(dat_do)) -> 1 - 2 / 2010
C8: A | D8: B | F8: C | G8: D | H8: E
C9: Rozpočet | D9: Skutečnost | F9: Skutečnost | G9: Rozpočet | H9: Skutečnost | I9: Rozdíl
C10: (limit) | D10: za | F10: za | G10: za | H10: za | I10: E - D
A11: Souhrnné ukazatele: | C11: =YEAR(dat_do) -> 2010 | D11: =CONCATENATE("1-",MONTH(dat_do),"/",YEAR(dat_do)-1) -> 1-2/2009 | F11: =CONCATENATE(MONTH(dat_do),"/",YEAR(dat_do)) -> 2/2010 | G11: =CONCATENATE("1-",MONTH(dat_do),"/",YEAR(dat_do)) -> 1-2/2010 | H11: =CONCATENATE("1-",MONTH(dat_do),"/",YEAR(dat_do)) -> 1-2/2010
A12: 1 | B12: Náklady celkem (N) | C12: 23995 | D12: 3386.09684 | F12: 2129.06046 | G12: 3999.166667 | H12: 4226.7537 | I12: =H12-G12 -> 227.5870333
A13: 2 | B13: Výnosy celkem (V) | C13: 48926 | D13: 9414.48021 | F13: 4243.74919 | G13: 8154.333333 | H13: 9378.15862 | I13: =H13-G13 -> 1223.825287
A14: 3 | B14: Hospodářský výsledek (HV) | C14: =C13-C12 -> 24931 | D14: =D13-D12 -> 6028.38337 | F14: =F13-F12 -> 2114.68873 | G14: =G13-G12 -> 4155.166667 | H14: =H13-H12 -> 5151.40492
A16: Dílčí sledované ukazatele:
A17: nákladové ukazatele:
A18: 1 | B18: Přímé náklady (PN) | C18: 21394 | D18: 2971.34472 | F18: 1886.13113 | G18: 3565.666667 | H18: 3750.36691 | I18: =H18-G18 -> 184.7002433
A19: 2 | B19: Léky | C19: 140 | D19: 29.64104 | F19: 0.12241 | G19: 23.33333333 | H19: 20.82682 | I19: -2.506513333
B20: z toho: vliv lékové vyhlášky | C20: 0 | D20: 0 | F20: 0 | G20: 0 | H20: 0 | I20: =H20-G20 -> 0
B21: spotřeba center | C21: 0 | D21: 0 | F21: 0 | G21: 0 | H21: 0 | I21: =H21-G21 -> 0
A22: 3 | B22: SZM | C22: 2185 | D22: 362.09906 | F22: 183.4645 | G22: 364.1666667 | H22: 407.87478 | I22: 43.70811333
B23: z toho: implantáty-kardiostim. | C23: 0 | D23: 0 | F23: 0 | G23: 0 | H23: 0 | I23: 0
B24: implantáty-defibrilátory | C24: 0 | D24: 0 | F24: 0 | G24: 0 | H24: 0 | I24: 0
B25: implantáty-TEP | C25: 0 | D25: 0 | F25: 0 | G25: 0 | H25: 0 | I25: 0
A26: 4 | B26: Všeobecný materiál | C26: 460 | D26: 56.3343 | F26: 26.58349 | G26: 76.66666667 | H26: 48.69871 | I26: -27.96795667
A27: 5 | B27: Osobní náklady (OsN) | C27: 17775 | D27: 2455.32996 | F27: 1548.38266 | G27: 2962.5 | H27: 3097.87361 | I27: 135.37361
B28: z toho: hrubé mzdy | C28: 13070 | D28: 1805.347 | F28: 1139.022 | G28: 2178.333333 | H28: 2279.075 | I28: 100.7416667
A29: výnosové ukazatele:
A30: 6 | B30: Přímé výnosy (PV) | C30: 48928 | D30: 9414.48021 | F30: 4243.74919 | G30: 8154.666667 | H30: 9378.15862 | I30: 1223.491953
A31: 7 | B31: Výnosy ZP vč. agreg.V | C31: 48814 | D31: 9392.88841 | F31: 4145.92371 | G31: 8135.666667 | H31: 9272.56614 | I31: 1136.899473
A32: 8 | B32: ZUM, ZUL - limity | C32: 0 | D32: 0 | F32: 0 | G32: =C32/12*MONTH(dat_do) -> 0 | H32: 0 | I32: 0
A33: ostatní ukazatele:
A34: 9 | B34: Body vč.agregovaných výkonů | C34: 54702.663 | D34: 8614.396 | F34: 5560.43 | G34: =C34/12*MONTH(dat_do) -> 9117.1105 | H34: 9456.718 | I34: 339.6075
A36: Poměrné ukazatale:
A37: 1 | B37: nákladová hodnota bodu-Ncelkem | C37: =C12/C34 -> 0.4386440931 | D37: =D12/D34 -> 0.3930742028 | F37: =F12/F34 -> 0.3828949308 | G37: =G12/G34 -> 0.4386440931 | H37: =H12/H34 -> 0.4469577818
A38: 2 | B38: výnosová hodnota bodu - V celkem | C38: =C18/C34 -> 0.3910961337 | D38: =D13/D34 -> 1.092877575 | F38: =F13/F34 -> 0.7632052179 | G38: =G13/G34 -> 0.8943988705 | H38: =H13/H34 -> 0.9916927437
A39: 3 | B39: podíl OsN na celkových nákl. % | C39: =C27/C12% -> 74.0779329 | D39: =D27/D12% -> 72.51210098 | F39: =F27/F12% -> 72.72610098 | G39: =G27/G12% -> 74.0779329 | H39: =H27/H12% -> 73.29203048
A42: Zpracoval: oddělení ekonomických činností

Sheet 38
A1: Pracoviště: 38 Ústav soudního lékařství a medicínského práva
A3: =CONCATENATE("Základní ukazatele hospodaření na rok ",YEAR(dat_do)," (v tis.)") -> Základní ukazatele hospodaření na rok 2010 (v tis.)
G6: Vyhodnocení aktuálního období :
H7: =CONCATENATE("1 - ",MONTH(dat_do)," / ",YEAR(dat_do)) -> 1 - 2 / 2010
C8: A | D8: B | F8: C | G8: D | H8: E
C9: Rozpočet | D9: Skutečnost | F9: Skutečnost | G9: Rozpočet | H9: Skutečnost | I9: Rozdíl
C10: (limit) | D10: za | F10: za | G10: za | H10: za | I10: E - D
A11: Souhrnné ukazatele: | C11: =YEAR(dat_do) -> 2010 | D11: =CONCATENATE("1-",MONTH(dat_do),"/",YEAR(dat_do)-1) -> 1-2/2009 | F11: =CONCATENATE(MONTH(dat_do),"/",YEAR(dat_do)) -> 2/2010 | G11: =CONCATENATE("1-",MONTH(dat_do),"/",YEAR(dat_do)) -> 1-2/2010 | H11: =CONCATENATE("1-",MONTH(dat_do),"/",YEAR(dat_do)) -> 1-2/2010
A12: 1 | B12: Náklady celkem (N) | C12: 15585 | D12: 2669.7029 | F12: 1383.47602 | G12: 2597.5 | H12: 2756.18223 | I12: =H12-G12 -> 158.68223
A13: 2 | B13: Výnosy celkem (V) | C13: 9538 | D13: 1638.92476 | F13: 543.72323 | G13: 1589.666667 | H13: 1204.4161 | I13: =H13-G13 -> -385.2505667
A14: 3 | B14: Hospodářský výsledek (HV) | C14: =C13-C12 -> -6047 | D14: =D13-D12 -> -1030.77814 | F14: =F13-F12 -> -839.75279 | G14: =G13-G12 -> -1007.833333 | H14: =H13-H12 -> -1551.76613
A16: Dílčí sledované ukazatele:
A17: nákladové ukazatele:
A18: 1 | B18: Přímé náklady (PN) | C18: 13735 | D18: 2324.11857 | F18: 1209.81051 | G18: 2289.166667 | H18: 2406.56478 | I18: =H18-G18 -> 117.3981133
A19: 2 | B19: Léky | C19: 46 | D19: 9.57133 | F19: 2.2475 | G19: 7.666666667 | H19: 7.32878 | I19: -0.3378866667
B20: z toho: vliv lékové vyhlášky | C20: 0 | D20: 0 | F20: 0 | G20: 0 | H20: 0 | I20: =H20-G20 -> 0
B21: spotřeba center | C21: 0 | D21: 0 | F21: 0 | G21: 0 | H21: 0 | I21: =H21-G21 -> 0
A22: 3 | B22: SZM | C22: 989 | D22: 166.22405 | F22: 98.54902 | G22: 164.8333333 | H22: 130.2189 | I22: -34.61443333
B23: z toho: implantáty-kardiostim. | C23: 0 | D23: 0 | F23: 0 | G23: 0 | H23: 0 | I23: 0
B24: implantáty-defibrilátory | C24: 0 | D24: 0 | F24: 0 | G24: 0 | H24: 0 | I24: 0
B25: implantáty-TEP | C25: 0 | D25: 0 | F25: 0 | G25: 0 | H25: 0 | I25: 0
A26: 4 | B26: Všeobecný materiál | C26: 216 | D26: 49.97559 | F26: 20.45052 | G26: 36 | H26: 30.63295 | I26: -5.36705
A27: 5 | B27: Osobní náklady (OsN) | C27: 11494 | D27: 1991.9868 | F27: 1035.85313 | G27: 1915.666667 | H27: 2152.13655 | I27: 236.4698833
B28: z toho: hrubé mzdy | C28: 8451 | D28: 1464.879 | F28: 760.876 | G28: 1408.5 | H28: 1581.183 | I28: 172.683
A29: výnosové ukazatele:
A30: 6 | B30: Přímé výnosy (PV) | C30: 9538 | D30: 1638.92476 | F30: 543.72323 | G30: 1589.666667 | H30: 1204.4161 | I30: -385.2505667
A31: 7 | B31: Výnosy ZP vč. agreg.V | C31: 5014 | D31: 661.73374 | F31: 332.24092 | G31: 835.6666667 | H31: 769.24545 | I31: -66.42121667
A32: 8 | B32: ZUM, ZUL - limity | C32: 0 | D32: 0 | F32: 0 | G32: =C32/12*MONTH(dat_do) -> 0 | H32: 0 | I32: 0
A33: ostatní ukazatele:
A34: 9 | B34: Body vč.agregovaných výkonů | C34: 5669.347 | D34: 653.409 | F34: 555.236 | G34: =C34/12*MONTH(dat_do) -> 944.8911667 | H34: 1034.612 | I34: 89.72083333
A36: Poměrné ukazatale:
A37: 1 | B37: nákladová hodnota bodu-Ncelkem | C37: =C12/C34 -> 2.748993844 | D37: =D12/D34 -> 4.085806746 | F37: =F12/F34 -> 2.491690056 | G37: =G12/G34 -> 2.748993844 | H37: =H12/H34 -> 2.66397667
A38: 2 | B38: výnosová hodnota bodu - V celkem | C38: =C18/C34 -> 2.422677603 | D38: =D13/D34 -> 2.508267808 | F38: =F13/F34 -> 0.9792650873 | G38: =G13/G34 -> 1.682380705 | H38: =H13/H34 -> 1.164123459
A39: 3 | B39: podíl OsN na celkových nákl. % | C39: =C27/C12% -> 73.75040103 | D39: =D27/D12% -> 74.61454981 | F39: =F27/F12% -> 74.87322621 | G39: =G27/G12% -> 73.75040103 | H39: =H27/H12% -> 78.08397161
A42: Zpracoval: oddělení ekonomických činností

Sheet 39
A1: Pracoviště: 39 Oddělení klinické psychologie
A3: =CONCATENATE("Základní ukazatele hospodaření na rok ",YEAR(dat_do)," (v tis.)") -> Základní ukazatele hospodaření na rok 2010 (v tis.)
G6: Vyhodnocení aktuálního období :
H7: =CONCATENATE("1 - ",MONTH(dat_do)," / ",YEAR(dat_do)) -> 1 - 2 / 2010
C8: A | D8: B | F8: C | G8: D | H8: E
C9: Rozpočet | D9: Skutečnost | F9: Skutečnost | G9: Rozpočet | H9: Skutečnost | I9: Rozdíl
C10: (limit) | D10: za | F10: za | G10: za | H10: za | I10: E - D
A11: Souhrnné ukazatele: | C11: =YEAR(dat_do) -> 2010 | D11: =CONCATENATE("1-",MONTH(dat_do),"/",YEAR(dat_do)-1) -> 1-2/2009 | F11: =CONCATENATE(MONTH(dat_do),"/",YEAR(dat_do)) -> 2/2010 | G11: =CONCATENATE("1-",MONTH(dat_do),"/",YEAR(dat_do)) -> 1-2/2010 | H11: =CONCATENATE("1-",MONTH(dat_do),"/",YEAR(dat_do)) -> 1-2/2010
A12: 1 | B12: Náklady celkem (N) | C12: 5899 | D12: 1188.39753 | F12: 485.0057 | G12: 983.1666667 | H12: 975.80251 | I12: =H12-G12 -> -7.364156667
A13: 2 | B13: Výnosy celkem (V) | C13: 5992 | D13: 1249.13433 | F13: 316.8364 | G13: 998.6666667 | H13: 683.46046 | I13: =H13-G13 -> -315.2062067
A14: 3 | B14: Hospodářský výsledek (HV) | C14: =C13-C12 -> 93 | D14: =D13-D12 -> 60.7368 | F14: =F13-F12 -> -168.1693 | G14: =G13-G12 -> 15.5 | H14: =H13-H12 -> -292.34205
A16: Dílčí sledované ukazatele:
A17: nákladové ukazatele:
A18: 1 | B18: Přímé náklady (PN) | C18: 5076 | D18: 1020.48534 | F18: 414.67462 | G18: 846 | H18: 837.45129 | I18: =H18-G18 -> -8.54871
A19: 2 | B19: Léky | C19: 0 | D19: 0 | F19: 0 | G19: 0 | H19: 0 | I19: 0
B20: z toho: vliv lékové vyhlášky | C20: 0 | D20: 0 | F20: 0 | G20: 0 | H20: 0 | I20: =H20-G20 -> 0
B21: spotřeba center | C21: 0 | D21: 0 | F21: 0 | G21: 0 | H21: 0 | I21: =H21-G21 -> 0
A22: 3 | B22: SZM | C22: 0 | D22: 0 | F22: 0 | G22: 0 | H22: 0 | I22: 0
B23: z toho: implantáty-kardiostim. | C23: 0 | D23: 0 | F23: 0 | G23: 0 | H23: 0 | I23: 0
B24: implantáty-defibrilátory | C24: 0 | D24: 0 | F24: 0 | G24: 0 | H24: 0 | I24: 0
B25: implantáty-TEP | C25: 0 | D25: 0 | F25: 0 | G25: 0 | H25: 0 | I25: 0
A26: 4 | B26: Všeobecný materiál | C26: 21 | D26: 0.82043 | F26: 1.218 | G26: 3.5 | H26: 1.30249 | I26: -2.19751
A27: 5 | B27: Osobní náklady (OsN) | C27: 4736 | D27: 977.59154 | F27: 386.16387 | G27: 789.3333333 | H27: 775.67462 | I27: -13.65871333
B28: z toho: hrubé mzdy | C28: 3482 | D28: 715.758 | F28: 281.116 | G28: 580.3333333 | H28: 567.521 | I28: -12.81233333
A29: výnosové ukazatele:
A30: 6 | B30: Přímé výnosy (PV) | C30: 5992 | D30: 1249.13433 | F30: 316.8364 | G30: 998.6666667 | H30: 683.46046 | I30: -315.2062067
A31: 7 | B31: Výnosy ZP vč. agreg.V | C31: 5825 | D31: 1226.32358 | F31: 314.69444 | G31: 970.8333333 | H31: 681.2575 | I31: -289.5758333
A32: 8 | B32: ZUM, ZUL - limity | C32: 0 | D32: 0 | F32: 0 | G32: =C32/12*MONTH(dat_do) -> 0 | H32: 0 | I32: 0
A33: ostatní ukazatele:
A34: 9 | B34: Body vč.agregovaných výkonů | C34: 6587.789 | D34: 1321.744 | F34: 455.716 | G34: =C34/12*MONTH(dat_do) -> 1097.964833 | H34: 935.63 | I34: -162.3348333
A36: Poměrné ukazatale:
A37: 1 | B37: nákladová hodnota bodu-Ncelkem | C37: =C12/C34 -> 0.8954445869 | D37: =D12/D34 -> 0.8991132398 | F37: =F12/F34 -> 1.064271827 | G37: =G12/G34 -> 0.8954445869 | H37: =H12/H34 -> 1.042936321
A38: 2 | B38: výnosová hodnota bodu - V celkem | C38: =C18/C34 -> 0.7705164813 | D38: =D13/D34 -> 0.9450652547 | F38: =F13/F34 -> 0.695249673 | G38: =G13/G34 -> 0.9095616147 | H38: =H13/H34 -> 0.7304815579
A39: 3 | B39: podíl OsN na celkových nákl. % | C39: =C27/C12% -> 80.28479403 | D39: =D27/D12% -> 82.26132378 | F39: =F27/F12% -> 79.62048075 | G39: =G27/G12% -> 80.28479403 | H39: =H27/H12% -> 79.49094331
A42: Zpracoval: oddělení ekonomických činností

Sheet 40
A1: Pracoviště: 40 Ústav mikrobiologie
A3: =CONCATENATE("Základní ukazatele hospodaření na rok ",YEAR(dat_do)," (v tis.)") -> Základní ukazatele hospodaření na rok 2010 (v tis.)
G6: Vyhodnocení aktuálního období :
H7: =CONCATENATE("1 - ",MONTH(dat_do)," / ",YEAR(dat_do)) -> 1 - 2 / 2010
C8: A | D8: B | F8: C | G8: D | H8: E
C9: Rozpočet | D9: Skutečnost | F9: Skutečnost | G9: Rozpočet | H9: Skutečnost | I9: Rozdíl
C10: (limit) | D10: za | F10: za | G10: za | H10: za | I10: E - D
A11: Souhrnné ukazatele: | C11: =YEAR(dat_do) -> 2010 | D11: =CONCATENATE("1-",MONTH(dat_do),"/",YEAR(dat_do)-1) -> 1-2/2009 | F11: =CONCATENATE(MONTH(dat_do),"/",YEAR(dat_do)) -> 2/2010 | G11: =CONCATENATE("1-",MONTH(dat_do),"/",YEAR(dat_do)) -> 1-2/2010 | H11: =CONCATENATE("1-",MONTH(dat_do),"/",YEAR(dat_do)) -> 1-2/2010
A12: 1 | B12: Náklady celkem (N) | C12: 32357 | D12: 5630.13292 | F12: 2667.91303 | G12: 5392.833333 | H12: 5218.72732 | I12: =H12-G12 -> -174.1060133
A13: 2 | B13: Výnosy celkem (V) | C13: 59395 | D13: 9816.12131 | F13: 4501.52589 | G13: 9899.166667 | H13: 9249.2974 | I13: =H13-G13 -> -649.8692667
A14: 3 | B14: Hospodářský výsledek (HV) | C14: =C13-C12 -> 27038 | D14: =D13-D12 -> 4185.98839 | F14: =F13-F12 -> 1833.61286 | G14: =G13-G12 -> 4506.333333 | H14: =H13-H12 -> 4030.57008
A16: Dílčí sledované ukazatele:
A17: nákladové ukazatele:
A18: 1 | B18: Přímé náklady (PN) | C18: 30277 | D18: 5266.56007 | F18: 2478.93435 | G18: 5046.166667 | H18: 4842.83912 | I18: =H18-G18 -> -203.3275467
A19: 2 | B19: Léky | C19: 37 | D19: 5.38703 | F19: 2.42141 | G19: 6.166666667 | H19: 9.44567 | I19: 3.279003333
B20: z toho: vliv lékové vyhlášky | C20: 0 | D20: 0 | F20: 0 | G20: 0 | H20: 0 | I20: =H20-G20 -> 0
B21: spotřeba center | C21: 0 | D21: 0 | F21: 0 | G21: 0 | H21: 0 | I21: =H21-G21 -> 0
A22: 3 | B22: SZM | C22: 14719 | D22: 2887.50604 | F22: 1113.01498 | G22: 2453.166667 | H22: 2063.63665 | I22: -389.5300167
B23: z toho: implantáty-kardiostim. | C23: 0 | D23: 0 | F23: 0 | G23: 0 | H23: 0 | I23: 0
B24: implantáty-defibrilátory | C24: 0 | D24: 0 | F24: 0 | G24: 0 | H24: 0 | I24: 0
B25: implantáty-TEP | C25: 0 | D25: 0 | F25: 0 | G25: 0 | H25: 0 | I25: 0
A26: 4 | B26: Všeobecný materiál | C26: 176 | D26: 25.85459 | F26: 15.25826 | G26: 29.33333333 | H26: 97.69437 | I26: 68.36103667
A27: 5 | B27: Osobní náklady (OsN) | C27: 14792 | D27: 2231.95486 | F27: 1247.43083 | G27: 2465.333333 | H27: 2545.21749 | I27: 79.88415667
B28: z toho: hrubé mzdy | C28: 10876 | D28: 1643.577 | F28: 915.948 | G28: 1812.666667 | H28: 1868.701 | I28: 56.03433333
A29: výnosové ukazatele:
A30: 6 | B30: Přímé výnosy (PV) | C30: 44563 | D30: 8185.29007 | F30: 3534.44083 | G30: 7427.166667 | H30: 7102.31886 | I30: -324.8478067
A31: 7 | B31: Výnosy ZP vč. agreg.V | C31: 57844 | D31: 9476.98651 | F31: 4233.35724 | G31: 9640.666667 | H31: 8976.69275 | I31: -663.9739167
A32: 8 | B32: ZUM, ZUL - limity | C32: 0 | D32: 0 | F32: 0 | G32: =C32/12*MONTH(dat_do) -> 0 | H32: 0 | I32: 0
A33: ostatní ukazatele:
A34: 9 | B34: Body vč.agregovaných výkonů | C34: 66555.375 | D34: 11162.495 | F34: 6029.281 | G34: =C34/12*MONTH(dat_do) -> 11092.5625 | H34: 11762.707 | I34: 670.1445
A36: Poměrné ukazatale:
A37: 1 | B37: nákladová hodnota bodu-Ncelkem | C37: =C12/C34 -> 0.4861665944 | D37: =D12/D34 -> 0.5043794349 | F37: =F12/F34 -> 0.4424927334 | G37: =G12/G34 -> 0.4861665944 | H37: =H12/H34 -> 0.4436672035
A38: 2 | B38: výnosová hodnota bodu - V celkem | C38: =C18/C34 -> 0.4549144228 | D38: =D13/D34 -> 0.8793841619 | F38: =F13/F34 -> 0.7466107302 | G38: =G13/G34 -> 0.8924147749 | H38: =H13/H34 -> 0.7863238794
A39: 3 | B39: podíl OsN na celkových nákl. % | C39: =C27/C12% -> 45.71499212 | D39: =D27/D12% -> 39.6430225 | F39: =F27/F12% -> 46.75680264 | G39: =G27/G12% -> 45.71499212 | H39: =H27/H12% -> 48.77084649
A42: Zpracoval: oddělení ekonomických činností

Sheet 41
A1: Pracoviště: 41 Ústav imunologie
A3: =CONCATENATE("Základní ukazatele hospodaření na rok ",YEAR(dat_do)," (v tis.)") -> Základní ukazatele hospodaření na rok 2010 (v tis.)
G6: Vyhodnocení aktuálního období :
H7: =CONCATENATE("1 - ",MONTH(dat_do)," / ",YEAR(dat_do)) -> 1 - 2 / 2010
C8: A | D8: B | F8: C | G8: D | H8: E
C9: Rozpočet | D9: Skutečnost | F9: Skutečnost | G9: Rozpočet | H9: Skutečnost | I9: Rozdíl
C10: (limit) | D10: za | F10: za | G10: za | H10: za | I10: E - D
A11: Souhrnné ukazatele: | C11: =YEAR(dat_do) -> 2010 | D11: =CONCATENATE("1-",MONTH(dat_do),"/",YEAR(dat_do)-1) -> 1-2/2009 | F11: =CONCATENATE(MONTH(dat_do),"/",YEAR(dat_do)) -> 2/2010 | G11: =CONCATENATE("1-",MONTH(dat_do),"/",YEAR(dat_do)) -> 1-2/2010 | H11: =CONCATENATE("1-",MONTH(dat_do),"/",YEAR(dat_do)) -> 1-2/2010
A12: 1 | B12: Náklady celkem (N) | C12: 30727 | D12: 5144.4392 | F12: 1874.77078 | G12: 5121.166667 | H12: 5089.8057 | I12: =H12-G12 -> -31.36096667
A13: 2 | B13: Výnosy celkem (V) | C13: 47345 | D13: 8636.60373 | F13: 3758.35171 | G13: 7890.833333 | H13: 7455.32693 | I13: =H13-G13 -> -435.5064033
A14: 3 | B14: Hospodářský výsledek (HV) | C14: =C13-C12 -> 16618 | D14: =D13-D12 -> 3492.16453 | F14: =F13-F12 -> 1883.58093 | G14: =G13-G12 -> 2769.666667 | H14: =H13-H12 -> 2365.52123
A16: Dílčí sledované ukazatele:
A17: nákladové ukazatele:
A18: 1 | B18: Přímé náklady (PN) | C18: 28751 | D18: 4811.60885 | F18: 1707.89453 | G18: 4791.833333 | H18: 4753.70817 | I18: =H18-G18 -> -38.12516333
A19: 2 | B19: Léky | C19: 25 | D19: 3.56909 | F19: 2.17339 | G19: 4.166666667 | H19: 4.33544 | I19: 0.1687733333
B20: z toho: vliv lékové vyhlášky | C20: 0 | D20: 0 | F20: 0 | G20: 0 | H20: 0 | I20: =H20-G20 -> 0
B21: spotřeba center | C21: 0 | D21: 0 | F21: 0 | G21: 0 | H21: 0 | I21: =H21-G21 -> 0
A22: 3 | B22: SZM | C22: 16159 | D22: 2385.38114 | F22: 642.59661 | G22: 2693.166667 | H22: 2563.24197 | I22: -129.9246967
B23: z toho: implantáty-kardiostim. | C23: 0 | D23: 0 | F23: 0 | G23: 0 | H23: 0 | I23: 0
B24: implantáty-defibrilátory | C24: 0 | D24: 0 | F24: 0 | G24: 0 | H24: 0 | I24: 0
B25: implantáty-TEP | C25: 0 | D25: 0 | F25: 0 | G25: 0 | H25: 0 | I25: 0
A26: 4 | B26: Všeobecný materiál | C26: 186 | D26: 52.22113 | F26: 15.72986 | G26: 31 | H26: 27.81604 | I26: -3.18396
A27: 5 | B27: Osobní náklady (OsN) | C27: 10573 | D27: 1759.44361 | F27: 884.71473 | G27: 1762.166667 | H27: 1836.87054 | I27: 74.70387333
B28: z toho: hrubé mzdy | C28: 7774 | D28: 1293.15 | F28: 649.044 | G28: 1295.666667 | H28: 1349.875 | I28: 54.20833333
A29: výnosové ukazatele:
A30: 6 | B30: Přímé výnosy (PV) | C30: 47345 | D30: 8636.60373 | F30: 3758.35171 | G30: 7890.833333 | H30: 7455.32693 | I30: -435.5064033
A31: 7 | B31: Výnosy ZP vč. agreg.V | C31: 46796 | D31: 8507.75055 | F31: 3726.04289 | G31: 7799.333333 | H31: 7397.84111 | I31: -401.4922233
A32: 8 | B32: ZUM, ZUL - limity | C32: 0 | D32: 0 | F32: 0 | G32: =C32/12*MONTH(dat_do) -> 0 | H32: 0 | I32: 0
A33: ostatní ukazatele:
A34: 9 | B34: Body vč.agregovaných výkonů | C34: 52664.75 | D34: 8912.883 | F34: 5341.656 | G34: =C34/12*MONTH(dat_do) -> 8777.458333 | H34: 9574.998 | I34: 797.5396667
A36: Poměrné ukazatale:
A37: 1 | B37: nákladová hodnota bodu-Ncelkem | C37: =C12/C34 -> 0.5834452836 | D37: =D12/D34 -> 0.5771913757 | F37: =F12/F34 -> 0.3509718297 | G37: =G12/G34 -> 0.5834452836 | H37: =H12/H34 -> 0.5315725079
A38: 2 | B38: výnosová hodnota bodu - V celkem | C38: =C18/C34 -> 0.5459249308 | D38: =D13/D34 -> 0.9690022555 | F38: =F13/F34 -> 0.7035929888 | G38: =G13/G34 -> 0.8989884126 | H38: =H13/H34 -> 0.7786243851
A39: 3 | B39: podíl OsN na celkových nákl. % | C39: =C27/C12% -> 34.40947701 | D39: =D27/D12% -> 34.20088258 | F39: =F27/F12% -> 47.19055468 | G39: =G27/G12% -> 34.40947701 | H39: =H27/H12% -> 36.08920749
A42: Zpracoval: oddělení ekonomických činností

Sheet 43
A1: Pracoviště: 43 Ústav farmakologie
A3: =CONCATENATE("Základní ukazatele hospodaření na rok ",YEAR(dat_do)," (v tis.)") -> Základní ukazatele hospodaření na rok 2010 (v tis.)
G6: Vyhodnocení aktuálního období :
H7: =CONCATENATE("1 - ",MONTH(dat_do)," / ",YEAR(dat_do)) -> 1 - 2 / 2010
C8: A | D8: B | F8: C | G8: D | H8: E
C9: Rozpočet | D9: Skutečnost | F9: Skutečnost | G9: Rozpočet | H9: Skutečnost | I9: Rozdíl
C10: (limit) | D10: za | F10: za | G10: za | H10: za | I10: E - D
A11: Souhrnné ukazatele: | C11: =YEAR(dat_do) -> 2010 | D11: =CONCATENATE("1-",MONTH(dat_do),"/",YEAR(dat_do)-1) -> 1-2/2009 | F11: =CONCATENATE(MONTH(dat_do),"/",YEAR(dat_do)) -> 2/2010 | G11: =CONCATENATE("1-",MONTH(dat_do),"/",YEAR(dat_do)) -> 1-2/2010 | H11: =CONCATENATE("1-",MONTH(dat_do),"/",YEAR(dat_do)) -> 1-2/2010
A12: 1 | B12: Náklady celkem (N) | C12: 1499 | D12: 224.12622 | F12: 125.98238 | G12: 249.8333333 | H12: 251.67255 | I12: =H12-G12 -> 1.839216667
A13: 2 | B13: Výnosy celkem (V) | C13: 84 | D13: 13.16075 | F13: 3.85608 | G13: 14 | H13: 5.77661 | I13: =H13-G13 -> -8.22339
A14: 3 | B14: Hospodářský výsledek (HV) | C14: =C13-C12 -> -1415 | D14: =D13-D12 -> -210.96547 | F14: =F13-F12 -> -122.1263 | G14: =G13-G12 -> -235.8333333 | H14: =H13-H12 -> -245.89594
A16: Dílčí sledované ukazatele:
A17: nákladové ukazatele:
A18: 1 | B18: Přímé náklady (PN) | C18: 1211 | D18: 180.04576 | F18: 100.97906 | G18: 201.8333333 | H18: 202.64322 | I18: =H18-G18 -> 0.8098866667
A19: 2 | B19: Léky | C19: 0 | D19: 0 | F19: 0 | G19: 0 | H19: 0 | I19: 0
B20: z toho: vliv lékové vyhlášky | C20: 0 | D20: 0 | F20: 0 | G20: 0 | H20: 0 | I20: 0
B21: spotřeba center | C21: 0 | D21: 0 | F21: 0 | G21: 0 | H21: 0 | I21: 0
A22: 3 | B22: SZM | C22: 0 | D22: 0 | F22: 0 | G22: 0 | H22: 0 | I22: 0
B23: z toho: implantáty-kardiostim. | C23: 0 | D23: 0 | F23: 0 | G23: 0 | H23: 0 | I23: 0
B24: implantáty-defibrilátory | C24: 0 | D24: 0 | F24: 0 | G24: 0 | H24: 0 | I24: 0
B25: implantáty-TEP | C25: 0 | D25: 0 | F25: 0 | G25: 0 | H25: 0 | I25: 0
A26: 4 | B26: Všeobecný materiál | C26: 5 | D26: 0.18484 | F26: 0 | G26: 0.8333333333 | H26: 0 | I26: -0.8333333333
A27: 5 | B27: Osobní náklady (OsN) | C27: 1187 | D27: 179.41683 | F27: 100.9703 | G27: 197.8333333 | H27: 202.66189 | I27: 4.828556667
B28: z toho: hrubé mzdy | C28: 873 | D28: 131.925 | F28: 74.538 | G28: 145.5 | H28: 149.609 | I28: 4.109
A29: výnosové ukazatele:
A30: 6 | B30: Přímé výnosy (PV) | C30: 84 | D30: 13.16075 | F30: 3.85608 | G30: 14 | H30: 5.77661 | I30: -8.22339
A31: 7 | B31: Výnosy ZP vč. agreg.V | C31: 64 | D31: 13.16075 | F31: 3.85608 | G31: 10.66666667 | H31: 5.77661 | I31: -4.890056667
A32: 8 | B32: ZUM, ZUL - limity | C32: 0 | D32: 0 | F32: 0 | G32: =C32/12*MONTH(dat_do) -> 0 | H32: 0 | I32: 0
A33: ostatní ukazatele:
A34: 9 | B34: Body vč.agregovaných výkonů | C34: 72.408 | D34: 9.886 | F34: 5.021 | G34: =C34/12*MONTH(dat_do) -> 12.068 | H34: 7.774 | I34: -
A36: Poměrné ukazatale:
A37: 1 | B37: nákladová hodnota bodu-Ncelkem | C37: - | D37: - | F37: - | G37: - | H37: -
A38: 2 | B38: výnosová hodnota bodu - V celkem | C38: - | D38: =D13/D34 -> 1.331251264 | F38: =F13/F34 -> 0.7679904402 | G38: =G13/G34 -> 1.160092807 | H38: =H13/H34 -> 0.7430679187
A39: 3 | B39: podíl OsN na celkových nákl. % | C39: =C27/C12% -> 79.18612408 | D39: =D27/D12% -> 80.05169141 | F39: =F27/F12% -> 80.1463665 | G39: =G27/G12% -> 79.18612408 | H39: =H27/H12% -> 80.52602082
A42: Zpracoval: oddělení ekonomických činností

Sheet 44
A1: Pracoviště: 44 Centrální službý-dispečink san
A3: =CONCATENATE("Základní ukazatele hospodaření na rok ",YEAR(dat_do)," (v tis.)") -> Základní ukazatele hospodaření na rok 2010 (v tis.)
G6: Vyhodnocení aktuálního období :
H7: =CONCATENATE("1 - ",MONTH(dat_do)," / ",YEAR(dat_do)) -> 1 - 2 / 2010
C8: A | D8: B | F8: C | G8: D | H8: E
C9: Rozpočet | D9: Skutečnost | F9: Skutečnost | G9: Rozpočet | H9: Skutečnost | I9: Rozdíl
C10: (limit) | D10: za | F10: za | G10: za | H10: za | I10: E - D
A11: Souhrnné ukazatele: | C11: =YEAR(dat_do) -> 2010 | D11: =CONCATENATE("1-",MONTH(dat_do),"/",YEAR(dat_do)-1) -> 1-2/2009 | F11: =CONCATENATE(MONTH(dat_do),"/",YEAR(dat_do)) -> 2/2010 | G11: =CONCATENATE("1-",MONTH(dat_do),"/",YEAR(dat_do)) -> 1-2/2010 | H11: =CONCATENATE("1-",MONTH(dat_do),"/",YEAR(dat_do)) -> 1-2/2010
A12: 1 | B12: Náklady celkem (N) | C12: 0 | D12: 0 | F12: 0 | G12: 0 | H12: 0 | I12: =H12-G12 -> 0
A13: 2 | B13: Výnosy celkem (V) | C13: 0 | D13: 0 | F13: 0 | G13: 0 | H13: 0 | I13: =H13-G13 -> 0
A14: 3 | B14: Hospodářský výsledek (HV) | C14: =C13-C12 -> 0 | D14: =D13-D12 -> 0 | F14: =F13-F12 -> 0 | G14: =G13-G12 -> 0 | H14: =H13-H12 -> 0
A16: Dílčí sledované ukazatele:
A17: nákladové ukazatele:
A18: 1 | B18: Přímé náklady (PN) | C18: 0 | D18: 0 | F18: 0 | G18: 0 | H18: 0 | I18: =H18-G18 -> 0
A19: 2 | B19: Léky | C19: 0 | D19: 0 | F19: 0 | G19: 0 | H19: 0 | I19: 0
B20: z toho: vliv lékové vyhlášky | C20: 0 | D20: 0 | F20: 0 | G20: 0 | H20: 0 | I20: 0
B21: spotřeba center | C21: 0 | D21: 0 | F21: 0 | G21: 0 | H21: 0 | I21: 0
A22: 3 | B22: SZM | C22: 0 | D22: 0 | F22: 0 | G22: 0 | H22: 0 | I22: 0
B23: z toho: implantáty-kardiostim. | C23: 0 | D23: 0 | F23: 0 | G23: 0 | H23: 0 | I23: 0
B24: implantáty-defibrilátory | C24: 0 | D24: 0 | F24: 0 | G24: 0 | H24: 0 | I24: 0
B25: implantáty-TEP | C25: 0 | D25: 0 | F25: 0 | G25: 0 | H25: 0 | I25: 0
A26: 4 | B26: Všeobecný materiál | C26: 0 | D26: 0 | F26: 0 | G26: 0 | H26: 0 | I26: 0
A27: 5 | B27: Osobní náklady (OsN) | C27: 0 | D27: 0 | F27: 0 | G27: 0 | H27: 0 | I27: 0
B28: z toho: hrubé mzdy | C28: 0 | D28: 0 | F28: 0 | G28: 0 | H28: 0 | I28: 0
A29: výnosové ukazatele:
A30: 6 | B30: Přímé výnosy (PV) | C30: 0 | D30: 0 | F30: 0 | G30: 0 | H30: 0 | I30: 0
A31: 7 | B31: Výnosy ZP vč. agreg.V | C31: 0 | D31: 0 | F31: 0 | G31: 0 | H31: 0 | I31: 0
A32: 8 | B32: ZUM, ZUL - limity | D32: 0 | F32: 0 | G32: =C32/12*MONTH(dat_do) -> 0 | H32: 0 | I32: 0
A33: ostatní ukazatele:
A34: 9 | B34: Body vč.agregovaných výkonů | C34: - | D34: 0 | F34: 0 | G34: 0 | H34: 0 | I34: -
A36: Poměrné ukazatale:
A37: 1 | B37: nákladová hodnota bodu-Ncelkem | C37: - | D37: - | F37: - | G37: - | H37: -
A38: 2 | B38: výnosová hodnota bodu - V celkem | C38: - | D38: =D13/D34 ->  | F38: =F13/F34 ->  | G38: =G13/G34 ->  | H38: =H13/H34 -> 
A39: 3 | B39: podíl OsN na celkových nákl. % | C39: =C27/C12% ->  | D39: =D27/D12% ->  | F39: =F27/F12% ->  | G39: =G27/G12% ->  | H39: =H27/H12% -> 
A42: Zpracoval: oddělení ekonomických činností

Sheet 45
A1: Pracoviště: 45 Sociální oddělení
A3: =CONCATENATE("Základní ukazatele hospodaření na rok ",YEAR(dat_do)," (v tis.)") -> Základní ukazatele hospodaření na rok 2010 (v tis.)
G6: Vyhodnocení aktuálního období :
H7: =CONCATENATE("1 - ",MONTH(dat_do)," / ",YEAR(dat_do)) -> 1 - 2 / 2010
C8: A | D8: B | F8: C | G8: D | H8: E
C9: Rozpočet | D9: Skutečnost | F9: Skutečnost | G9: Rozpočet | H9: Skutečnost | I9: Rozdíl
C10: (limit) | D10: za | F10: za | G10: za | H10: za | I10: E - D
A11: Souhrnné ukazatele: | C11: =YEAR(dat_do) -> 2010 | D11: =CONCATENATE("1-",MONTH(dat_do),"/",YEAR(dat_do)-1) -> 1-2/2009 | F11: =CONCATENATE(MONTH(dat_do),"/",YEAR(dat_do)) -> 2/2010 | G11: =CONCATENATE("1-",MONTH(dat_do),"/",YEAR(dat_do)) -> 1-2/2010 | H11: =CONCATENATE("1-",MONTH(dat_do),"/",YEAR(dat_do)) -> 1-2/2010
A12: 1 | B12: Náklady celkem (N) | C12: 2928 | D12: 459.8442 | F12: 261.42308 | G12: 488 | H12: 526.39731 | I12: =H12-G12 -> 38.39731
A13: 2 | B13: Výnosy celkem (V) | C13: 304 | D13: 108.33497 | F13: 0 | G13: 50.66666667 | H13: 0.028 | I13: =H13-G13 -> -50.63866667
A14: 3 | B14: Hospodářský výsledek (HV) | C14: =C13-C12 -> -2624 | D14: =D13-D12 -> -351.50923 | F14: =F13-F12 -> -261.42308 | G14: =G13-G12 -> -437.3333333 | H14: =H13-H12 -> -526.36931
A16: Dílčí sledované ukazatele:
A17: nákladové ukazatele:
A18: 1 | B18: Přímé náklady (PN) | C18: 2532 | D18: 392.05083 | F18: 224.63616 | G18: 422 | H18: 454.14435 | I18: =H18-G18 -> 32.14435
A19: 2 | B19: Léky | C19: 0 | D19: 0 | F19: 0 | G19: 0 | H19: 0 | I19: 0
B20: z toho: vliv lékové vyhlášky | C20: 0 | D20: 0 | F20: 0 | G20: 0 | H20: 0 | I20: 0
B21: spotřeba center | C21: 0 | D21: 0 | F21: 0 | G21: 0 | H21: 0 | I21: 0
A22: 3 | B22: SZM | C22: 0 | D22: 0 | F22: 0 | G22: 0 | H22: 0 | I22: 0
B23: z toho: implantáty-kardiostim. | C23: 0 | D23: 0 | F23: 0 | G23: 0 | H23: 0 | I23: 0
B24: implantáty-defibrilátory | C24: 0 | D24: 0 | F24: 0 | G24: 0 | H24: 0 | I24: 0
B25: implantáty-TEP | C25: 0 | D25: 0 | F25: 0 | G25: 0 | H25: 0 | I25: 0
A26: 4 | B26: Všeobecný materiál | C26: 8 | D26: 0.0234 | F26: 1.30885 | G26: 1.333333333 | H26: 1.74705 | I26: 0.4137166667
A27: 5 | B27: Osobní náklady (OsN) | C27: 2339 | D27: 363.25873 | F27: 209.8333 | G27: 389.8333333 | H27: 422.98757 | I27: 33.15423667
B28: z toho: hrubé mzdy | C28: 1720 | D28: 267.104 | F28: 154.288 | G28: 286.6666667 | H28: 311.02 | I28: 24.35333333
A29: výnosové ukazatele:
A30: 6 | B30: Přímé výnosy (PV) | C30: 304 | D30: 108.33497 | F30: 0 | G30: 50.66666667 | H30: 0.028 | I30: -50.63866667
A31: 7 | B31: Výnosy ZP vč. agreg.V | C31: 0 | D31: 0 | F31: 0 | G31: 0 | H31: 0 | I31: 0
A32: 8 | B32: ZUM, ZUL - limity | C32: 0 | D32: 0 | F32: 0 | G32: =C32/12*MONTH(dat_do) -> 0 | H32: 0 | I32: 0
A33: ostatní ukazatele:
A34: 9 | B34: Body vč.agregovaných výkonů | C34: 0 | D34: 0 | F34: 0 | G34: =C34/12*MONTH(dat_do) -> 0 | H34: 0 | I34: -
A36: Poměrné ukazatale:
A37: 1 | B37: nákladová hodnota bodu-Ncelkem | C37: - | D37: - | F37: - | G37: - | H37: -
A38: 2 | B38: výnosová hodnota bodu - V celkem | C38: - | D38: =D13/D34 ->  | F38: =F13/F34 ->  | G38: =G13/G34 ->  | H38: =H13/H34 -> 
A39: 3 | B39: podíl OsN na celkových nákl. % | C39: =C27/C12% -> 79.88387978 | D39: =D27/D12% -> 78.99604475 | F39: =F27/F12% -> 80.26578985 | G39: =G27/G12% -> 79.88387978 | H39: =H27/H12% -> 80.35519216
A42: Zpracoval: oddělení ekonomických činností

Sheet 46
A1: Pracoviště: 46 Transplantační centrum
A3: =CONCATENATE("Základní ukazatele hospodaření na rok ",YEAR(dat_do)," (v tis.)") -> Základní ukazatele hospodaření na rok 2010 (v tis.)
G6: Vyhodnocení aktuálního období :
H7: =CONCATENATE("1 - ",MONTH(dat_do)," / ",YEAR(dat_do)) -> 1 - 2 / 2010
C8: A | D8: B | F8: C | G8: D | H8: E
C9: Rozpočet | D9: Skutečnost | F9: Skutečnost | G9: Rozpočet | H9: Skutečnost | I9: Rozdíl
C10: (limit) | D10: za | F10: za | G10: za | H10: za | I10: E - D
A11: Souhrnné ukazatele: | C11: =YEAR(dat_do) -> 2010 | D11: =CONCATENATE("1-",MONTH(dat_do),"/",YEAR(dat_do)-1) -> 1-2/2009 | F11: =CONCATENATE(MONTH(dat_do),"/",YEAR(dat_do)) -> 2/2010 | G11: =CONCATENATE("1-",MONTH(dat_do),"/",YEAR(dat_do)) -> 1-2/2010 | H11: =CONCATENATE("1-",MONTH(dat_do),"/",YEAR(dat_do)) -> 1-2/2010
A12: 1 | B12: Náklady celkem (N) | C12: 921 | D12: 229.50137 | F12: 98.68795 | G12: 153.5 | H12: 208.51866 | I12: =H12-G12 -> 55.01866
A13: 2 | B13: Výnosy celkem (V) | C13: 921 | D13: 188.86411 | F13: 98.68795 | G13: 153.5 | H13: 208.51866 | I13: =H13-G13 -> 55.01866
A14: 3 | B14: Hospodářský výsledek (HV) | C14: =C13-C12 -> 0 | D14: =D13-D12 -> -40.63726 | F14: =F13-F12 -> 0 | G14: =G13-G12 -> 0 | H14: =H13-H12 -> 0
A16: Dílčí sledované ukazatele:
A17: nákladové ukazatele:
A18: 1 | B18: Přímé náklady (PN) | C18: 885 | D18: 225.86982 | F18: 95.9185 | G18: 147.5 | H18: 203.10454 | I18: =H18-G18 -> 55.60454
A19: 2 | B19: Léky | C19: 0 | D19: 0 | F19: 0 | G19: 0 | H19: 0 | I19: 0
B20: z toho: vliv lékové vyhlášky | C20: 0 | D20: 0 | F20: 0 | G20: 0 | H20: 0 | I20: 0
B21: spotřeba center | C21: 0 | D21: 0 | F21: 0 | G21: 0 | H21: 0 | I21: 0
A22: 3 | B22: SZM | C22: 118 | D22: 0 | F22: 0 | G22: 19.66666667 | H22: 0 | I22: -19.66666667
B23: z toho: implantáty-kardiostim. | C23: 0 | D23: 0 | F23: 0 | G23: 0 | H23: 0 | I23: 0
B24: implantáty-defibrilátory | C24: 0 | D24: 0 | F24: 0 | G24: 0 | H24: 0 | I24: 0
B25: implantáty-TEP | C25: 0 | D25: 0 | F25: 0 | G25: 0 | H25: 0 | I25: 0
A26: 4 | B26: Všeobecný materiál | C26: 13 | D26: 5.7715 | F26: 0 | G26: 2.166666667 | H26: 0 | I26: -2.166666667
A27: 5 | B27: Osobní náklady (OsN) | C27: 553 | D27: 197.03729 | F27: 78.89445 | G27: 92.16666667 | H27: 168.28882 | I27: 76.12215333
B28: z toho: hrubé mzdy | C28: 406 | D28: 144.88 | F28: 58.011 | G28: 67.66666667 | H28: 123.742 | I28: 56.07533333
A29: výnosové ukazatele:
A30: 6 | B30: Přímé výnosy (PV) | C30: 7 | D30: 0 | F30: 1.2 | G30: 1.166666667 | H30: 1.2 | I30: 0.03333333333
A31: 7 | B31: Výnosy ZP vč. agreg.V | C31: 0 | D31: 0 | F31: 0 | G31: 0 | H31: 0 | I31: 0
A32: 8 | B32: ZUM, ZUL - limity | C32: 0 | D32: 0 | F32: 0 | G32: =C32/12*MONTH(dat_do) -> 0 | H32: 0 | I32: 0
A33: ostatní ukazatele:
A34: 9 | B34: Body vč.agregovaných výkonů | C34: 0 | D34: 0 | F34: 0 | G34: =C34/12*MONTH(dat_do) -> 0 | H34: 0 | I34: -
A36: Poměrné ukazatale:
A37: 1 | B37: nákladová hodnota bodu-Ncelkem | C37: - | D37: - | F37: - | G37: - | H37: -
A38: 2 | B38: výnosová hodnota bodu - V celkem | C38: - | D38: =D13/D34 ->  | F38: =F13/F34 ->  | G38: =G13/G34 ->  | H38: =H13/H34 -> 
A39: 3 | B39: podíl OsN na celkových nákl. % | C39: =C27/C12% -> 60.04343105 | D39: =D27/D12% -> 85.85451581 | F39: =F27/F12% -> 79.94334668 | G39: =G27/G12% -> 60.04343105 | H39: =H27/H12% -> 80.70683938
A42: Zpracoval: oddělení ekonomických činností

Sheet 47
A1: Pracoviště: 47 Centrální operační sály
A3: =CONCATENATE("Základní ukazatele hospodaření na rok ",YEAR(dat_do)," (v tis.)") -> Základní ukazatele hospodaření na rok 2010 (v tis.)
G6: Vyhodnocení aktuálního období :
H7: =CONCATENATE("1 - ",MONTH(dat_do)," / ",YEAR(dat_do)) -> 1 - 2 / 2010
C8: A | D8: B | F8: C | G8: D | H8: E
C9: Rozpočet | D9: Skutečnost | F9: Skutečnost | G9: Rozpočet | H9: Skutečnost | I9: Rozdíl
C10: (limit) | D10: za | F10: za | G10: za | H10: za | I10: E - D
A11: Souhrnné ukazatele: | C11: =YEAR(dat_do) -> 2010 | D11: =CONCATENATE("1-",MONTH(dat_do),"/",YEAR(dat_do)-1) -> 1-2/2009 | F11: =CONCATENATE(MONTH(dat_do),"/",YEAR(dat_do)) -> 2/2010 | G11: =CONCATENATE("1-",MONTH(dat_do),"/",YEAR(dat_do)) -> 1-2/2010 | H11: =CONCATENATE("1-",MONTH(dat_do),"/",YEAR(dat_do)) -> 1-2/2010
A12: 1 | B12: Náklady celkem (N) | C12: 61669 | D12: 7440.65967 | F12: 5359.10125 | G12: 10278.16667 | H12: 9897.44047 | I12: =H12-G12 -> -380.7261967
A13: 2 | B13: Výnosy celkem (V) | C13: 2371 | D13: -795.89615 | F13: 49.39578 | G13: 395.1666667 | H13: 102.24694 | I13: =H13-G13 -> -292.9197267
A14: 3 | B14: Hospodářský výsledek (HV) | C14: =C13-C12 -> -59298 | D14: =D13-D12 -> -8236.55582 | F14: =F13-F12 -> -5309.70547 | G14: =G13-G12 -> -9883 | H14: =H13-H12 -> -9795.19353
A16: Dílčí sledované ukazatele:
A17: nákladové ukazatele:
A18: 1 | B18: Přímé náklady (PN) | C18: 55439 | D18: 6690.80491 | F18: 4908.53015 | G18: 9239.833333 | H18: 8991.26962 | I18: =H18-G18 -> -248.5637133
A19: 2 | B19: Léky | C19: 703 | D19: 103.17297 | F19: 67.77254 | G19: 117.1666667 | H19: 136.66746 | I19: 19.50079333
B20: z toho: vliv lékové vyhlášky | C20: 0 | D20: 0 | F20: 0 | G20: 0 | H20: 0 | I20: 0
B21: spotřeba center | C21: 0 | D21: 0 | F21: 0 | G21: 0 | H21: 0 | I21: 0
A22: 3 | B22: SZM | C22: 4832 | D22: 885.37013 | F22: 954.64225 | G22: 805.3333333 | H22: 946.41828 | I22: 141.0849467
B23: z toho: implantáty-kardiostim. | C23: 0 | D23: 0 | F23: 0 | G23: 0 | H23: 0 | I23: 0
B24: implantáty-defibrilátory | C24: 0 | D24: 0 | F24: 0 | G24: 0 | H24: 0 | I24: 0
B25: implantáty-TEP | C25: 0 | D25: 0 | F25: 0 | G25: 0 | H25: 0 | I25: 0
A26: 4 | B26: Všeobecný materiál | C26: 581 | D26: 115.22035 | F26: 59.09084 | G26: 96.83333333 | H26: 115.16164 | I26: 18.32830667
A27: 5 | B27: Osobní náklady (OsN) | C27: 19230 | D27: 2486.17158 | F27: 1636.1854 | G27: 3205 | H27: 3351.43023 | I27: 146.43023
B28: z toho: hrubé mzdy | C28: 14139 | D28: 1825.714 | F28: 1201.186 | G28: 2356.5 | H28: 2460.787 | I28: 104.287
A29: výnosové ukazatele:
A30: 6 | B30: Přímé výnosy (PV) | C30: 2371 | D30: -795.89615 | F30: 49.39578 | G30: 395.1666667 | H30: 102.24694 | I30: -292.9197267
A31: 7 | B31: Výnosy ZP vč. agreg.V | C31: 0 | D31: -1127.79453 | F31: 0 | G31: 0 | H31: 52.85116 | I31: 52.85116
A32: 8 | B32: ZUM, ZUL - limity | C32: 0 | D32: 0 | F32: 0 | G32: =C32/12*MONTH(dat_do) -> 0 | H32: 0 | I32: 0
A33: ostatní ukazatele:
A34: 9 | B34: Body vč.agregovaných výkonů | C34: 0 | D34: 0 | F34: 0 | G34: =C34/12*MONTH(dat_do) -> 0 | H34: 0 | I34: -
A36: Poměrné ukazatale:
A37: 1 | B37: nákladová hodnota bodu-Ncelkem | C37: - | D37: - | F37: - | G37: - | H37: -
A38: 2 | B38: výnosová hodnota bodu - V celkem | C38: - | D38: =D13/D34 ->  | F38: =F13/F34 ->  | G38: =G13/G34 ->  | H38: =H13/H34 -> 
A39: 3 | B39: podíl OsN na celkových nákl. % | C39: =C27/C12% -> 31.1826039 | D39: =D27/D12% -> 33.41332207 | F39: =F27/F12% -> 30.53096636 | G39: =G27/G12% -> 31.1826039 | H39: =H27/H12% -> 33.86158513
A42: Zpracoval: oddělení ekonomických činností

Sheet 48
A1: Pracoviště: 48 Lékárna
A3: =CONCATENATE("Základní ukazatele hospodaření na rok ",YEAR(dat_do)," (v tis.)") -> Základní ukazatele hospodaření na rok 2010 (v tis.)
G6: Vyhodnocení aktuálního období :
H7: =CONCATENATE("1 - ",MONTH(dat_do)," / ",YEAR(dat_do)) -> 1 - 2 / 2010
C8: A | D8: B | F8: C | G8: D | H8: E
C9: Rozpočet | D9: Skutečnost | F9: Skutečnost | G9: Rozpočet | H9: Skutečnost | I9: Rozdíl
C10: (limit) | D10: za | F10: za | G10: za | H10: za | I10: E - D
A11: Souhrnné ukazatele: | C11: =YEAR(dat_do) -> 2010 | D11: =CONCATENATE("1-",MONTH(dat_do),"/",YEAR(dat_do)-1) -> 1-2/2009 | F11: =CONCATENATE(MONTH(dat_do),"/",YEAR(dat_do)) -> 2/2010 | G11: =CONCATENATE("1-",MONTH(dat_do),"/",YEAR(dat_do)) -> 1-2/2010 | H11: =CONCATENATE("1-",MONTH(dat_do),"/",YEAR(dat_do)) -> 1-2/2010
A12: 1 | B12: Náklady celkem (N) | C12: 381408 | D12: 59880.61157 | F12: 26466.64162 | G12: 63568 | H12: 53260.61185 | I12: =H12-G12 -> -10307.38815
A13: 2 | B13: Výnosy celkem (V) | C13: 391769 | D13: 75137.55517 | F13: 25278.09987 | G13: 65294.83333 | H13: 51410.10504 | I13: =H13-G13 -> -13884.72829
A14: 3 | B14: Hospodářský výsledek (HV) | C14: =C13-C12 -> 10361 | D14: =D13-D12 -> 15256.9436 | F14: =F13-F12 -> -1188.54175 | G14: =G13-G12 -> 1726.833333 | H14: =H13-H12 -> -1850.50681
A16: Dílčí sledované ukazatele:
A17: nákladové ukazatele:
A18: 1 | B18: Přímé náklady (PN) | C18: 375410 | D18: 59129.22129 | F18: 25881.39329 | G18: 62568.33333 | H18: 52160.2283 | I18: =H18-G18 -> -10408.10503
A19: 2 | B19: Léky | C19: 0 | D19: 0 | F19: 0 | G19: 0 | H19: 15.68143 | I19: 15.68143
B20: z toho: vliv lékové vyhlášky | C20: 0 | D20: 0 | F20: 0 | G20: 0 | H20: 0 | I20: 0
B21: spotřeba center | C21: 0 | D21: 0 | F21: 0 | G21: 0 | H21: 0 | I21: 0
A22: 3 | B22: SZM | C22: 211 | D22: 3.70761 | F22: 64.64644 | G22: 35.16666667 | H22: 71.02804 | I22: 35.86137333
B23: z toho: implantáty-kardiostim. | C23: 0 | D23: 0 | F23: 0 | G23: 0 | H23: 0 | I23: 0
B24: implantáty-defibrilátory | C24: 0 | D24: 0 | F24: 0 | G24: 0 | H24: 0 | I24: 0
B25: implantáty-TEP | C25: 0 | D25: 0 | F25: 0 | G25: 0 | H25: 0 | I25: 0
A26: 4 | B26: Všeobecný materiál | C26: 572 | D26: 181.35624 | F26: 38.34361 | G26: 95.33333333 | H26: 83.85524 | I26: -11.47809333
A27: 5 | B27: Osobní náklady (OsN) | C27: 30796 | D27: 3928.68143 | F27: 3142.83777 | G27: 5132.666667 | H27: 5892.84856 | I27: 760.1818933
B28: z toho: hrubé mzdy | C28: 22645 | D28: 2886.576 | F28: 2310.518 | G28: 3774.166667 | H28: 4329.529 | I28: 555.3623333
A29: výnosové ukazatele:
A30: 6 | B30: Přímé výnosy (PV) | C30: 391769 | D30: 75137.55517 | F30: 25272.09987 | G30: 65294.83333 | H30: 51368.11091 | I30: -13926.72242
A31: 7 | B31: Výnosy ZP vč. agreg.V | C31: 8000 | D31: 0 | F31: 537.66 | G31: 1333.333333 | H31: 976.792 | I31: -356.5413333
A32: 8 | B32: ZUM, ZUL - limity | C32: 0 | D32: 0 | F32: 0 | G32: =C32/12*MONTH(dat_do) -> 0 | H32: 0 | I32: 0
A33: ostatní ukazatele:
A34: 9 | B34: Body vč.agregovaných výkonů | C34: 0 | D34: 0 | F34: 0 | G34: =C34/12*MONTH(dat_do) -> 0 | H34: 0 | I34: -
A36: Poměrné ukazatale:
A37: 1 | B37: nákladová hodnota bodu-Ncelkem | C37: - | D37: - | F37: - | G37: - | H37: -
A38: 2 | B38: výnosová hodnota bodu - V celkem | C38: - | D38: =D13/D34 ->  | F38: =F13/F34 ->  | G38: =G13/G34 ->  | H38: =H13/H34 -> 
A39: 3 | B39: podíl OsN na celkových nákl. % | C39: =C27/C12% -> 8.074293145 | D39: =D27/D12% -> 6.560857224 | F39: =F27/F12% -> 11.87471314 | G39: =G27/G12% -> 8.074293145 | H39: =H27/H12% -> 11.06417736
A42: Zpracoval: oddělení ekonomických činností

Sheet 50
A1: Pracoviště: 50 Kardiochirurgická klinika
A3: =CONCATENATE("Základní ukazatele hospodaření na rok ",YEAR(dat_do)," (v tis.)") -> Základní ukazatele hospodaření na rok 2010 (v tis.)
G6: Vyhodnocení aktuálního období :
H7: =CONCATENATE("1 - ",MONTH(dat_do)," / ",YEAR(dat_do)) -> 1 - 2 / 2010
C8: A | D8: B | F8: C | G8: D | H8: E
C9: Rozpočet | D9: Skutečnost | F9: Skutečnost | G9: Rozpočet | H9: Skutečnost | I9: Rozdíl
C10: (limit) | D10: za | F10: za | G10: za | H10: za | I10: E - D
A11: Souhrnné ukazatele: | C11: =YEAR(dat_do) -> 2010 | D11: =CONCATENATE("1-",MONTH(dat_do),"/",YEAR(dat_do)-1) -> 1-2/2009 | F11: =CONCATENATE(MONTH(dat_do),"/",YEAR(dat_do)) -> 2/2010 | G11: =CONCATENATE("1-",MONTH(dat_do),"/",YEAR(dat_do)) -> 1-2/2010 | H11: =CONCATENATE("1-",MONTH(dat_do),"/",YEAR(dat_do)) -> 1-2/2010
A12: 1 | B12: Náklady celkem (N) | C12: 147677 | D12: 21449.26965 | F12: 13572.22209 | G12: 24612.83333 | H12: 27068.01096 | I12: =H12-G12 -> 2455.177627
A13: 2 | B13: Výnosy celkem (V) | C13: 166378 | D13: 26043.92644 | F13: 11630.2157 | G13: 27729.66667 | H13: 23398.52977 | I13: =H13-G13 -> -4331.136897
A14: 3 | B14: Hospodářský výsledek (HV) | C14: =C13-C12 -> 18701 | D14: =D13-D12 -> 4594.65679 | F14: =F13-F12 -> -1942.00639 | G14: =G13-G12 -> 3116.833333 | H14: =H13-H12 -> -3669.48119
A16: Dílčí sledované ukazatele:
A17: nákladové ukazatele:
A18: 1 | B18: Přímé náklady (PN) | C18: 138395 | D18: 19963.76657 | F18: 12707.4717 | G18: 23065.83333 | H18: 25369.75177 | I18: =H18-G18 -> 2303.918437
A19: 2 | B19: Léky | C19: 9184 | D19: 1330.45462 | F19: 1368.72525 | G19: 1530.666667 | H19: 2091.07358 | I19: 560.4069133
B20: z toho: vliv lékové vyhlášky | C20: 0 | D20: 0 | F20: 0 | G20: 0 | H20: 0 | I20: =H20-G20 -> 0
B21: spotřeba center | C21: 0 | D21: 0 | F21: 0 | G21: 0 | H21: 0 | I21: =H21-G21 -> 0
A22: 3 | B22: SZM | C22: 38666 | D22: 4973.85516 | F22: 3195.16432 | G22: 6444.333333 | H22: 7065.83817 | I22: 621.5048367
B23: z toho: implantáty-kardiostim. | C23: 83 | D23: 46.99971 | F23: 0 | G23: 13.83333333 | H23: 0 | I23: -13.83333333
B24: implantáty-defibrilátory | C24: 0 | D24: 0 | F24: 0 | G24: 0 | H24: 0 | I24: 0
B25: implantáty-TEP | C25: 0 | D25: 0 | F25: 0 | G25: 0 | H25: 0 | I25: 0
A26: 4 | B26: Všeobecný materiál | C26: 973 | D26: 135.9606 | F26: 203.0697 | G26: 162.1666667 | H26: 309.61444 | I26: 147.4477733
A27: 5 | B27: Osobní náklady (OsN) | C27: 59860 | D27: 9351.43497 | F27: 5151.27421 | G27: 9976.666667 | H27: 10429.78478 | I27: 453.1181133
B28: z toho: hrubé mzdy | C28: 44013 | D28: 6871.437 | F28: 3783.289 | G28: 7335.5 | H28: 7664.128 | I28: 328.628
A29: výnosové ukazatele:
A30: 6 | B30: Přímé výnosy (PV) | C30: 168057 | D30: 26049.78746 | F30: 11746.42192 | G30: 28009.5 | H30: 23636.07437 | I30: -4373.42563
A31: 7 | B31: Výnosy ZP vč. agreg.V | C31: 164530 | D31: 25845.81296 | F31: 11352.74326 | G31: 27421.66667 | H31: 23084.28333 | I31: -4337.383337
A32: 8 | B32: ZUM, ZUL - limity | C32: 42165.814 | D32: 4565.88876 | F32: 4162.45025 | G32: =C32/12*MONTH(dat_do) -> 7027.635667 | H32: 6615.43487 | I32: -412.2007967
A33: ostatní ukazatele:
A34: 9 | B34: Body vč.agregovaných výkonů | C34: 138463.821 | D34: 17409.119 | F34: 10214.62 | G34: =C34/12*MONTH(dat_do) -> 23077.3035 | H34: 16547.423 | I34: -6529.8805
A36: Poměrné ukazatale:
A37: 1 | B37: nákladová hodnota bodu-Ncelkem | C37: =C12/C34 -> 1.066538529 | D37: =D12/D34 -> 1.232070942 | F37: =F12/F34 -> 1.328705531 | G37: =G12/G34 -> 1.066538529 | H37: =H12/H34 -> 1.635784071
A38: 2 | B38: výnosová hodnota bodu - V celkem | C38: =C18/C34 -> 0.9995029676 | D38: =D13/D34 -> 1.495993361 | F38: =F13/F34 -> 1.138585253 | G38: =G13/G34 -> 1.201599081 | H38: =H13/H34 -> 1.414028624
A39: 3 | B39: podíl OsN na celkových nákl. % | C39: =C27/C12% -> 40.53440956 | D39: =D27/D12% -> 43.59791789 | F39: =F27/F12% -> 37.95453814 | G39: =G27/G12% -> 40.53440956 | H39: =H27/H12% -> 38.53177389
A42: Zpracoval: oddělení ekonomických činností

Sheet 53
A1: Pracoviště: 53 Oddělení lékařské fyziky a radiační ochrany
A3: =CONCATENATE("Základní ukazatele hospodaření na rok ",YEAR(dat_do)," (v tis.)") -> Základní ukazatele hospodaření na rok 2010 (v tis.)
G6: Vyhodnocení aktuálního období :
H7: =CONCATENATE("1 - ",MONTH(dat_do)," / ",YEAR(dat_do)) -> 1 - 2 / 2010
C8: A | D8: B | F8: C | G8: D | H8: E
C9: Rozpočet | D9: Skutečnost | F9: Skutečnost | G9: Rozpočet | H9: Skutečnost | I9: Rozdíl
C10: (limit) | D10: za | F10: za | G10: za | H10: za | I10: E - D
A11: Souhrnné ukazatele: | C11: =YEAR(dat_do) -> 2010 | D11: =CONCATENATE("1-",MONTH(dat_do),"/",YEAR(dat_do)-1) -> 1-2/2009 | F11: =CONCATENATE(MONTH(dat_do),"/",YEAR(dat_do)) -> 2/2010 | G11: =CONCATENATE("1-",MONTH(dat_do),"/",YEAR(dat_do)) -> 1-2/2010 | H11: =CONCATENATE("1-",MONTH(dat_do),"/",YEAR(dat_do)) -> 1-2/2010
A12: 1 | B12: Náklady celkem (N) | C12: 5525 | D12: 771.56208 | F12: 493.46081 | G12: 920.8333333 | H12: 983.53229 | I12: =H12-G12 -> 62.69895667
A13: 2 | B13: Výnosy celkem (V) | C13: 54 | D13: 0.187 | F13: 0.031 | G13: 9 | H13: 0.123 | I13: =H13-G13 -> -8.877
A14: 3 | B14: Hospodářský výsledek (HV) | C14: =C13-C12 -> -5471 | D14: =D13-D12 -> -771.37508 | F14: =F13-F12 -> -493.42981 | G14: =G13-G12 -> -911.8333333 | H14: =H13-H12 -> -983.40929
A16: Dílčí sledované ukazatele:
A17: nákladové ukazatele:
A18: 1 | B18: Přímé náklady (PN) | C18: 4788 | D18: 640.83526 | F18: 423.06355 | G18: 798 | H18: 845.61432 | I18: =H18-G18 -> 47.61432
A19: 2 | B19: Léky | C19: 0 | D19: 0 | F19: 0 | G19: 0 | H19: 0 | I19: 0
B20: z toho: vliv lékové vyhlášky | C20: 0 | D20: 0 | F20: 0 | G20: 0 | H20: 0 | I20: 0
B21: spotřeba center | C21: 0 | D21: 0 | F21: 0 | G21: 0 | H21: 0 | I21: 0
A22: 3 | B22: SZM | C22: 0 | D22: 0 | F22: 0 | G22: 0 | H22: 0 | I22: 0
B23: z toho: implantáty-kardiostim. | C23: 0 | D23: 0 | F23: 0 | G23: 0 | H23: 0 | I23: 0
B24: implantáty-defibrilátory | C24: 0 | D24: 0 | F24: 0 | G24: 0 | H24: 0 | I24: 0
B25: implantáty-TEP | C25: 0 | D25: 0 | F25: 0 | G25: 0 | H25: 0 | I25: 0
A26: 4 | B26: Všeobecný materiál | C26: 9 | D26: 1.78952 | F26: 0.07 | G26: 1.5 | H26: 0.56624 | I26: -0.93376
A27: 5 | B27: Osobní náklady (OsN) | C27: 4612 | D27: 617.26925 | F27: 412.62963 | G27: 768.6666667 | H27: 824.55071 | I27: 55.88404333
B28: z toho: hrubé mzdy | C28: 3391 | D28: 453.876 | F28: 303.403 | G28: 565.1666667 | H28: 606.286 | I28: 41.11933333
A29: výnosové ukazatele:
A30: 6 | B30: Přímé výnosy (PV) | C30: 54 | D30: 0.187 | F30: 0.031 | G30: 9 | H30: 0.123 | I30: -8.877
A31: 7 | B31: Výnosy ZP vč. agreg.V | C31: 0 | D31: 0 | F31: 0 | G31: 0 | H31: 0 | I31: 0
A32: 8 | B32: ZUM, ZUL - limity | C32: 0 | D32: 0 | F32: 0 | G32: =C32/12*MONTH(dat_do) -> 0 | H32: 0 | I32: 0
A33: ostatní ukazatele:
A34: 9 | B34: Body vč.agregovaných výkonů | C34: 0 | D34: 0 | F34: 0 | G34: =C34/12*MONTH(dat_do) -> 0 | H34: 0 | I34: -
A36: Poměrné ukazatale:
A37: 1 | B37: nákladová hodnota bodu-Ncelkem | C37: - | D37: - | F37: - | G37: - | H37: -
A38: 2 | B38: výnosová hodnota bodu - V celkem | C38: - | D38: =D13/D34 ->  | F38: =F13/F34 ->  | G38: =G13/G34 ->  | H38: =H13/H34 -> 
A39: 3 | B39: podíl OsN na celkových nákl. % | C39: =C27/C12% -> 83.47511312 | D39: =D27/D12% -> 80.00253849 | F39: =F27/F12% -> 83.61953404 | G39: =G27/G12% -> 83.47511312 | H39: =H27/H12% -> 83.83565221
A42: Zpracoval: oddělení ekonomických činností

Sheet 56
A1: Pracoviště: 56 Oddělení centrální sterilizace
A3: =CONCATENATE("Základní ukazatele hospodaření na rok ",YEAR(dat_do)," (v tis.)") -> Základní ukazatele hospodaření na rok 2010 (v tis.)
G6: Vyhodnocení aktuálního období :
H7: =CONCATENATE("1 - ",MONTH(dat_do)," / ",YEAR(dat_do)) -> 1 - 2 / 2010
C8: A | D8: B | F8: C | G8: D | H8: E
C9: Rozpočet | D9: Skutečnost | F9: Skutečnost | G9: Rozpočet | H9: Skutečnost | I9: Rozdíl
C10: (limit) | D10: za | F10: za | G10: za | H10: za | I10: E - D
A11: Souhrnné ukazatele: | C11: =YEAR(dat_do) -> 2010 | D11: =CONCATENATE("1-",MONTH(dat_do),"/",YEAR(dat_do)-1) -> 1-2/2009 | F11: =CONCATENATE(MONTH(dat_do),"/",YEAR(dat_do)) -> 2/2010 | G11: =CONCATENATE("1-",MONTH(dat_do),"/",YEAR(dat_do)) -> 1-2/2010 | H11: =CONCATENATE("1-",MONTH(dat_do),"/",YEAR(dat_do)) -> 1-2/2010
A12: 1 | B12: Náklady celkem (N) | C12: 22689 | D12: 3608.66948 | F12: 1894.97794 | G12: 3781.5 | H12: 3887.1647 | I12: =H12-G12 -> 105.6647
A13: 2 | B13: Výnosy celkem (V) | C13: 525 | D13: 43.23862 | F13: 111.2395 | G13: 87.5 | H13: 113.88234 | I13: =H13-G13 -> 26.38234
A14: 3 | B14: Hospodářský výsledek (HV) | C14: =C13-C12 -> -22164 | D14: =D13-D12 -> -3565.43086 | F14: =F13-F12 -> -1783.73844 | G14: =G13-G12 -> -3694 | H14: =H13-H12 -> -3773.28236
A16: Dílčí sledované ukazatele:
A17: nákladové ukazatele:
A18: 1 | B18: Přímé náklady (PN) | C18: 21052 | D18: 3345.37495 | F18: 1751.83262 | G18: 3508.666667 | H18: 3601.30565 | I18: =H18-G18 -> 92.63898333
A19: 2 | B19: Léky | C19: 64 | D19: 8.38374 | F19: 5.94026 | G19: 10.66666667 | H19: 8.55992 | I19: -2.106746667
B20: z toho: vliv lékové vyhlášky | C20: 0 | D20: 0 | F20: 0 | G20: 0 | H20: 0 | I20: 0
B21: spotřeba center | C21: 0 | D21: 0 | F21: 0 | G21: 0 | H21: 0 | I21: 0
A22: 3 | B22: SZM | C22: 11 | D22: 2.5576 | F22: 3.76 | G22: 1.833333333 | H22: 3.76 | I22: 1.926666667
B23: z toho: implantáty-kardiostim. | C23: 0 | D23: 0 | F23: 0 | G23: 0 | H23: 0 | I23: 0
B24: implantáty-defibrilátory | C24: 0 | D24: 0 | F24: 0 | G24: 0 | H24: 0 | I24: 0
B25: implantáty-TEP | C25: 0 | D25: 0 | F25: 0 | G25: 0 | H25: 0 | I25: 0
A26: 4 | B26: Všeobecný materiál | C26: 2157 | D26: 359.56497 | F26: 174.80568 | G26: 359.5 | H26: 393.9133 | I26: 34.4133
A27: 5 | B27: Osobní náklady (OsN) | C27: 9107 | D27: 1351.65923 | F27: 764.29828 | G27: 1517.833333 | H27: 1565.08795 | I27: 47.25461667
B28: z toho: hrubé mzdy | C28: 6696 | D28: 989.267 | F28: 558.838 | G28: 1116 | H28: 1147.654 | I28: 31.654
A29: výnosové ukazatele:
A30: 6 | B30: Přímé výnosy (PV) | C30: 525 | D30: 43.23862 | F30: 111.2395 | G30: 87.5 | H30: 113.88234 | I30: 26.38234
A31: 7 | B31: Výnosy ZP vč. agreg.V | C31: 0 | D31: 0 | F31: 0 | G31: 0 | H31: 0 | I31: 0
A32: 8 | B32: ZUM, ZUL - limity | C32: 0 | D32: 0 | F32: 0 | G32: =C32/12*MONTH(dat_do) -> 0 | H32: 0 | I32: 0
A33: ostatní ukazatele:
A34: 9 | B34: Body vč.agregovaných výkonů | C34: 0 | D34: 0 | F34: 0 | G34: =C34/12*MONTH(dat_do) -> 0 | H34: 0 | I34: -
A36: Poměrné ukazatale:
A37: 1 | B37: nákladová hodnota bodu-Ncelkem | C37: - | D37: - | F37: - | G37: - | H37: -
A38: 2 | B38: výnosová hodnota bodu - V celkem | C38: - | D38: =D13/D34 ->  | F38: =F13/F34 ->  | G38: =G13/G34 ->  | H38: =H13/H34 -> 
A39: 3 | B39: podíl OsN na celkových nákl. % | C39: =C27/C12% -> 40.13839305 | D39: =D27/D12% -> 37.45588887 | F39: =F27/F12% -> 40.33283258 | G39: =G27/G12% -> 40.13839305 | H39: =H27/H12% -> 40.26296982
A42: Zpracoval: oddělení ekonomických činností

Sheet 58
A1: Pracoviště: 58 Závodní preventivní péče
A3: =CONCATENATE("Základní ukazatele hospodaření na rok ",YEAR(dat_do)," (v tis.)") -> Základní ukazatele hospodaření na rok 2010 (v tis.)
G6: Vyhodnocení aktuálního období :
H7: =CONCATENATE("1 - ",MONTH(dat_do)," / ",YEAR(dat_do)) -> 1 - 2 / 2010
C8: A | D8: B | F8: C | G8: D | H8: E
C9: Rozpočet | D9: Skutečnost | F9: Skutečnost | G9: Rozpočet | H9: Skutečnost | I9: Rozdíl
C10: (limit) | D10: za | F10: za | G10: za | H10: za | I10: E - D
A11: Souhrnné ukazatele: | C11: =YEAR(dat_do) -> 2010 | D11: =CONCATENATE("1-",MONTH(dat_do),"/",YEAR(dat_do)-1) -> 1-2/2009 | F11: =CONCATENATE(MONTH(dat_do),"/",YEAR(dat_do)) -> 2/2010 | G11: =CONCATENATE("1-",MONTH(dat_do),"/",YEAR(dat_do)) -> 1-2/2010 | H11: =CONCATENATE("1-",MONTH(dat_do),"/",YEAR(dat_do)) -> 1-2/2010
A12: 1 | B12: Náklady celkem (N) | C12: 0 | D12: 0 | F12: 0 | G12: 0 | H12: 0 | I12: =H12-G12 -> 0
A13: 2 | B13: Výnosy celkem (V) | C13: 0 | D13: 0 | F13: 0 | G13: 0 | H13: 0 | I13: =H13-G13 -> 0
A14: 3 | B14: Hospodářský výsledek (HV) | C14: =C13-C12 -> 0 | D14: =D13-D12 -> 0 | F14: =F13-F12 -> 0 | G14: =G13-G12 -> 0 | H14: =H13-H12 -> 0
A16: Dílčí sledované ukazatele:
A17: nákladové ukazatele:
A18: 1 | B18: Přímé náklady (PN) | C18: 0 | D18: 0 | F18: 0 | G18: 0 | H18: 0 | I18: =H18-G18 -> 0
A19: 2 | B19: Léky | C19: 0 | D19: 0 | F19: 0 | G19: 0 | H19: 0 | I19: 0
B20: z toho: vliv lékové vyhlášky | C20: 0 | D20: 0 | F20: 0 | G20: 0 | H20: 0 | I20: =H20-G20 -> 0
B21: spotřeba center | C21: 0 | D21: 0 | F21: 0 | G21: 0 | H21: 0 | I21: =H21-G21 -> 0
A22: 3 | B22: SZM | C22: 0 | D22: 0 | F22: 0 | G22: 0 | H22: 0 | I22: 0
B23: z toho: implantáty-kardiostim. | C23: 0 | D23: 0 | F23: 0 | G23: 0 | H23: 0 | I23: 0
B24: implantáty-defibrilátory | C24: 0 | D24: 0 | F24: 0 | G24: 0 | H24: 0 | I24: 0
B25: implantáty-TEP | C25: 0 | D25: 0 | F25: 0 | G25: 0 | H25: 0 | I25: 0
A26: 4 | B26: Všeobecný materiál | C26: 0 | D26: 0 | F26: 0 | G26: 0 | H26: 0 | I26: 0
A27: 5 | B27: Osobní náklady (OsN) | C27: 0 | D27: 0 | F27: 0 | G27: 0 | H27: 0 | I27: 0
B28: z toho: hrubé mzdy | C28: 0 | D28: 0 | F28: 0 | G28: 0 | H28: 0 | I28: 0
A29: výnosové ukazatele:
A30: 6 | B30: Přímé výnosy (PV) | C30: 0 | D30: 0 | F30: 0 | G30: 0 | H30: 0 | I30: 0
A31: 7 | B31: Výnosy ZP vč. agreg.V | C31: 0 | D31: 0 | F31: 0 | G31: 0 | H31: 0 | I31: 0
A32: 8 | B32: ZUM, ZUL - limity | C32: 0 | D32: 0 | F32: 0 | G32: =C32/12*MONTH(dat_do) -> 0 | H32: 0 | I32: 0
A33: ostatní ukazatele:
A34: 9 | B34: Body vč.agregovaných výkonů | C34: 0 | D34: 0 | F34: 0 | G34: =C34/12*MONTH(dat_do) -> 0 | H34: 0 | I34: 0
A36: Poměrné ukazatale:
A37: 1 | B37: nákladová hodnota bodu-Ncelkem | C37: =C12/C34 ->  | D37: =D12/D34 ->  | F37: =F12/F34 ->  | G37: =G12/G34 ->  | H37: =H12/H34 -> 
A38: 2 | B38: výnosová hodnota bodu - V celkem | C38: =C18/C34 ->  | D38: =D13/D34 ->  | F38: =F13/F34 ->  | G38: =G13/G34 ->  | H38: =H13/H34 -> 
A39: 3 | B39: podíl OsN na celkových nákl. % | C39: =C27/C12% ->  | D39: =D27/D12% ->  | F39: =F27/F12% ->  | G39: =G27/G12% ->  | H39: =H27/H12% -> 
A42: Zpracoval: oddělení ekonomických činností

Sheet 59
A1: Pracoviště: 59 Oddělení int. Péče chir. Oborů
A3: =CONCATENATE("Základní ukazatele hospodaření na rok ",YEAR(dat_do)," (v tis.)") -> Základní ukazatele hospodaření na rok 2010 (v tis.)
G6: Vyhodnocení aktuálního období :
H7: =CONCATENATE("1 - ",MONTH(dat_do)," / ",YEAR(dat_do)) -> 1 - 2 / 2010
C8: A | D8: B | F8: C | G8: D | H8: E
C9: Rozpočet | D9: Skutečnost | F9: Skutečnost | G9: Rozpočet | H9: Skutečnost | I9: Rozdíl
C10: (limit) | D10: za | F10: za | G10: za | H10: za | I10: E - D
A11: Souhrnné ukazatele: | C11: =YEAR(dat_do) -> 2010 | D11: =CONCATENATE("1-",MONTH(dat_do),"/",YEAR(dat_do)-1) -> 1-2/2009 | F11: =CONCATENATE(MONTH(dat_do),"/",YEAR(dat_do)) -> 2/2010 | G11: =CONCATENATE("1-",MONTH(dat_do),"/",YEAR(dat_do)) -> 1-2/2010 | H11: =CONCATENATE("1-",MONTH(dat_do),"/",YEAR(dat_do)) -> 1-2/2010
A12: 1 | B12: Náklady celkem (N) | C12: 41246 | D12: 6767.87574 | F12: 3361.37862 | G12: 6874.333333 | H12: 7248.34943 | I12: =H12-G12 -> 374.0160967
A13: 2 | B13: Výnosy celkem (V) | C13: 47960 | D13: 10676.91261 | F13: 2919.56006 | G13: 7993.333333 | H13: 6629.81269 | I13: =H13-G13 -> -1363.520643
A14: 3 | B14: Hospodářský výsledek (HV) | C14: =C13-C12 -> 6714 | D14: =D13-D12 -> 3909.03687 | F14: =F13-F12 -> -441.81856 | G14: =G13-G12 -> 1119 | H14: =H13-H12 -> -618.53674
A16: Dílčí sledované ukazatele:
A17: nákladové ukazatele:
A18: 1 | B18: Přímé náklady (PN) | C18: 38019 | D18: 6361.10686 | F18: 3058.17429 | G18: 6336.5 | H18: 6639.31808 | I18: =H18-G18 -> 302.81808
A19: 2 | B19: Léky | C19: 6334 | D19: 1339.11795 | F19: 409.01625 | G19: 1055.666667 | H19: 1103.65138 | I19: 47.98471333
B20: z toho: vliv lékové vyhlášky | C20: 0 | D20: 0 | F20: 0 | G20: 0 | H20: 0 | I20: =H20-G20 -> 0
B21: spotřeba center | C21: 0 | D21: 0 | F21: 0 | G21: 0 | H21: 0 | I21: =H21-G21 -> 0
A22: 3 | B22: SZM | C22: 2857 | D22: 542.65233 | F22: 289.45277 | G22: 476.1666667 | H22: 565.57575 | I22: 89.40908333
B23: z toho: implantáty-kardiostim. | C23: 0 | D23: 0 | F23: 0 | G23: 0 | H23: 0 | I23: 0
B24: implantáty-defibrilátory | C24: 0 | D24: 0 | F24: 0 | G24: 0 | H24: 0 | I24: 0
B25: implantáty-TEP | C25: 0 | D25: 0 | F25: 0 | G25: 0 | H25: 0 | I25: 0
A26: 4 | B26: Všeobecný materiál | C26: 313 | D26: 37.77104 | F26: 18.62059 | G26: 52.16666667 | H26: 43.65138 | I26: -8.515286667
A27: 5 | B27: Osobní náklady (OsN) | C27: 20797 | D27: 3115.39102 | F27: 1811.87576 | G27: 3466.166667 | H27: 3737.84646 | I27: 271.6797933
B28: z toho: hrubé mzdy | C28: 15292 | D28: 2287.187 | F28: 1328.592 | G28: 2548.666667 | H28: 2738.708 | I28: 190.0413333
A29: výnosové ukazatele:
A30: 6 | B30: Přímé výnosy (PV) | C30: 48948 | D30: 10808.33611 | F30: 2981.42597 | G30: 8158 | H30: 6789.75617 | I30: -1368.24383
A31: 7 | B31: Výnosy ZP vč. agreg.V | C31: 47536 | D31: 10646.2774 | F31: 2861.16004 | G31: 7922.666667 | H31: 6571.16767 | I31: -1351.498997
A32: 8 | B32: ZUM, ZUL - limity | C32: 4559.163 | D32: 878.86816 | F32: 342.8551 | G32: =C32/12*MONTH(dat_do) -> 759.8605 | H32: 771.85398 | I32: 11.99348
A33: ostatní ukazatele:
A34: 9 | B34: Body vč.agregovaných výkonů | C34: 48615.601 | D34: 8478.627 | F34: 3612.711 | G34: =C34/12*MONTH(dat_do) -> 8102.600167 | H34: 6692.911 | I34: -1409.689167
A36: Poměrné ukazatale:
A37: 1 | B37: nákladová hodnota bodu-Ncelkem | C37: =C12/C34 -> 0.8484107807 | D37: =D12/D34 -> 0.7982277956 | F37: =F12/F34 -> 0.9304310862 | G37: =G12/G34 -> 0.8484107807 | H37: =H12/H34 -> 1.082989066
A38: 2 | B38: výnosová hodnota bodu - V celkem | C38: =C18/C34 -> 0.7820329116 | D38: =D13/D34 -> 1.259273773 | F38: =F13/F34 -> 0.8081355137 | G38: =G13/G34 -> 0.9865145964 | H38: =H13/H34 -> 0.9905723668
A39: 3 | B39: podíl OsN na celkových nákl. % | C39: =C27/C12% -> 50.42185909 | D39: =D27/D12% -> 46.03203634 | F39: =F27/F12% -> 53.90275732 | G39: =G27/G12% -> 50.42185909 | H39: =H27/H12% -> 51.56824317
A42: Zpracoval: oddělení ekonomických činností

Sheet 60
A1: Pracoviště: 60 Oddělení urgentního příjmu
A3: =CONCATENATE("Základní ukazatele hospodaření na rok ",YEAR(dat_do)," (v tis.)") -> Základní ukazatele hospodaření na rok 2010 (v tis.)
G6: Vyhodnocení aktuálního období :
H7: =CONCATENATE("1 - ",MONTH(dat_do)," / ",YEAR(dat_do)) -> 1 - 2 / 2010
C8: A | D8: B | F8: C | G8: D | H8: E
C9: Rozpočet | D9: Skutečnost | F9: Skutečnost | G9: Rozpočet | H9: Skutečnost | I9: Rozdíl
C10: (limit) | D10: za | F10: za | G10: za | H10: za | I10: E - D
A11: Souhrnné ukazatele: | C11: =YEAR(dat_do) -> 2010 | D11: =CONCATENATE("1-",MONTH(dat_do),"/",YEAR(dat_do)-1) -> 1-2/2009 | F11: =CONCATENATE(MONTH(dat_do),"/",YEAR(dat_do)) -> 2/2010 | G11: =CONCATENATE("1-",MONTH(dat_do),"/",YEAR(dat_do)) -> 1-2/2010 | H11: =CONCATENATE("1-",MONTH(dat_do),"/",YEAR(dat_do)) -> 1-2/2010
A12: 1 | B12: Náklady celkem (N) | C12: 53377 | D12: 7379.04154 | F12: 5689.58128 | G12: 8896.166667 | H12: 9880.35266 | I12: =H12-G12 -> 984.1859933
A13: 2 | B13: Výnosy celkem (V) | C13: 17231 | D13: 2401.76722 | F13: 1378.24949 | G13: 2871.833333 | H13: 2426.78282 | I13: =H13-G13 -> -445.0505133
A14: 3 | B14: Hospodářský výsledek (HV) | C14: =C13-C12 -> -36146 | D14: =D13-D12 -> -4977.27432 | F14: =F13-F12 -> -4311.33179 | G14: =G13-G12 -> -6024.333333 | H14: =H13-H12 -> -7453.56984
A16: Dílčí sledované ukazatele:
A17: nákladové ukazatele:
A18: 1 | B18: Přímé náklady (PN) | C18: 47745 | D18: 6407.21522 | F18: 5126.0359 | G18: 7957.5 | H18: 8814.69886 | I18: =H18-G18 -> 857.19886
A19: 2 | B19: Léky | C19: 1703 | D19: 210.24577 | F19: 155.80765 | G19: 283.8333333 | H19: 241.77285 | I19: -42.06048333
B20: z toho: vliv lékové vyhlášky | C20: 0 | D20: 0 | F20: 0 | G20: 0 | H20: 0 | I20: 0
B21: spotřeba center | C21: 0 | D21: 0 | F21: 0 | G21: 0 | H21: 0 | I21: 0
A22: 3 | B22: SZM | C22: 2297 | D22: 305.53867 | F22: 215.16548 | G22: 382.8333333 | H22: 368.4941 | I22: -14.33923333
B23: z toho: implantáty-kardiostim. | C23: 0 | D23: 0 | F23: 0 | G23: 0 | H23: 0 | I23: 0
B24: implantáty-defibrilátory | C24: 0 | D24: 0 | F24: 0 | G24: 0 | H24: 0 | I24: 0
B25: implantáty-TEP | C25: 0 | D25: 0 | F25: 0 | G25: 0 | H25: 0 | I25: 0
A26: 4 | B26: Všeobecný materiál | C26: 685 | D26: 73.86537 | F26: 146.47828 | G26: 114.1666667 | H26: 198.94915 | I26: 84.78248333
A27: 5 | B27: Osobní náklady (OsN) | C27: 37318 | D27: 5084.5428 | F27: 3333.47518 | G27: 6219.666667 | H27: 6283.85631 | I27: 64.18964333
B28: z toho: hrubé mzdy | C28: 27438 | D28: 3745.175 | F28: 2451.123 | G28: 4573 | H28: 4624.499 | I28: 51.499
A29: výnosové ukazatele:
A30: 6 | B30: Přímé výnosy (PV) | C30: 16239 | D30: 2304.5662 | F30: 1304.84667 | G30: 2706.5 | H30: 2268.74815 | I30: -437.75185
A31: 7 | B31: Výnosy ZP vč. agreg.V | C31: 15868 | D31: 2333.16118 | F31: 1260.36367 | G31: 2644.666667 | H31: 2304.85172 | I31: -339.8149467
A32: 8 | B32: ZUM, ZUL - limity | C32: 806.542 | D32: 124.88675 | F32: 264.14301 | G32: =C32/12*MONTH(dat_do) -> 134.4236667 | H32: 283.14151 | I32: 148.7178433
A33: ostatní ukazatele:
A34: 9 | B34: Body vč.agregovaných výkonů | C34: 13600.463 | D34: 2447.155 | F34: 1432.567 | G34: =C34/12*MONTH(dat_do) -> 2266.743833 | H34: 2586.855 | I34: =H34-G34 -> 320.1111667
A36: Poměrné ukazatale:
A37: 1 | B37: nákladová hodnota bodu-Ncelkem | C37: =C12/C34 -> 3.924645801 | D37: =D12/D34 -> 3.015355194 | F37: =F12/F34 -> 3.971598732 | G37: =G12/G34 -> 3.924645801 | H37: =H12/H34 -> 3.819445875
A38: 2 | B38: výnosová hodnota bodu - V celkem | C38: =C18/C34 -> 3.510542251 | D38: =D13/D34 -> 0.9814528381 | F38: =F13/F34 -> 0.9620837908 | G38: =G13/G34 -> 1.266942162 | H38: =H13/H34 -> 0.9381209306
A39: 3 | B39: podíl OsN na celkových nákl. % | C39: =C27/C12% -> 69.91400791 | D39: =D27/D12% -> 68.9051928 | F39: =F27/F12% -> 58.58911255 | G39: =G27/G12% -> 69.91400791 | H39: =H27/H12% -> 63.59951437
A42: Zpracoval: oddělení ekonomických činností

Sheet 61
A1: Pracoviště: 61 Centrum očkování
A3: =CONCATENATE("Základní ukazatele hospodaření na rok ",YEAR(dat_do)," (v tis.)") -> Základní ukazatele hospodaření na rok 2010 (v tis.)
G6: Vyhodnocení aktuálního období :
H7: =CONCATENATE("1 - ",MONTH(dat_do)," / ",YEAR(dat_do)) -> 1 - 2 / 2010
C8: A | D8: B | F8: C | G8: D | H8: E
C9: Rozpočet | D9: Skutečnost | F9: Skutečnost | G9: Rozpočet | H9: Skutečnost | I9: Rozdíl
C10: (limit) | D10: za | F10: za | G10: za | H10: za | I10: E - D
A11: Souhrnné ukazatele: | C11: =YEAR(dat_do) -> 2010 | D11: =CONCATENATE("1-",MONTH(dat_do),"/",YEAR(dat_do)-1) -> 1-2/2009 | F11: =CONCATENATE(MONTH(dat_do),"/",YEAR(dat_do)) -> 2/2010 | G11: =CONCATENATE("1-",MONTH(dat_do),"/",YEAR(dat_do)) -> 1-2/2010 | H11: =CONCATENATE("1-",MONTH(dat_do),"/",YEAR(dat_do)) -> 1-2/2010
A12: 1 | B12: Náklady celkem (N) | C12: 987 | D12: 0 | F12: 53.3097 | G12: 164.5 | H12: 108.53035 | I12: =H12-G12 -> -55.96965
A13: 2 | B13: Výnosy celkem (V) | C13: 628 | D13: 0 | F13: 42.53029 | G13: 104.6666667 | H13: 83.26942 | I13: =H13-G13 -> -21.39724667
A14: 3 | B14: Hospodářský výsledek (HV) | C14: =C13-C12 -> -359 | D14: =D13-D12 -> 0 | F14: =F13-F12 -> -10.77941 | G14: =G13-G12 -> -59.83333333 | H14: =H13-H12 -> -25.26093
A16: Dílčí sledované ukazatele:
A17: nákladové ukazatele:
A18: 1 | B18: Přímé náklady (PN) | C18: 961 | D18: 0 | F18: 48.5272 | G18: 160.1666667 | H18: 99.03284 | I18: =H18-G18 -> -61.13382667
A19: 2 | B19: Léky | C19: 614 | D19: 0 | F19: 0.61622 | G19: 102.3333333 | H19: 0.61622 | I19: -101.7171133
B20: z toho: vliv lékové vyhlášky | C20: 0 | D20: 0 | F20: 0 | G20: 0 | H20: 0 | I20: 0
B21: spotřeba center | C21: 0 | D21: 0 | F21: 0 | G21: 0 | H21: 0 | I21: 0
A22: 3 | B22: SZM | C22: 4 | D22: 0 | F22: 0.12369 | G22: 0.6666666667 | H22: 0.17319 | I22: -0.4934766667
B23: z toho: implantáty-kardiostim. | C23: 0 | D23: 0 | F23: 0 | G23: 0 | H23: 0 | I23: 0
B24: implantáty-defibrilátory | C24: 0 | D24: 0 | F24: 0 | G24: 0 | H24: 0 | I24: 0
B25: implantáty-TEP | C25: 0 | D25: 0 | F25: 0 | G25: 0 | H25: 0 | I25: 0
A26: 4 | B26: Všeobecný materiál | C26: 30 | D26: 0 | F26: 0.275 | G26: 5 | H26: 0.86 | I26: -4.14
A27: 5 | B27: Osobní náklady (OsN) | C27: 227 | D27: 0 | F27: 38.29132 | G27: 37.83333333 | H27: 77.79338 | I27: 39.96004667
B28: z toho: hrubé mzdy | C28: 167 | D28: 0 | F28: 28.155 | G28: 27.83333333 | H28: 57.201 | I28: 29.36766667
A29: výnosové ukazatele:
A30: 6 | B30: Přímé výnosy (PV) | C30: 628 | D30: 0 | F30: 42.53029 | G30: 104.6666667 | H30: 83.26942 | I30: =H30-G30 -> -21.39724667
A31: 7 | B31: Výnosy ZP vč. agreg.V | C31: 0 | D31: 0 | F31: 0 | G31: 0 | H31: 0 | I31: =H31-G31 -> 0
A32: 8 | B32: ZUM, ZUL - limity | C32: 0 | D32: 0 | F32: 0 | G32: =C32/12*MONTH(dat_do) -> 0 | H32: 0 | I32: =H32-G32 -> 0
A33: ostatní ukazatele:
A34: 9 | B34: Body vč.agregovaných výkonů | C34: 0 | D34: 0 | F34: 0 | G34: =C34/12*MONTH(dat_do) -> 0 | H34: 0 | I34: =H34-G34 -> 0
A36: Poměrné ukazatale:
A37: 1 | B37: nákladová hodnota bodu-Ncelkem | C37: =C12/C34 ->  | D37: =D12/D34 ->  | F37: =F12/F34 ->  | G37: =G12/G34 ->  | H37: =H12/H34 -> 
A38: 2 | B38: výnosová hodnota bodu - V celkem | C38: =C18/C34 ->  | D38: =D13/D34 ->  | F38: =F13/F34 ->  | G38: =G13/G34 ->  | H38: =H13/H34 -> 
A39: 3 | B39: podíl OsN na celkových nákl. % | C39: =C27/C12% -> 22.99898683 | D39: =D27/D12% ->  | F39: =F27/F12% -> 71.82805381 | G39: =G27/G12% -> 22.99898683 | H39: =H27/H12% -> 71.67891746
A42: Zpracoval: oddělení ekonomických činností

Sheet 62
A1: Pracoviště: 62 Centrum klinického výzkumu
A3: =CONCATENATE("Základní ukazatele hospodaření na rok ",YEAR(dat_do)," (v tis.)") -> Základní ukazatele hospodaření na rok 2010 (v tis.)
G6: Vyhodnocení aktuálního období :
H7: =CONCATENATE("1 - ",MONTH(dat_do)," / ",YEAR(dat_do)) -> 1 - 2 / 2010
C8: A | D8: B | F8: C | G8: D | H8: E
C9: Rozpočet | D9: Skutečnost | F9: Skutečnost | G9: Rozpočet | H9: Skutečnost | I9: Rozdíl
C10: (limit) | D10: za | F10: za | G10: za | H10: za | I10: E - D
A11: Souhrnné ukazatele: | C11: =YEAR(dat_do) -> 2010 | D11: =CONCATENATE("1-",MONTH(dat_do),"/",YEAR(dat_do)-1) -> 1-2/2009 | F11: =CONCATENATE(MONTH(dat_do),"/",YEAR(dat_do)) -> 2/2010 | G11: =CONCATENATE("1-",MONTH(dat_do),"/",YEAR(dat_do)) -> 1-2/2010 | H11: =CONCATENATE("1-",MONTH(dat_do),"/",YEAR(dat_do)) -> 1-2/2010
A12: 1 | B12: Náklady celkem (N) | C12: 0 | D12: 0 | F12: 0 | G12: 0 | H12: 0 | I12: =H12-G12 -> 0
A13: 2 | B13: Výnosy celkem (V) | C13: 0 | D13: 0 | F13: 0 | G13: 0 | H13: 0 | I13: =H13-G13 -> 0
A14: 3 | B14: Hospodářský výsledek (HV) | C14: =C13-C12 -> 0 | D14: =D13-D12 -> 0 | F14: =F13-F12 -> 0 | G14: =G13-G12 -> 0 | H14: =H13-H12 -> 0
A16: Dílčí sledované ukazatele:
A17: nákladové ukazatele:
A18: 1 | B18: Přímé náklady (PN) | C18: 0 | D18: 0 | F18: 0 | G18: 0 | H18: 0 | I18: =H18-G18 -> 0
A19: 2 | B19: Léky | C19: 0 | D19: 0 | F19: 0 | G19: 0 | H19: 0 | I19: 0
B20: z toho: vliv lékové vyhlášky | C20: 0 | D20: 0 | F20: 0 | G20: 0 | H20: 0 | I20: 0
B21: spotřeba center | C21: 0 | D21: 0 | F21: 0 | G21: 0 | H21: 0 | I21: 0
A22: 3 | B22: SZM | C22: 0 | D22: 0 | F22: 0 | G22: 0 | H22: 0 | I22: 0
B23: z toho: implantáty-kardiostim. | C23: 0 | D23: 0 | F23: 0 | G23: 0 | H23: 0 | I23: 0
B24: implantáty-defibrilátory | C24: 0 | D24: 0 | F24: 0 | G24: 0 | H24: 0 | I24: 0
B25: implantáty-TEP | C25: 0 | D25: 0 | F25: 0 | G25: 0 | H25: 0 | I25: 0
A26: 4 | B26: Všeobecný materiál | C26: 0 | D26: 0 | F26: 0 | G26: 0 | H26: 0 | I26: 0
A27: 5 | B27: Osobní náklady (OsN) | C27: 0 | D27: 0 | F27: 0 | G27: 0 | H27: 0 | I27: 0
B28: z toho: hrubé mzdy | C28: 0 | D28: 0 | F28: 0 | G28: 0 | H28: 0 | I28: 0
A29: výnosové ukazatele:
A30: 6 | B30: Přímé výnosy (PV) | C30: 0 | D30: 0 | F30: 0 | G30: 0 | H30: 0 | I30: =H30-G30 -> 0
A31: 7 | B31: Výnosy ZP vč. agreg.V | C31: 0 | D31: 0 | F31: 0 | G31: 0 | H31: 0 | I31: =H31-G31 -> 0
A32: 8 | B32: ZUM, ZUL - limity | C32: 0 | D32: 0 | F32: 0 | G32: =C32/12*MONTH(dat_do) -> 0 | H32: 0 | I32: =H32-G32 -> 0
A33: ostatní ukazatele:
A34: 9 | B34: Body vč.agregovaných výkonů | C34: 0 | D34: 0 | F34: 213.875 | G34: =C34/12*MONTH(dat_do) -> 0 | H34: 395.25 | I34: =H34-G34 -> 395.25
A36: Poměrné ukazatale:
A37: 1 | B37: nákladová hodnota bodu-Ncelkem | C37: =C12/C34 ->  | D37: =D12/D34 ->  | F37: =F12/F34 -> 0 | G37: =G12/G34 ->  | H37: =H12/H34 -> 0
A38: 2 | B38: výnosová hodnota bodu - V celkem | C38: =C18/C34 ->  | D38: =D13/D34 ->  | F38: =F13/F34 -> 0 | G38: =G13/G34 ->  | H38: =H13/H34 -> 0
A39: 3 | B39: podíl OsN na celkových nákl. % | C39: =C27/C12% ->  | D39: =D27/D12% ->  | F39: =F27/F12% ->  | G39: =G27/G12% ->  | H39: =H27/H12% -> 
A42: Zpracoval: oddělení ekonomických činností

Sheet Rozpočet
A1: KLINIKA | B1: BODY | C1: ZUM+ZUL | D1: MAT
A2: FNO | B2: 2322352.825 | C2: 1280896.932 | D2: 42422.039
A3: 01 | B3: 101575.374 | C3: 222242.639 | D3: 0
A4: 02 | B4: 46869.482 | C4: 25205.379 | D4: 0
A5: 03 | B5: 104367.68 | C5: 106482.885 | D5: 0
A6: 04 | B6: 70799.659 | C6: 22055.779 | D6: 0
A7: 05 | B7: 31860.665 | C7: 10529.016 | D7: 0
A8: 06 | B8: 73637.481 | C8: 41891.578 | D8: 0
A9: 07 | B9: 142545.667 | C9: 11418.335 | D9: 0
A10: 08 | B10: 61617.063 | C10: 26873.574 | D10: 5429.81
A11: 09 | B11: 66585.916 | C11: 2910.747 | D11: 0
A12: 10 | B12: 110279.683 | C12: 23159.803 | D12: 0
A13: 11 | B13: 44191.709 | C13: 33346.248 | D13: 0
A14: 12 | B14: 24628.075 | C14: 22134.439 | D14: 0
A15: 13 | B15: 29851.695 | C15: 751.947 | D15: 0
A16: 14 | B16: 42228.905 | C16: 28860.877 | D16: 7058.4
A17: 15 | B17: 9198.434 | C17: 3265.375 | D17: 0
A18: 16 | B18: 38283.694 | C18: 27210.193 | D18: 0
A19: 17 | B19: 40921.65 | C19: 103660.969 | D19: 0
A20: 18 | B20: 38157.511 | C20: 3511.031 | D20: 0
A21: 19 | B21: 7844.784 | C21: 86.358 | D21: 0
A22: 20 | B22: 15865.223 | C22: 12297.079 | D22: 0
A23: 21 | B23: 74645.205 | C23: 200154.577 | D23: 0
A24: 22 | B24: 88502.826 | C24: 81583.939 | D24: 0
A25: 24 | B25: 0 | C25: 3458.064 | D25: 18144.605
A26: 25 | B26: 9750.14 | C26: 938.966 | D26: 11056.785
A27: 26 | B27: 64374.169 | C27: 158.1 | D27: 0
A28: 27 | B28: 1765.325 | C28: 0 | D28: 0
A29: 28 | B29: 29008.044 | C29: 49851 | D29: 0
A30: 29 | B30: 12297.244 | C30: 392.121 | D30: 0
A31: 30 | B31: 25058.69 | C31: 1827.731 | D31: 0
A32: 31 | B32: 35893.897 | C32: 13468.799 | D32: 0
A33: 32 | B33: 166204.436 | C33: 159871.23 | D33: 0
A34: 33 | B34: 156861.592 | C34: 0 | D34: 0
A35: 33DMP | B35: 4636 | C35: 0 | D35: 0
A36: 34 | B36: 143370.827 | C36: 43060.342 | D36: 732.439
A37: 35 | B37: 23956.078 | C37: 507.442 | D37: 0
A38: 36 | B38: 2421.785 | C38: 0 | D38: 0
A39: 37 | B39: 54702.663 | C39: 0 | D39: 0
A40: 38 | B40: 5669.347 | C40: 0 | D40: 0
A41: 39 | B41: 6587.789 | C41: 0 | D41: 0
A42: 40 | B42: 66555.375 | C42: 0 | D42: 0
A43: 41 | B43: 52664.75 | C43: 0 | D43: 0
A44: 43 | B44: 72.408 | C44: 0 | D44: 0
A45: 45 | B45: 0 | C45: 0 | D45: 0
A46: 46 | B46: 0 | C46: 0 | D46: 0
A47: 47 | B47: 0 | C47: 0 | D47: 0
A48: 48 | B48: 0 | C48: 0 | D48: 0
A49: 50 | B49: 138463.821 | C49: 42165.814 | D49: 0
A50: 53 | B50: 0 | C50: 0 | D50: 0
A51: 56 | B51: 0 | C51: 0 | D51: 0
A52: 58 | B52: 0 | C52: 0 | D52: 0
A53: 59 | B53: 48615.601 | C53: 4559.163 | D53: 0
A54: 60 | B54: 13600.463 | C54: 806.542 | D54: 0
A55: 61 | B55: 0 | C55: 0 | D55: 0
A56: 62 | B56: 0 | C56: 0 | D56: 0
